Workbook

Sheet Preissp_Dachsanierung
G1: Nr. | I1: Text | J1: Positionsarten - Bedarfsposition - Position - Grundposition - Alternativposition - Hinweis - Ausführungsbeschr. | K1: Positionstypen [B] edarf [G] rundposition [A] lternativposition [E] Entfällt [H] inweis [AB] usführungsbeschreibung | L1: Abweichung zum Minimalwert [ MIN ] Mittelwert [ MIT ] Maximalwert [ MAX ] LV -Preiskalkulation [ LV ] -------- LV-Menge | M1: Einheit | O1: SUMME MIN - Brutto - | P1: SUMME MTTE - Brutto - | Q1: SUMME MAX - Brutto - | R1: SUMME Mittelwert | T1: SUMME der Mittelwerte aus Bedarfs- u. Alternativ-positionen | V1: SUMME Entfallende bzw. gestrichene Positionen | W1: SUMME LV-Preis | X1: Abweichung zum Mittelwert | Y1: SUMME Bedarfs- u. Alternativ-positionen | AA1: SUMME Entfallende bzw. gestrichene Positionen | AB1: Siemers - Dach& Wand GmbH Peter Hansen - Dachdecker Fassadenbau GmbH | AC1: Bereits ausgeführte Positionen | AD1: Summe bereits ausgeführter Arbeiten | AE1: Abweichung zum Mittelwert | AF1: SUMME Bedarfs- u. Alternativ-positionen | AH1: SUMME Entfallende bzw. gestrichene Positionen | AI1: Thormälen GmbH | AJ1: Bereits ausgeführte Positionen | AK1: Summe bereits ausgeführter Arbeiten | AL1: Abweichung zum Mittelwert | AM1: SUMME Bedarfs- u. Alternativ-positionen | AO1: SUMME Entfallende bzw. gestrichene Positionen | AP1: Westerholt & Jacobs - Holzbau GmbH | AQ1: Bereits ausgeführte Positionen | AR1: Summe bereits ausgeführter Arbeiten | AS1: Abweichung zum Mittelwert | AT1: SUMME Bedarfs- u. Alternativ-positionen | AV1: SUMME Entfallende bzw. gestrichene Positionen | AW1: Richard Steckel GmbH | AX1: Bereits ausgeführte Positionen | AY1: Summe bereits ausgeführter Arbeiten | AZ1: Abweichung zum Mittelwert | BA1: SUMME Bedarfs- u. Alternativ-positionen | BC1: SUMME Entfallende bzw. gestrichene Positionen | BD1: Dachdeckerei Förster GmbH | BE1: Bereits ausgeführte Positionen | BF1: Summe bereits ausgeführter Arbeiten | BG1: Abweichung zum Mittelwert | BH1: SUMME Bedarfs- u. Alternativ-positionen
I2: G E S A M T S U M M E (EUR netto) | O2: =SUMPRODUCT(O14:O230,$L14:$L230)*119% -> 167126.3322 | P2: =SUMPRODUCT(P14:P230,$L14:$L230)*119% -> 277460.9698 | Q2: =SUMPRODUCT(Q14:Q230,$L14:$L230)*119% -> 340581.8833 | R2: =R10 -> 233160.4788 | W2: =W10 -> 19309.5 | AB2: =AB10 -> 272488.5801 | AI2: =AI10 -> 278151.7282 | AP2: =AP10 -> 148841.128 | AW2: =AW10 -> 0 | BD2: =BD10 -> 0
I3: N A C H L A S S / Z U S C H L A G | J3: =IF(L4="MIN",CONCATENATE("Schwellenwert Abweichung vom",CHAR(10),"Minimalwert nach oben, größer"),IF(L4="MIT",CONCATENATE("Schwellenwert Abweichung vom",CHAR(10),"Mittellwert nach oben, größer"),"")) -> Schwellenwert Abweichung vom Mittellwert nach oben, größer | L3: 0.15 | R3: 0 | S3: =R2*R3 -> 0 | W3: 0 | X3: =W2*W3 -> 0 | AB3: 0 | AE3: =AB2*AB3 -> 0 | AI3: 0 | AL3: =AI2*AI3 -> 0 | AP3: 0 | AS3: =AP2*AP3 -> 0 | AW3: 0 | AZ3: =AW2*AW3 -> 0 | BD3: 0 | BG3: =BD2*BD3 -> 0
I4: G E S A M T S U M M E (EUR netto) | L4: MIT | R4: =R2-R2*R3 -> 233160.4788 | W4: =W2-W2*W3 -> 19309.5 | AB4: =AB2-AB2*AB3 -> 272488.5801 | AI4: =AI2-AI2*AI3 -> 278151.7282 | AP4: =AP2-AP2*AP3 -> 148841.128 | AW4: =AW2-AW2*AW3 -> 0 | BD4: =BD2-BD2*BD3 -> 0
I5: S K O N T O | J5: =IF(L4="MIN",CONCATENATE("Schwellenwert Abweichung vom",CHAR(10),"Minimalwert nach unten, größer"),IF(L4="MIT",CONCATENATE("Schwellenwert Abweichung vom",CHAR(10),"Mittellwert nach unten, größer"),"")) -> Schwellenwert Abweichung vom Mittellwert nach unten, größer | R5: 0 | S5: =R4*R5 -> 0 | W5: 0 | X5: =W4*W5 -> 0 | AB5: 0 | AE5: =AB4*AB5 -> 0 | AI5: 0 | AL5: =AI4*AI5 -> 0 | AP5: 0 | AS5: =AP4*AP5 -> 0 | AW5: 0 | AZ5: =AW4*AW5 -> 0 | BD5: 0 | BG5: =BD4*BD5 -> 0
I6: G E S A M T S U M M E (EUR netto) | L6: -0.15 | R6: =R4-R4*R5 -> 233160.4788 | W6: =W4-W4*W5 -> 19309.5 | AB6: =AB4-AB4*AB5 -> 272488.5801 | AI6: =AI4-AI4*AI5 -> 278151.7282 | AP6: =AP4-AP4*AP5 -> 148841.128 | AW6: =AW4-AW4*AW5 -> 0 | BD6: =BD4-BD4*BD5 -> 0
I7: 19 % Mehrwertsteuer | R7: =R6*19% -> 44300.49097 | W7: =W6*19% -> 3668.805 | AB7: =AB6*19% -> 51772.83022 | AI7: =AI6*19% -> 52848.82837 | AP7: =AP6*19% -> 28279.81432 | AW7: =AW6*19% -> 0 | BD7: =BD6*19% -> 0
I8: G E S A M T S U M M E (EUR brutto) | R8: =IF(SUM(R6:R7)=0,"",SUM(R6:R7)) -> 277460.9698 | S8: Bruttosumme Mittelwerte | W8: =IF(SUM(W6:W7)=0,"",SUM(W6:W7)) -> 22978.305 | Y8: =IF(W8="","",IF(MIN($W8,$AB8,$AI8,$AP8,$AW8)=W8,1,(W8/MIN($W8,$AB8,$AI8,$AP8,$AW8)))) -> 1 | AB8: =IF(SUM(AB6:AB7)=0,"",SUM(AB6:AB7)) -> 324261.4103 | AF8: =IF(AB8="","",IF(MIN($AB8,$AI8,$AP8,$AW8,$BO8)=AB8,1,(AB8/MIN($AB8,$AI8,$AP8,$AW8,$BO8)))) -> 1.830734447 | AI8: =IF(SUM(AI6:AI7)=0,"",SUM(AI6:AI7)) -> 331000.5566 | AM8: =IF(AI8="","",IF(MIN($AB8,$AI8,$AP8,$AW8,$BO8)=AI8,1,(AI8/MIN($AB8,$AI8,$AP8,$AW8,$BO8)))) -> 1.868782721 | AP8: =IF(SUM(AP6:AP7)=0,"",SUM(AP6:AP7)) -> 177120.9423 | AT8: =IF(AP8="","",IF(MIN($AB8,$AI8,$AP8,$AW8,$BO8)=AP8,1,(AP8/MIN($AB8,$AI8,$AP8,$AW8,$BO8)))) -> 1 | AW8: =IF(SUM(AW6:AW7)=0,"",SUM(AW6:AW7)) ->  | BA8: =IF(AW8="","",IF(MIN($AB8,$AI8,$AP8,$AW8,$BO8)=AW8,1,(AW8/MIN($AB8,$AI8,$AP8,$AW8,$BO8)))) ->  | BD8: =IF(SUM(BD6:BD7)=0,"",SUM(BD6:BD7)) ->  | BH8: =IF(BD8="","",IF(MIN($AB8,$AI8,$AP8,$AW8,$BO8)=BD8,1,(BD8/MIN($AB8,$AI8,$AP8,$AW8,$BO8)))) -> 
S9: Bedarfspos. | T9: =SUMIF($K14:$K230,"B",T14:T230)*119% -> 6895.843733 | X9: Bedarfspos. | Y9: =(SUMPRODUCT($L14:$L230,V14:V230,1*($K14:$K230="B"))*119%) -> 1651.125 | AE9: Bedarfspos. | AF9: =(SUMPRODUCT($L14:$L230,AA14:AA230,1*($K14:$K230="B"))*119%) -> 7004.8041 | AL9: Bedarfspos. | AM9: =(SUMPRODUCT($L14:$L230,AH14:AH230,1*($K14:$K230="B"))*119%) -> 7004.8041 | AS9: Bedarfspos. | AT9: =(SUMPRODUCT($L14:$L230,AO14:AO230,1*($K14:$K230="B"))*119%) -> 4276.86 | AZ9: Bedarfspos. | BA9: =(SUMPRODUCT($L14:$L230,AV14:AV230,1*($K14:$K230="B"))*119%) -> 0 | BG9: Bedarfspos. | BH9: =(SUMPRODUCT($L14:$L230,BC14:BC230,1*($K14:$K230="B"))*119%) -> 0
G10: LV 001 | H10: LV 001 | I10: 196_Dachsanierung Auf der Raade 51 - 26180 Rastede | J10: LV | M10: - | O10: Nettosumme Mittelwerte | R10: =SUMPRODUCT(P14:P230,$L14:$L230) -> 233160.4788 | S10: Grund-positionen | T10: =SUMPRODUCT($L14:$L230,P14:P230,1*($K14:$K230="G"))*119% -> 45284.39487 | V10: Nettosumme LV | W10: =SUM(W13,W25,W41,W64,W78,W105,W148,W162,W183,W195) -> 19309.5 | X10: Grund-positionen | Y10: =SUMPRODUCT($L14:$L230,V14:V230,1*($K14:$K230="G"))*119% -> 0 | AA10: Nettosumme gepr. Angebot | AB10: =SUM(AB13,AB25,AB41,AB64,AB78,AB105,AB148,AB162,AB183,AB195) -> 272488.5801 | AD10: =SUM(AD13:AD588)*1.19 -> 0 | AE10: Grund-positionen | AF10: =SUMPRODUCT($L14:$L230,AA14:AA230,1*($K14:$K230="G"))*119% -> 49628.9024 | AH10: Nettosumme gepr. Angebot | AI10: =SUM(AI13,AI25,AI41,AI64,AI78,AI105,AI148,AI162,AI183,AI195) -> 278151.7282 | AK10: =SUM(AK13:AK588)*1.19 -> 0 | AL10: Grund-positionen | AM10: =SUMPRODUCT($L14:$L230,AH14:AH230,1*($K14:$K230="G"))*119% -> 50368.9872 | AO10: Nettosumme gepr. Angebot | AP10: =SUM(AP13,AP25,AP41,AP64,AP78,AP105,AP148,AP162,AP183,AP195) -> 148841.128 | AR10: =SUM(AR13:AR588)*1.19 -> 0 | AS10: Grund-positionen | AT10: =SUMPRODUCT($L14:$L230,AO14:AO230,1*($K14:$K230="G"))*119% -> 35855.295 | AV10: Nettosumme gepr. Angebot | AW10: =SUM(AW13,AW25,AW41,AW64,AW78,AW105,AW148,AW162,AW183,AW195) -> 0 | AY10: =SUM(AY13:AY588)*1.19 -> 0 | AZ10: Grund-positionen | BA10: =SUMPRODUCT($L14:$L230,AV14:AV230,1*($K14:$K230="G"))*119% -> 0 | BC10: Nettosumme gepr. Angebot | BD10: =SUM(BD13,BD25,BD41,BD64,BD78,BD105,BD148,BD162,BD183,BD195) -> 0 | BF10: =SUM(BF13:BF588)*1.19 -> 0 | BG10: Grund-positionen | BH10: =SUMPRODUCT($L14:$L230,BC14:BC230,1*($K14:$K230="G"))*119% -> 0
S11: Alternativ | T11: =SUMIF($K14:$K230,"A",T14:T230)*119% -> 56193.8111 | X11: Alternativ | Y11: =(SUMPRODUCT($L14:$L230,V14:V230,1*($K14:$K230="A"))*119%) -> 0 | AE11: Alternativ | AF11: =(SUMPRODUCT($L14:$L230,AA14:AA230,1*($K14:$K230="A"))*119%) -> 59943.1679 | AL11: Alternativ | AM11: =(SUMPRODUCT($L14:$L230,AH14:AH230,1*($K14:$K230="A"))*119%) -> 59970.2999 | AS11: Alternativ | AT11: =(SUMPRODUCT($L14:$L230,AO14:AO230,1*($K14:$K230="A"))*119%) -> 30064.16 | AZ11: Alternativ | BA11: =(SUMPRODUCT($L14:$L230,AV14:AV230,1*($K14:$K230="A"))*119%) -> 0 | BG11: Alternativ | BH11: =(SUMPRODUCT($L14:$L230,BC14:BC230,1*($K14:$K230="A"))*119%) -> 0
R12: =IF(OR($K12="A",$K12="B"),"Nur EP ",IF($K12="E","",IF(AND($L12<>"",P12<>""),$L12*P12,""))) ->  | T12: =IF($K12="Ja",IF(AND($L12<>"",P12<>""),$L12*P12),"") ->  | W12: =IF(OR($K12="A",$K12="B"),"Nur EP ",IF($K12="E","",IF(AND($L12<>"",V12<>""),$L12*V12,""))) ->  | Y12: =IF($K12="Ja",IF(AND($L12<>"",V12<>""),$L12*V12),"") ->  | AA12: EP / % Titel | AB12: Positions- / Titelsumme | AD12: =IF(AC12="","",IF(AC12="X",AB12,AB12*AC12)) ->  | AF12: =IF($K12="Ja",IF(AND($L12<>"",AA12<>""),$L12*AA12),"") ->  | AH12: EP / % Titel | AI12: Positions- / Titelsumme | AK12: =IF(AJ12="","",IF(AJ12="X",AI12,AI12*AJ12)) ->  | AM12: =IF($K12="Ja",IF(AND($L12<>"",AH12<>""),$L12*AH12),"") ->  | AO12: EP / % Titel | AP12: Positions- / Titelsumme | AR12: =IF(AQ12="","",IF(AQ12="X",AP12,AP12*AQ12)) ->  | AT12: =IF($K12="Ja",IF(AND($L12<>"",AO12<>""),$L12*AO12),"") ->  | AV12: EP / % Titel | AW12: Positions- / Titelsumme | AY12: =IF(AX12="","",IF(AX12="X",AW12,AW12*AX12)) ->  | BA12: =IF($K12="Ja",IF(AND($L12<>"",AV12<>""),$L12*AV12),"") ->  | BC12: EP / % Titel | BD12: Positions- / Titelsumme | BF12: =IF(BE12="","",IF(BE12="X",BD12,BD12*BE12)) ->  | BH12: =IF($K12="Ja",IF(AND($L12<>"",BC12<>""),$L12*BC12),"") -> 
G13: 1 | I13: Baustelleneinrichtung Gerüst | M13: - | O13: =CONCATENATE("Titelsumme",CHAR(10),"MIN",CHAR(10),TEXT(SUMPRODUCT($L14:$L24,O14:O24),"##.##0,00")," €") -> Titelsumme MIN 1.500,00 € | P13: =CONCATENATE("Titelsumme",CHAR(10),"MIT",CHAR(10),TEXT(SUMPRODUCT($L14:$L24,P14:P24),"##.##0,00")," €") -> Titelsumme MIT 12.171,95 € | Q13: =CONCATENATE("Titelsumme",CHAR(10),"MAX",CHAR(10),TEXT(SUMPRODUCT($L14:$L24,Q14:Q24),"##.##0,00")," €") -> Titelsumme MAX 17.765,85 € | R13: =SUM(R14:R24) -> 12171.95 | T13: =SUM(T14:T24) -> 0 | W13: =SUM(W14:W24) -> 2500 | Y13: =SUM(Y14:Y24) -> 0 | AA13: =IF(AB13=0,"", IF($L$4="MIT",((AB13/(AVERAGE($AB13,$AI13,$AP13,$AW13,$BD13)))-1)*100,)) -> 136.1988013 | AB13: =SUM(AB14:AB24) -> 17250 | AF13: =SUM(AF14:AF24) -> 0 | AH13: =IF(AI13=0,"", IF($L$4="MIT",((AI13/(AVERAGE($AB13,$AI13,$AP13,$AW13,$BD13)))-1)*100,)) -> 143.2621725 | AI13: =SUM(AI14:AI24) -> 17765.85 | AM13: =SUM(AM14:AM24) -> 0 | AO13: =IF(AP13=0,"", IF($L$4="MIT",((AP13/(AVERAGE($AB13,$AI13,$AP13,$AW13,$BD13)))-1)*100,)) -> -79.4609738 | AP13: =SUM(AP14:AP24) -> 1500 | AT13: =SUM(AT14:AT24) -> 0 | AV13: =IF(AW13=0,"", IF($L$4="MIT",((AW13/(AVERAGE($AB13,$AI13,$AP13,$AW13,$BD13)))-1)*100,)) ->  | AW13: =SUM(AW14:AW24) -> 0 | BA13: =SUM(BA14:BA24) -> 0 | BC13: =IF(BD13=0,"", IF($L$4="MIT",((BD13/(AVERAGE($AB13,$AI13,$AP13,$AW13,$BD13)))-1)*100,)) ->  | BD13: =SUM(BD14:BD24) -> 0 | BH13: =SUM(BH14:BH24) -> 0
G14: =G$13 -> 1 | H14: =IF(G$162="","",ROW()-ROW(G$13)) -> 1 | I14: Allgemeine Hinweise zur Ausführung | J14: Ausführungsbeschreibung | K14: =IF(J14="Position","",IF(J14="Grundposition","G",IF(J14="Alternativposition","A",IF(J14="Bedarfsposition","B",IF(J14="Hinweis","H",IF(J14="Ausführungsbeschreibung","AB",IF(J14="Entfällt","E",IF(AND(I14<>"",L14<>""),"<-- Bitte Positionsart","")))))))) -> AB | O14: =IF(OR($K14="B",$K14="A",$K14="H",$K14="AB",$K14="<-- Bitte Positionsart",SUM(AA14,AH14,AO14,AV14,BC14)=0),"",MIN(AA14,AH14,AO14,AV14,BC14)) ->  | P14: =IF(OR($K14="B",$K14="A",$K14="H",$K14="AB",$K14="<-- Bitte Positionsart",SUM(AA14,AH14,AO14,AV14,BC14)=0),"",SUM(AA14,AH14,AO14,AV14,BC14)/COUNT(AA14,AH14,AO14,AV14,BC14)) ->  | Q14: =IF(OR($K14="B",$K14="A",$K14="H",$K14="AB",$K14="<-- Bitte Positionsart",SUM(AA14,AH14,AO14,AV14,BC14)=0),"",MAX(AA14,AH14,AO14,AV14,BC14)) ->  | R14: =IF(OR($K14="A",$K14="B"),"Nur EP ",IF($K14="E","E ",IF(AND($L14<>"",P14<>""),$L14*P14,""))) ->  | T14: =IF(OR($K14="",$K14="H",$K14="AB",$K14="G",$K14="<-- Bitte Positionsart"),"",IF(OR($K14="A",$K14="B"),$L14*(SUM(AA14,AH14,AO14,AV14,BC14)/COUNT(AA14,AH14,AO14,AV14,BC14)),IF($K14="E",$L14*P14))) ->  | W14: =IF(OR($K14="A",$K14="B"),"Nur EP ",IF($K14="E","E ",IF(AND($L14<>"",V14<>""),$L14*V14,""))) ->  | X14: =IF(OR($L83="",V14="",$J14="Ausführungsbeschreibung",$J14="Hinweis"),"", IF(AND($V14,$AA14,$AH14,$AO14,$AV14,$BC14)="","", IF(OR($W14="Nur EP ",$K14="E"),(Y14/(AVERAGE($Y14,$AF14,$AM14,$AT14,Y14))-1), IF(AND($W14,$AB14,$AI14,$AP14,$AW14)="","",(W14/(AVERAGE($W14,$AB14,$AI14,$AP14,$AW14)))-1)))) ->  | Y14: =IF(OR($K14="",$K14="H",$K14="AB",$K14="G",$J14="Position",$K14="<-- Bitte Positionsart",V14="",$L14=""),"", IF(OR($K14="A",$K14="B",$K14="E"),$L14*V14)) ->  | AB14: =IF(C14="Hinweis","",IF(OR($K14="A",$K14="B"),"Nur EP ",IF($K14="E","E ",IF(AND($L14<>"",AA14<>""),$L14*AA14,"")))) ->  | AD14: =IF(AC14="","",IF(AC14="X",AB14,AB14*AC14)) ->  | AE14: =IF(OR($L14="",AA14="",$J14="Ausführungsbeschreibung",$J14="Hinweis"),"", IF(AND($AA14,$AH14,$AO14,$AV14,$BC14)="","", IF($L$4="MIT", IF(OR(AB14="Nur EP ",$K14="E"),((AF14/(AVERAGE($AF14,$AM14,$AT14,$BA14,$BH14)))-1), IF($L$4="MIT",((AB14/(AVERAGE($AB14,$AI14,$AP14,$AW14,$BD14)))-1), IF($L$4="MIN", IF(OR(AB14="Nur EP ",$K14="E"),((AF14/(MIN($AF14,$AM14,$AT14,$BA14,$BH14)))-1), IF($L$4="MIN",((AB14/(MIN($AB14,$AI14,$AP14,$AW14,$BD14)))-1)) ))))))) ->  | AF14: =IF(OR($K14="",$K14="H",$K14="AB",$K14="G",$J14="Position",$K14="<-- Bitte Positionsart",AA14="",$L14=""),"", IF(OR($K14="A",$K14="B",$K14="E"),$L14*AA14)) ->  | AI14: =IF(J14="Hinweis","",IF(OR($K14="A",$K14="B"),"Nur EP ",IF($K14="E","E ",IF(AND($L14<>"",AH14<>""),$L14*AH14,"")))) ->  | AK14: =IF(AJ14="","",IF(AJ14="X",AI14,AI14*AJ14)) ->  | AL14: =IF(OR($L14="",AH14="",$J14="Ausführungsbeschreibung",$J14="Hinweis"),"", IF(AND($AA14,$AH14,$AO14,$AV14,$BC14)="","", IF($L$4="MIT", IF(OR(AI14="Nur EP ",$K14="E"),((AM14/(AVERAGE($AF14,$AM14,$AT14,$BA14,$BH14)))-1), IF($L$4="MIT",((AI14/(AVERAGE($AB14,$AI14,$AP14,$AW14,$BD14)))-1), IF($L$4="MIN", IF(OR(AI14="Nur EP ",$K14="E"),((AM14/(MIN($AF14,$AM14,$AT14,$BA14,$BH14)))-1), IF($L$4="MIN",(AI14/(MIN($AB14,$AI14,$AP14,$AW14,$BD14)))-1) ))))))) ->  | AM14: =IF(OR($K14="",$K14="H",$K14="AB",$K14="G",$J14="Position",$K14="<-- Bitte Positionsart",AH14="",$L14=""),"", IF(OR($K14="A",$K14="B",$K14="E"),$L14*AH14)) ->  | AP14: =IF(P14="Hinweis","",IF(OR($K14="A",$K14="B"),"Nur EP ",IF($K14="E","E ",IF(AND($L14<>"",AO14<>""),$L14*AO14,"")))) ->  | AR14: =IF(AQ14="","",IF(AQ14="X",AP14,AP14*AQ14)) ->  | AS14: =IF(OR($L14="",AO14="",$J14="Ausführungsbeschreibung",$J14="Hinweis"),"", IF(AND($AA14,$AH14,$AO14,$AV14,$BC14)="","", IF($L$4="MIT", IF(OR(AP14="Nur EP ",$K14="E"),((AT14/(AVERAGE($AF14,$AM14,$AT14,$BA14,$BH14)))-1), IF($L$4="MIT",((AP14/(AVERAGE($AB14,$AI14,$AP14,$AW14,$BD14)))-1), IF($L$4="MIN", IF(OR(AP14="Nur EP ",$K14="E"),((AT14/(MIN($AF14,$AM14,$AT14,$BA14,$BH14)))-1), IF($L$4="MIN",(AP14/(MIN($AB14,$AI14,$AP14,$AW14,$BD14)))-1) ))))))) ->  | AT14: =IF(OR($K14="",$K14="H",$K14="AB",$K14="G",$J14="Position",$K14="<-- Bitte Positionsart",AO14="",$L14=""),"", IF(OR($K14="A",$K14="B",$K14="E"),$L14*AO14)) ->  | AW14: =IF(W14="Hinweis","",IF(OR($K14="A",$K14="B"),"Nur EP ",IF($K14="E","E ",IF(AND($L14<>"",AV14<>""),$L14*AV14,"")))) ->  | AY14: =IF(AX14="","",IF(AX14="X",AW14,AW14*AX14)) ->  | AZ14: =IF(OR($L14="",AV14="",$J14="Ausführungsbeschreibung",$J14="Hinweis"),"", IF(AND($AA14,$AH14,$AO14,$AV14,$BC14)="","", IF($L$4="MIT", IF(OR(AW14="Nur EP ",$K14="E"),((BA14/(AVERAGE($AF14,$AM14,$AT14,$BA14,$BH14)))-1), IF($L$4="MIT",((AW14/(AVERAGE($AB14,$AI14,$AP14,$AW14,$BD14)))-1), IF($L$4="MIN", IF(OR(AW14="Nur EP ",$K14="E"),((BA14/(MIN($AF14,$AM14,$AT14,$BA14,$BH14)))-1), IF($L$4="MIN",(AW14/(MIN($AB14,$AI14,$AP14,$AW14,$BD14)))-1) ))))))) ->  | BA14: =IF(OR($K14="",$K14="H",$K14="AB",$K14="G",$J14="Position",$K14="<-- Bitte Positionsart",AV14="",$L14=""),"", IF(OR($K14="A",$K14="B",$K14="E"),$L14*AV14)) ->  | BD14: =IF(AD14="Hinweis","",IF(OR($K14="A",$K14="B"),"Nur EP ",IF($K14="E","E ",IF(AND($L14<>"",BC14<>""),$L14*BC14,"")))) ->  | BF14: =IF(BE14="","",IF(BE14="X",BD14,BD14*BE14)) ->  | BG14: =IF(OR($L14="",BC14="",$J14="Ausführungsbeschreibung",$J14="Hinweis"),"", IF(AND($AA14,$AH14,$AO14,$AV14,$BC14)="","", IF($L$4="MIT", IF(OR(BD14="Nur EP ",$K14="E"),((BH14/(AVERAGE($AF14,$AM14,$AT14,$BA14,$BH14)))-1), IF($L$4="MIT",((BD14/(AVERAGE($AB14,$AI14,$AP14,$AW14,$BD14)))-1), IF($L$4="MIN", IF(OR(BD14="Nur EP ",$K14="E"),((BH14/(MIN($AF14,$AM14,$AT14,$BA14,$BH14)))-1), IF($L$4="MIN",(BD14/(MIN($AB14,$AI14,$AP14,$AW14,$BD14)))-1) ))))))) ->  | BH14: =IF(OR($K14="",$K14="H",$K14="AB",$K14="G",$J14="Position",$K14="<-- Bitte Positionsart",BC14="",$L14=""),"", IF(OR($K14="A",$K14="B",$K14="E"),$L14*BC14)) -> 
G15: =G$13 -> 1 | H15: 2 | I15: Baustrom und Wasser | J15: Hinweis | K15: H | O15: =IF(OR($K15="B",$K15="A",$K15="H",$K15="AB",$K15="<-- Bitte Positionsart",SUM(AA15,AH15,AO15,AV15,BC15)=0),"",MIN(AA15,AH15,AO15,AV15,BC15)) ->  | P15: =IF(OR($K15="B",$K15="A",$K15="H",$K15="AB",$K15="<-- Bitte Positionsart",SUM(AA15,AH15,AO15,AV15,BC15)=0),"",SUM(AA15,AH15,AO15,AV15,BC15)/COUNT(AA15,AH15,AO15,AV15,BC15)) ->  | Q15: =IF(OR($K15="B",$K15="A",$K15="H",$K15="AB",$K15="<-- Bitte Positionsart",SUM(AA15,AH15,AO15,AV15,BC15)=0),"",MAX(AA15,AH15,AO15,AV15,BC15)) ->  | R15: =IF(OR($K15="A",$K15="B"),"Nur EP ",IF($K15="E","E ",IF(AND($L15<>"",P15<>""),$L15*P15,""))) ->  | T15: =IF(OR($K15="",$K15="H",$K15="AB",$K15="G",$K15="<-- Bitte Positionsart"),"",IF(OR($K15="A",$K15="B"),$L15*(SUM(AA15,AH15,AO15,AV15,BC15)/COUNT(AA15,AH15,AO15,AV15,BC15)),IF($K15="E",$L15*P15))) ->  | X15: =IF(OR($L84="",V15="",$J15="Ausführungsbeschreibung",$J15="Hinweis"),"", IF(AND($V15,$AA15,$AH15,$AO15,$AV15,$BC15)="","", IF(OR($W15="Nur EP ",$K15="E"),(Y15/(AVERAGE($Y15,$AF15,$AM15,$AT15,Y15))-1), IF(AND($W15,$AB15,$AI15,$AP15,$AW15)="","",(W15/(AVERAGE($W15,$AB15,$AI15,$AP15,$AW15)))-1)))) ->  | Y15: =IF(OR($K15="",$K15="H",$K15="AB",$K15="G",$J15="Position",$K15="<-- Bitte Positionsart",V15="",$L15=""),"", IF(OR($K15="A",$K15="B",$K15="E"),$L15*V15)) ->  | AF15: =IF(OR($K15="",$K15="H",$K15="AB",$K15="G",$J15="Position",$K15="<-- Bitte Positionsart",AA15="",$L15=""),"", IF(OR($K15="A",$K15="B",$K15="E"),$L15*AA15)) ->  | AL15: =IF(OR($L15="",AH15="",$J15="Ausführungsbeschreibung",$J15="Hinweis"),"", IF(AND($AA15,$AH15,$AO15,$AV15,$BC15)="","", IF($L$4="MIT", IF(OR(AI15="Nur EP ",$K15="E"),((AM15/(AVERAGE($AF15,$AM15,$AT15,$BA15,$BH15)))-1), IF($L$4="MIT",((AI15/(AVERAGE($AB15,$AI15,$AP15,$AW15,$BD15)))-1), IF($L$4="MIN", IF(OR(AI15="Nur EP ",$K15="E"),((AM15/(MIN($AF15,$AM15,$AT15,$BA15,$BH15)))-1), IF($L$4="MIN",(AI15/(MIN($AB15,$AI15,$AP15,$AW15,$BD15)))-1) ))))))) ->  | AS15: =IF(OR($L15="",AO15="",$J15="Ausführungsbeschreibung",$J15="Hinweis"),"", IF(AND($AA15,$AH15,$AO15,$AV15,$BC15)="","", IF($L$4="MIT", IF(OR(AP15="Nur EP ",$K15="E"),((AT15/(AVERAGE($AF15,$AM15,$AT15,$BA15,$BH15)))-1), IF($L$4="MIT",((AP15/(AVERAGE($AB15,$AI15,$AP15,$AW15,$BD15)))-1), IF($L$4="MIN", IF(OR(AP15="Nur EP ",$K15="E"),((AT15/(MIN($AF15,$AM15,$AT15,$BA15,$BH15)))-1), IF($L$4="MIN",(AP15/(MIN($AB15,$AI15,$AP15,$AW15,$BD15)))-1) ))))))) ->  | AT15: =IF(OR($K15="",$K15="H",$K15="AB",$K15="G",$J15="Position",$K15="<-- Bitte Positionsart",AO15="",$L15=""),"", IF(OR($K15="A",$K15="B",$K15="E"),$L15*AO15)) ->  | AZ15: =IF(OR($L15="",AV15="",$J15="Ausführungsbeschreibung",$J15="Hinweis"),"", IF(AND($AA15,$AH15,$AO15,$AV15,$BC15)="","", IF($L$4="MIT", IF(OR(AW15="Nur EP ",$K15="E"),((BA15/(AVERAGE($AF15,$AM15,$AT15,$BA15,$BH15)))-1), IF($L$4="MIT",((AW15/(AVERAGE($AB15,$AI15,$AP15,$AW15,$BD15)))-1), IF($L$4="MIN", IF(OR(AW15="Nur EP ",$K15="E"),((BA15/(MIN($AF15,$AM15,$AT15,$BA15,$BH15)))-1), IF($L$4="MIN",(AW15/(MIN($AB15,$AI15,$AP15,$AW15,$BD15)))-1) ))))))) ->  | BA15: =IF(OR($K15="",$K15="H",$K15="AB",$K15="G",$J15="Position",$K15="<-- Bitte Positionsart",AV15="",$L15=""),"", IF(OR($K15="A",$K15="B",$K15="E"),$L15*AV15)) ->  | BG15: =IF(OR($L15="",BC15="",$J15="Ausführungsbeschreibung",$J15="Hinweis"),"", IF(AND($AA15,$AH15,$AO15,$AV15,$BC15)="","", IF($L$4="MIT", IF(OR(BD15="Nur EP ",$K15="E"),((BH15/(AVERAGE($AF15,$AM15,$AT15,$BA15,$BH15)))-1), IF($L$4="MIT",((BD15/(AVERAGE($AB15,$AI15,$AP15,$AW15,$BD15)))-1), IF($L$4="MIN", IF(OR(BD15="Nur EP ",$K15="E"),((BH15/(MIN($AF15,$AM15,$AT15,$BA15,$BH15)))-1), IF($L$4="MIN",(BD15/(MIN($AB15,$AI15,$AP15,$AW15,$BD15)))-1) ))))))) ->  | BH15: =IF(OR($K15="",$K15="H",$K15="AB",$K15="G",$J15="Position",$K15="<-- Bitte Positionsart",BC15="",$L15=""),"", IF(OR($K15="A",$K15="B",$K15="E"),$L15*BC15)) -> 
G16: =G$13 -> 1 | H16: 3 | I16: Bauschutt - Verschnitt - Abfälle aus Abriss | J16: Hinweis | K16: H | AF16: =IF(OR($K16="",$K16="H",$K16="AB",$K16="G",$J16="Position",$K16="<-- Bitte Positionsart",AA16="",$L16=""),"", IF(OR($K16="A",$K16="B",$K16="E"),$L16*AA16)) ->  | AT16: =IF(OR($K16="",$K16="H",$K16="AB",$K16="G",$J16="Position",$K16="<-- Bitte Positionsart",AO16="",$L16=""),"", IF(OR($K16="A",$K16="B",$K16="E"),$L16*AO16)) -> 
G17: 1 | H17: 4 | I17: Baustellen WC | J17: Hinweis | K17: H
G18: 1 | H18: 5 | I18: Arbeitsgerüst | J18: Hinweis | K18: H
G19: 1 | H19: 6 | I19: Baustelleneinrichtung allgemein | J19: Position | L19: 1 | M19: pausch. | O19: 1500 | P19: 12171.95 | Q19: 17765.85 | R19: 12171.95 | V19: 2500 | W19: 2500 | X19: -0.743693909 | AA19: 17250 | AB19: =IF(C19="Hinweis","",IF(OR($K19="A",$K19="B"),"Nur EP ",IF($K19="E","E ",IF(AND($L19<>"",AA19<>""),$L19*AA19,"")))) -> 17250 | AD19: =IF(AC19="","",IF(AC19="X",AB19,AB19*AC19)) ->  | AE19: 0.4171928081 | AF19: =IF(OR($K19="",$K19="H",$K19="AB",$K19="G",$J19="Position",$K19="<-- Bitte Positionsart",AA19="",$L19=""),"", IF(OR($K19="A",$K19="B",$K19="E"),$L19*AA19)) ->  | AH19: 17765.85 | AI19: 17765.85 | AK19: =IF(AJ19="","",IF(AJ19="X",AI19,AI19*AJ19)) ->  | AL19: 0.4595730347 | AO19: 1500 | AP19: =IF(P19="Hinweis","",IF(OR($K19="A",$K19="B"),"Nur EP ",IF($K19="E","E ",IF(AND($L19<>"",AO19<>""),$L19*AO19,"")))) -> 1500 | AR19: =IF(AQ19="","",IF(AQ19="X",AP19,AP19*AQ19)) ->  | AS19: -0.8767658428 | AT19: =IF(OR($K19="",$K19="H",$K19="AB",$K19="G",$J19="Position",$K19="<-- Bitte Positionsart",AO19="",$L19=""),"", IF(OR($K19="A",$K19="B",$K19="E"),$L19*AO19)) -> 
G20: 1 | H20: 7 | AF20: =IF(OR($K20="",$K20="H",$K20="AB",$K20="G",$J20="Position",$K20="<-- Bitte Positionsart",AA20="",$L20=""),"", IF(OR($K20="A",$K20="B",$K20="E"),$L20*AA20)) ->  | AT20: =IF(OR($K20="",$K20="H",$K20="AB",$K20="G",$J20="Position",$K20="<-- Bitte Positionsart",AO20="",$L20=""),"", IF(OR($K20="A",$K20="B",$K20="E"),$L20*AO20)) -> 
G21: 1 | H21: 8 | AF21: =IF(OR($K21="",$K21="H",$K21="AB",$K21="G",$J21="Position",$K21="<-- Bitte Positionsart",AA21="",$L21=""),"", IF(OR($K21="A",$K21="B",$K21="E"),$L21*AA21)) ->  | AT21: =IF(OR($K21="",$K21="H",$K21="AB",$K21="G",$J21="Position",$K21="<-- Bitte Positionsart",AO21="",$L21=""),"", IF(OR($K21="A",$K21="B",$K21="E"),$L21*AO21)) -> 
G22: 1 | H22: 9
G23: 1 | H23: 10
W24: =IF(OR($K24="A",$K24="B"),"Nur EP ",IF($K24="E","",IF(AND($L24<>"",V24<>""),$L24*V24,""))) ->  | Y24: =IF($K24="Ja",IF(AND($L24<>"",V24<>""),$L24*V24),"") ->  | AA24: EP / % Titel | AB24: Positions- / Titelsumme | AF24: =IF($K24="Ja",IF(AND($L24<>"",AA24<>""),$L24*AA24),"") ->  | AH24: EP / % Titel | AI24: Positions- / Titelsumme | AM24: =IF($K24="Ja",IF(AND($L24<>"",AH24<>""),$L24*AH24),"") ->  | AO24: EP / % Titel | AP24: Positions- / Titelsumme | AT24: =IF($K24="Ja",IF(AND($L24<>"",AO24<>""),$L24*AO24),"") ->  | AV24: EP / % Titel | AW24: Positions- / Titelsumme | BA24: =IF($K24="Ja",IF(AND($L24<>"",AV24<>""),$L24*AV24),"") ->  | BC24: EP / % Titel | BD24: Positions- / Titelsumme | BH24: =IF($K24="Ja",IF(AND($L24<>"",BC24<>""),$L24*BC24),"") -> 
G25: 2 | I25: Abriss / Rückbau im Bereich des vorhandenen Pfannendachs | O25: =CONCATENATE("Titelsumme",CHAR(10),"MIN",CHAR(10),TEXT(SUMPRODUCT($L26:$L40,O26:O40),"##.##0,00")," €") -> Titelsumme MIN 6.469,69 € | P25: =CONCATENATE("Titelsumme",CHAR(10),"MIT",CHAR(10),TEXT(SUMPRODUCT($L26:$L39,P26:P39),"##.##0,00")," €") -> Titelsumme MIT 8.495,37 € | Q25: =CONCATENATE("Titelsumme",CHAR(10),"MAX",CHAR(10),TEXT(SUMPRODUCT($L26:$L39,Q26:Q39),"##.##0,00")," €") -> Titelsumme MAX 9.790,80 € | R25: =SUM(R26:R40) -> 8495.366667 | T25: =SUM(T26:T40) -> 748.8 | W25: =SUM(W26:W40) -> 8762.5 | Y25: =SUM(Y26:Y40) -> 1137.5 | AA25: =IF(AB25=0,"", IF($L$4="MIT",((AB25/(AVERAGE($AB25,$AI25,$AP25,$AW25,$BD25)))-1)*100,)) -> 80.99208981 | AB25: =SUM(AB26:AB40) -> 9225.565 | AF25: =SUM(AF26:AF40) -> 911.95 | AH25: =IF(AI25=0,"", IF($L$4="MIT",((AI25/(AVERAGE($AB25,$AI25,$AP25,$AW25,$BD25)))-1)*100,)) -> 82.77384535 | AI25: =SUM(AI26:AI40) -> 9316.385 | AM25: =SUM(AM26:AM40) -> 911.95 | AO25: =IF(AP25=0,"", IF($L$4="MIT",((AP25/(AVERAGE($AB25,$AI25,$AP25,$AW25,$BD25)))-1)*100,)) -> 36.23406484 | AP25: =SUM(AP26:AP40) -> 6944.15 | AT25: =SUM(AT26:AT40) -> 422.5 | AV25: =IF(AW25=0,"", IF($L$4="MIT",((AW25/(AVERAGE($AB25,$AI25,$AP25,$AW25,$BD25)))-1)*100,)) ->  | AW25: =SUM(AW26:AW40) -> 0 | BA25: =SUM(BA26:BA40) -> 0 | BC25: =IF(BD25=0,"", IF($L$4="MIT",((BD25/(AVERAGE($AB25,$AI25,$AP25,$AW25,$BD25)))-1)*100,)) ->  | BD25: =SUM(BD26:BD40) -> 0 | BH25: =SUM(BH26:BH40) -> 0
G26: =G$25 -> 2 | H26: =IF($G26="","",ROW()-ROW(G$25)) -> 1 | I26: Hinweis zu vorhandener Mineralwolldämmung | J26: Hinweis | K26: =IF(J26="Position","",IF(J26="Grundposition","G",IF(J26="Alternativposition","A",IF(J26="Bedarfsposition","B",IF(J26="Hinweis","H",IF(J26="Ausführungsbeschreibung","AB",IF(J26="Entfällt","E",IF(AND(I26<>"",L26<>""),"<-- Bitte Positionsart","")))))))) -> H | O26: =IF(OR($K26="B",$K26="A",$K26="H",$K26="AB",$K26="<-- Bitte Positionsart",SUM(AA26,AH26,AO26,AV26,BC26)=0),"",MIN(AA26,AH26,AO26,AV26,BC26)) ->  | P26: =IF(OR($K26="B",$K26="A",$K26="H",$K26="AB",$K26="<-- Bitte Positionsart",SUM(AA26,AH26,AO26,AV26,BC26)=0),"",SUM(AA26,AH26,AO26,AV26,BC26)/COUNT(AA26,AH26,AO26,AV26,BC26)) ->  | Q26: =IF(OR($K26="B",$K26="A",$K26="H",$K26="AB",$K26="<-- Bitte Positionsart",SUM(AA26,AH26,AO26,AV26,BC26)=0),"",MAX(AA26,AH26,AO26,AV26,BC26)) ->  | R26: =IF(OR($K26="A",$K26="B"),"Nur EP ",IF($K26="E","E ",IF(AND($L26<>"",P26<>""),$L26*P26,""))) ->  | T26: =IF(OR($K26="",$K26="H",$K26="AB",$K26="G",$K26="<-- Bitte Positionsart"),"",IF(OR($K26="A",$K26="B"),$L26*(SUM(AA26,AH26,AO26,AV26,BC26)/COUNT(AA26,AH26,AO26,AV26,BC26)),IF($K26="E",$L26*P26))) ->  | W26: =IF($C26="Hinweis","",IF(OR($K26="A",$K26="B"),"Nur EP ",IF($K26="E","E ",IF(AND($L26<>"",V26<>""),$L26*V26,"")))) ->  | X26: =IF(OR($L95="",V26="",$J26="Ausführungsbeschreibung",$J26="Hinweis"),"", IF(AND($V26,$AA26,$AH26,$AO26,$AV26,$BC26)="","", IF(OR($W26="Nur EP ",$K26="E"),(Y26/(AVERAGE($Y26,$AF26,$AM26,$AT26,Y26))-1), IF(AND($W26,$AB26,$AI26,$AP26,$AW26)="","",(W26/(AVERAGE($W26,$AB26,$AI26,$AP26,$AW26)))-1)))) ->  | Y26: =IF(OR($K26="",$K26="H",$K26="AB",$K26="G",$J26="Position",$K26="<-- Bitte Positionsart",V26="",$L26=""),"", IF(OR($K26="A",$K26="B",$K26="E"),$L26*V26)) ->  | AB26: =IF(C26="Hinweis","",IF(OR($K26="A",$K26="B"),"Nur EP ",IF($K26="E","E ",IF(AND($L26<>"",AA26<>""),$L26*AA26,"")))) ->  | AD26: =IF(AC26="","",IF(AC26="X",AB26,AB26*AC26)) ->  | AE26: =IF(OR($L26="",AA26="",$J26="Ausführungsbeschreibung",$J26="Hinweis"),"", IF(AND($AA26,$AH26,$AO26,$AV26,$BC26)="","", IF($L$4="MIT", IF(OR(AB26="Nur EP ",$K26="E"),((AF26/(AVERAGE($AF26,$AM26,$AT26,$BA26,$BH26)))-1), IF($L$4="MIT",((AB26/(AVERAGE($AB26,$AI26,$AP26,$AW26,$BD26)))-1), IF($L$4="MIN", IF(OR(AB26="Nur EP ",$K26="E"),((AF26/(MIN($AF26,$AM26,$AT26,$BA26,$BH26)))-1), IF($L$4="MIN",((AB26/(MIN($AB26,$AI26,$AP26,$AW26,$BD26)))-1)) ))))))) ->  | AF26: =IF(OR($K26="",$K26="H",$K26="AB",$K26="G",$J26="Position",$K26="<-- Bitte Positionsart",AA26="",$L26=""),"", IF(OR($K26="A",$K26="B",$K26="E"),$L26*AA26)) ->  | AI26: =IF(J26="Hinweis","",IF(OR($K26="A",$K26="B"),"Nur EP ",IF($K26="E","E ",IF(AND($L26<>"",AH26<>""),$L26*AH26,"")))) ->  | AK26: =IF(AJ26="","",IF(AJ26="X",AI26,AI26*AJ26)) ->  | AL26: =IF(OR($L26="",AH26="",$J26="Ausführungsbeschreibung",$J26="Hinweis"),"", IF(AND($AA26,$AH26,$AO26,$AV26,$BC26)="","", IF($L$4="MIT", IF(OR(AI26="Nur EP ",$K26="E"),((AM26/(AVERAGE($AF26,$AM26,$AT26,$BA26,$BH26)))-1), IF($L$4="MIT",((AI26/(AVERAGE($AB26,$AI26,$AP26,$AW26,$BD26)))-1), IF($L$4="MIN", IF(OR(AI26="Nur EP ",$K26="E"),((AM26/(MIN($AF26,$AM26,$AT26,$BA26,$BH26)))-1), IF($L$4="MIN",(AI26/(MIN($AB26,$AI26,$AP26,$AW26,$BD26)))-1) ))))))) ->  | AM26: =IF(OR($K26="",$K26="H",$K26="AB",$K26="G",$J26="Position",$K26="<-- Bitte Positionsart",AH26="",$L26=""),"", IF(OR($K26="A",$K26="B",$K26="E"),$L26*AH26)) ->  | AP26: =IF(P26="Hinweis","",IF(OR($K26="A",$K26="B"),"Nur EP ",IF($K26="E","E ",IF(AND($L26<>"",AO26<>""),$L26*AO26,"")))) ->  | AR26: =IF(AQ26="","",IF(AQ26="X",AP26,AP26*AQ26)) ->  | AS26: =IF(OR($L26="",AO26="",$J26="Ausführungsbeschreibung",$J26="Hinweis"),"", IF(AND($AA26,$AH26,$AO26,$AV26,$BC26)="","", IF($L$4="MIT", IF(OR(AP26="Nur EP ",$K26="E"),((AT26/(AVERAGE($AF26,$AM26,$AT26,$BA26,$BH26)))-1), IF($L$4="MIT",((AP26/(AVERAGE($AB26,$AI26,$AP26,$AW26,$BD26)))-1), IF($L$4="MIN", IF(OR(AP26="Nur EP ",$K26="E"),((AT26/(MIN($AF26,$AM26,$AT26,$BA26,$BH26)))-1), IF($L$4="MIN",(AP26/(MIN($AB26,$AI26,$AP26,$AW26,$BD26)))-1) ))))))) ->  | AT26: =IF(OR($K26="",$K26="H",$K26="AB",$K26="G",$J26="Position",$K26="<-- Bitte Positionsart",AO26="",$L26=""),"", IF(OR($K26="A",$K26="B",$K26="E"),$L26*AO26)) ->  | AW26: =IF(W26="Hinweis","",IF(OR($K26="A",$K26="B"),"Nur EP ",IF($K26="E","E ",IF(AND($L26<>"",AV26<>""),$L26*AV26,"")))) ->  | AY26: =IF(AX26="","",IF(AX26="X",AW26,AW26*AX26)) ->  | AZ26: =IF(OR($L26="",AV26="",$J26="Ausführungsbeschreibung",$J26="Hinweis"),"", IF(AND($AA26,$AH26,$AO26,$AV26,$BC26)="","", IF($L$4="MIT", IF(OR(AW26="Nur EP ",$K26="E"),((BA26/(AVERAGE($AF26,$AM26,$AT26,$BA26,$BH26)))-1), IF($L$4="MIT",((AW26/(AVERAGE($AB26,$AI26,$AP26,$AW26,$BD26)))-1), IF($L$4="MIN", IF(OR(AW26="Nur EP ",$K26="E"),((BA26/(MIN($AF26,$AM26,$AT26,$BA26,$BH26)))-1), IF($L$4="MIN",(AW26/(MIN($AB26,$AI26,$AP26,$AW26,$BD26)))-1) ))))))) ->  | BA26: =IF(OR($K26="",$K26="H",$K26="AB",$K26="G",$J26="Position",$K26="<-- Bitte Positionsart",AV26="",$L26=""),"", IF(OR($K26="A",$K26="B",$K26="E"),$L26*AV26)) ->  | BD26: =IF(AD26="Hinweis","",IF(OR($K26="A",$K26="B"),"Nur EP ",IF($K26="E","E ",IF(AND($L26<>"",BC26<>""),$L26*BC26,"")))) ->  | BF26: =IF(BE26="","",IF(BE26="X",BD26,BD26*BE26)) ->  | BG26: =IF(OR($L26="",BC26="",$J26="Ausführungsbeschreibung",$J26="Hinweis"),"", IF(AND($AA26,$AH26,$AO26,$AV26,$BC26)="","", IF($L$4="MIT", IF(OR(BD26="Nur EP ",$K26="E"),((BH26/(AVERAGE($AF26,$AM26,$AT26,$BA26,$BH26)))-1), IF($L$4="MIT",((BD26/(AVERAGE($AB26,$AI26,$AP26,$AW26,$BD26)))-1), IF($L$4="MIN", IF(OR(BD26="Nur EP ",$K26="E"),((BH26/(MIN($AF26,$AM26,$AT26,$BA26,$BH26)))-1), IF($L$4="MIN",(BD26/(MIN($AB26,$AI26,$AP26,$AW26,$BD26)))-1) ))))))) ->  | BH26: =IF(OR($K26="",$K26="H",$K26="AB",$K26="G",$J26="Position",$K26="<-- Bitte Positionsart",BC26="",$L26=""),"", IF(OR($K26="A",$K26="B",$K26="E"),$L26*BC26)) -> 
G27: =G$25 -> 2 | H27: =IF($G27="","",ROW()-ROW(G$25)) -> 2 | I27: Absicherung des geöffneten Dachs gegen Witterungseinflüsse | J27: Position | L27: 1 | M27: pausch. | O27: =IF(OR($K27="B",$K27="A",$K27="H",$K27="AB",$K27="<-- Bitte Positionsart",SUM(AA27,AH27,AO27,AV27,BC27)=0),"",MIN(AA27,AH27,AO27,AV27,BC27)) -> 2000 | P27: =IF(OR($K27="B",$K27="A",$K27="H",$K27="AB",$K27="<-- Bitte Positionsart",SUM(AA27,AH27,AO27,AV27,BC27)=0),"",SUM(AA27,AH27,AO27,AV27,BC27)/COUNT(AA27,AH27,AO27,AV27,BC27)) -> 2603.683333 | Q27: =IF(OR($K27="B",$K27="A",$K27="H",$K27="AB",$K27="<-- Bitte Positionsart",SUM(AA27,AH27,AO27,AV27,BC27)=0),"",MAX(AA27,AH27,AO27,AV27,BC27)) -> 2936.05 | R27: =IF(OR($K27="A",$K27="B"),"Nur EP ",IF($K27="E","E ",IF(AND($L27<>"",P27<>""),$L27*P27,""))) -> 2603.683333 | T27: =IF(OR($K27="",$K27="H",$K27="AB",$K27="G",$K27="<-- Bitte Positionsart"),"",IF(OR($K27="A",$K27="B"),$L27*(SUM(AA27,AH27,AO27,AV27,BC27)/COUNT(AA27,AH27,AO27,AV27,BC27)),IF($K27="E",$L27*P27))) ->  | V27: 1250 | W27: =IF($C27="Hinweis","",IF(OR($K27="A",$K27="B"),"Nur EP ",IF($K27="E","E ",IF(AND($L27<>"",V27<>""),$L27*V27,"")))) -> 1250 | X27: =IF(OR($L96="",V27="",$J27="Ausführungsbeschreibung",$J27="Hinweis"),"", IF(AND($V27,$AA27,$AH27,$AO27,$AV27,$BC27)="","", IF(OR($W27="Nur EP ",$K27="E"),(Y27/(AVERAGE($Y27,$AF27,$AM27,$AT27,Y27))-1), IF(AND($W27,$AB27,$AI27,$AP27,$AW27)="","",(W27/(AVERAGE($W27,$AB27,$AI27,$AP27,$AW27)))-1)))) -> -0.4481875721 | Y27: =IF(OR($K27="",$K27="H",$K27="AB",$K27="G",$J27="Position",$K27="<-- Bitte Positionsart",V27="",$L27=""),"", IF(OR($K27="A",$K27="B",$K27="E"),$L27*V27)) ->  | AA27: 2875 | AB27: 2875 | AE27: 0.1042049404 | AF27: =IF(OR($K27="",$K27="H",$K27="AB",$K27="G",$J27="Position",$K27="<-- Bitte Positionsart",AA27="",$L27=""),"", IF(OR($K27="A",$K27="B",$K27="E"),$L27*AA27)) ->  | AH27: 2936.05 | AI27: 2936.05 | AL27: =IF(OR($L27="",AH27="",$J27="Ausführungsbeschreibung",$J27="Hinweis"),"", IF(AND($AA27,$AH27,$AO27,$AV27,$BC27)="","", IF($L$4="MIT", IF(OR(AI27="Nur EP ",$K27="E"),((AM27/(AVERAGE($AF27,$AM27,$AT27,$BA27,$BH27)))-1), IF($L$4="MIT",((AI27/(AVERAGE($AB27,$AI27,$AP27,$AW27,$BD27)))-1), IF($L$4="MIN", IF(OR(AI27="Nur EP ",$K27="E"),((AM27/(MIN($AF27,$AM27,$AT27,$BA27,$BH27)))-1), IF($L$4="MIN",(AI27/(MIN($AB27,$AI27,$AP27,$AW27,$BD27)))-1) ))))))) -> 0.1276524923 | AO27: 2000 | AP27: 2000 | AS27: =IF(OR($L27="",AO27="",$J27="Ausführungsbeschreibung",$J27="Hinweis"),"", IF(AND($AA27,$AH27,$AO27,$AV27,$BC27)="","", IF($L$4="MIT", IF(OR(AP27="Nur EP ",$K27="E"),((AT27/(AVERAGE($AF27,$AM27,$AT27,$BA27,$BH27)))-1), IF($L$4="MIT",((AP27/(AVERAGE($AB27,$AI27,$AP27,$AW27,$BD27)))-1), IF($L$4="MIN", IF(OR(AP27="Nur EP ",$K27="E"),((AT27/(MIN($AF27,$AM27,$AT27,$BA27,$BH27)))-1), IF($L$4="MIN",(AP27/(MIN($AB27,$AI27,$AP27,$AW27,$BD27)))-1) ))))))) -> -0.2318574327 | AT27: =IF(OR($K27="",$K27="H",$K27="AB",$K27="G",$J27="Position",$K27="<-- Bitte Positionsart",AO27="",$L27=""),"", IF(OR($K27="A",$K27="B",$K27="E"),$L27*AO27)) ->  | AW27: =IF(W27="Hinweis","",IF(OR($K27="A",$K27="B"),"Nur EP ",IF($K27="E","E ",IF(AND($L27<>"",AV27<>""),$L27*AV27,"")))) ->  | AY27: =IF(AX27="","",IF(AX27="X",AW27,AW27*AX27)) ->  | AZ27: =IF(OR($L27="",AV27="",$J27="Ausführungsbeschreibung",$J27="Hinweis"),"", IF(AND($AA27,$AH27,$AO27,$AV27,$BC27)="","", IF($L$4="MIT", IF(OR(AW27="Nur EP ",$K27="E"),((BA27/(AVERAGE($AF27,$AM27,$AT27,$BA27,$BH27)))-1), IF($L$4="MIT",((AW27/(AVERAGE($AB27,$AI27,$AP27,$AW27,$BD27)))-1), IF($L$4="MIN", IF(OR(AW27="Nur EP ",$K27="E"),((BA27/(MIN($AF27,$AM27,$AT27,$BA27,$BH27)))-1), IF($L$4="MIN",(AW27/(MIN($AB27,$AI27,$AP27,$AW27,$BD27)))-1) ))))))) ->  | BA27: =IF(OR($K27="",$K27="H",$K27="AB",$K27="G",$J27="Position",$K27="<-- Bitte Positionsart",AV27="",$L27=""),"", IF(OR($K27="A",$K27="B",$K27="E"),$L27*AV27)) ->  | BG27: =IF(OR($L27="",BC27="",$J27="Ausführungsbeschreibung",$J27="Hinweis"),"", IF(AND($AA27,$AH27,$AO27,$AV27,$BC27)="","", IF($L$4="MIT", IF(OR(BD27="Nur EP ",$K27="E"),((BH27/(AVERAGE($AF27,$AM27,$AT27,$BA27,$BH27)))-1), IF($L$4="MIT",((BD27/(AVERAGE($AB27,$AI27,$AP27,$AW27,$BD27)))-1), IF($L$4="MIN", IF(OR(BD27="Nur EP ",$K27="E"),((BH27/(MIN($AF27,$AM27,$AT27,$BA27,$BH27)))-1), IF($L$4="MIN",(BD27/(MIN($AB27,$AI27,$AP27,$AW27,$BD27)))-1) ))))))) ->  | BH27: =IF(OR($K27="",$K27="H",$K27="AB",$K27="G",$J27="Position",$K27="<-- Bitte Positionsart",BC27="",$L27=""),"", IF(OR($K27="A",$K27="B",$K27="E"),$L27*BC27)) -> 
G28: =G$25 -> 2 | H28: 3 | I28: Abschnittweiser Abriss der Pfannendeckung auf den geneigten Dachflächen | J28: Position | L28: 200 | M28: qm | O28: 18.1 | P28: 23.97 | Q28: 26.92 | R28: 4794 | V28: 30 | W28: =IF($C28="Hinweis","",IF(OR($K28="A",$K28="B"),"Nur EP ",IF($K28="E","E ",IF(AND($L28<>"",V28<>""),$L28*V28,"")))) -> 6000 | X28: 0.1775095673 | AA28: 26.92 | AB28: 5384 | AE28: 0.1230705048 | AF28: =IF(OR($K28="",$K28="H",$K28="AB",$K28="G",$J28="Position",$K28="<-- Bitte Positionsart",AA28="",$L28=""),"", IF(OR($K28="A",$K28="B",$K28="E"),$L28*AA28)) ->  | AH28: 26.89 | AI28: 5378 | AL28: 0.1218189403 | AO28: 18.1 | AP28: 3620 | AS28: -0.2448894451 | AT28: =IF(OR($K28="",$K28="H",$K28="AB",$K28="G",$J28="Position",$K28="<-- Bitte Positionsart",AO28="",$L28=""),"", IF(OR($K28="A",$K28="B",$K28="E"),$L28*AO28)) -> 
G29: 2 | H29: 4 | I29: Abriss u. Entsorgung der Dachrinnen | J29: Position | L29: 60.5 | M29: m | O29: 6.45 | P29: 8.433333333 | Q29: 12.3 | R29: 510.2166667 | V29: 15 | W29: 907.5 | X29: 0.4888337469 | AA29: 6.45 | AB29: 390.225 | AE29: -0.2351778656 | AH29: 6.55 | AI29: 396.275 | AL29: -0.2233201581 | AO29: 12.3 | AP29: =IF(P29="Hinweis","",IF(OR($K29="A",$K29="B"),"Nur EP ",IF($K29="E","E ",IF(AND($L29<>"",AO29<>""),$L29*AO29,"")))) -> 744.15 | AR29: =IF(AQ29="","",IF(AQ29="X",AP29,AP29*AQ29)) ->  | AS29: 0.4584980237
G30: 2 | H30: 5 | I30: Rückbau der Fallrohranschlüsse | J30: Position | L30: 7 | M30: Stck. | O30: 2.78 | P30: 8.653333333 | Q30: 20 | R30: 60.57333333 | V30: 15 | W30: 105 | X30: 0.46484375 | AA30: 3.18 | AB30: 22.26 | AE30: -0.6325115562 | AH30: 2.78 | AI30: 19.46 | AK30: =IF(AJ30="","",IF(AJ30="X",AI30,AI30*AJ30)) ->  | AL30: -0.6787365177 | AO30: 20 | AP30: 140 | AS30: 1.311248074
G31: 2 | H31: 6 | I31: Sicherstellung von Belichtung u. Belüftung über die Dachflächenfenster | J31: Hinweis | K31: H | AB31: =IF(C31="Hinweis","",IF(OR($K31="A",$K31="B"),"Nur EP ",IF($K31="E","E ",IF(AND($L31<>"",AA31<>""),$L31*AA31,"")))) ->  | AD31: =IF(AC31="","",IF(AC31="X",AB31,AB31*AC31)) ->  | AT31: =IF(OR($K31="",$K31="H",$K31="AB",$K31="G",$J31="Position",$K31="<-- Bitte Positionsart",AO31="",$L31=""),"", IF(OR($K31="A",$K31="B",$K31="E"),$L31*AO31)) ->  | BD31: =IF(AD31="Hinweis","",IF(OR($K31="A",$K31="B"),"Nur EP ",IF($K31="E","E ",IF(AND($L31<>"",BC31<>""),$L31*BC31,"")))) ->  | BF31: =IF(BE31="","",IF(BE31="X",BD31,BD31*BE31)) -> 
G32: 2 | H32: 7 | I32: Ausbau und Entsorgung Dachflächenfenster | J32: Position | L32: 4 | M32: Stck. | O32: 110 | P32: 131.7233333 | Q32: 146.65 | R32: 526.8933333 | V32: 125 | W32: 500 | AA32: 138.52 | AB32: 554.08 | AE32: 0.05159804641 | AH32: 146.65 | AI32: 586.6 | AL32: 0.1133183187 | AO32: 110 | AP32: 440 | AS32: -0.1649163651 | BH32: =IF(OR($K32="",$K32="H",$K32="AB",$K32="G",$J32="Position",$K32="<-- Bitte Positionsart",BC32="",$L32=""),"", IF(OR($K32="A",$K32="B",$K32="E"),$L32*BC32)) -> 
G33: 2 | H33: 8 | I33: Ausbau und Entsorgung alter Mineralwolldämmung | J33: Bedarfsposition | K33: B | L33: 65 | M33: qm | R33: Nur EP | T33: 748.8 | V33: 17.5 | W33: Nur EP | Y33: 1137.5 | AA33: 14.03 | AB33: Nur EP | AE33: 0.2178819444 | AF33: =IF(OR($K33="",$K33="H",$K33="AB",$K33="G",$J33="Position",$K33="<-- Bitte Positionsart",AA33="",$L33=""),"", IF(OR($K33="A",$K33="B",$K33="E"),$L33*AA33)) -> 911.95 | AH33: 14.03 | AI33: Nur EP | AL33: 0.2178819444 | AM33: 911.95 | AO33: 6.5 | AP33: Nur EP | AS33: -0.4357638889 | AT33: 422.5 | AW33: Nur EP | BD33: Nur EP | BK33: =AP43/(MIN($AB43,$AI43,$AP43,$AW43,$BD43)) -> 1
G34: 2 | H34: 9 | BK34: =MIN($AB43,$AI43,$AP43,$AW43,$BD43) -> 4050
G35: 2 | H35: 10 | K35: =IF(J35="Position","",IF(J35="Grundposition","G",IF(J35="Alternativposition","A",IF(J35="Bedarfsposition","B",IF(J35="Hinweis","H",IF(J35="Ausführungsbeschreibung","AB",IF(J35="Entfällt","E",IF(AND(I35<>"",L35<>""),"<-- Bitte Positionsart","")))))))) -> 
G36: 2 | H36: =IF($G36="","",ROW()-ROW(G$25)) -> 11 | K36: =IF(J36="Position","",IF(J36="Grundposition","G",IF(J36="Alternativposition","A",IF(J36="Bedarfsposition","B",IF(J36="Hinweis","H",IF(J36="Ausführungsbeschreibung","AB",IF(J36="Entfällt","E",IF(AND(I36<>"",L36<>""),"<-- Bitte Positionsart","")))))))) ->  | X36: =IF(OR($L105="",V36="",$J36="Ausführungsbeschreibung",$J36="Hinweis"),"", IF(AND($V36,$AA36,$AH36,$AO36,$AV36,$BC36)="","", IF(OR($W36="Nur EP ",$K36="E"),(Y36/(AVERAGE($Y36,$AF36,$AM36,$AT36,Y36))-1), IF(AND($W36,$AB36,$AI36,$AP36,$AW36)="","",(W36/(AVERAGE($W36,$AB36,$AI36,$AP36,$AW36)))-1)))) ->  | Y36: =IF(OR($K36="",$K36="H",$K36="AB",$K36="G",$J36="Position",$K36="<-- Bitte Positionsart",V36="",$L36=""),"", IF(OR($K36="A",$K36="B",$K36="E"),$L36*V36)) ->  | AB36: =IF(C36="Hinweis","",IF(OR($K36="A",$K36="B"),"Nur EP ",IF($K36="E","E ",IF(AND($L36<>"",AA36<>""),$L36*AA36,"")))) ->  | AD36: =IF(AC36="","",IF(AC36="X",AB36,AB36*AC36)) ->  | AF36: =IF(OR($K36="",$K36="H",$K36="AB",$K36="G",$J36="Position",$K36="<-- Bitte Positionsart",AA36="",$L36=""),"", IF(OR($K36="A",$K36="B",$K36="E"),$L36*AA36)) ->  | AK36: =IF(AJ36="","",IF(AJ36="X",AI36,AI36*AJ36)) ->  | AL36: =IF(OR($L36="",AH36="",$J36="Ausführungsbeschreibung",$J36="Hinweis"),"", IF(AND($AA36,$AH36,$AO36,$AV36,$BC36)="","", IF($L$4="MIT", IF(OR(AI36="Nur EP ",$K36="E"),((AM36/(AVERAGE($AF36,$AM36,$AT36,$BA36,$BH36)))-1), IF($L$4="MIT",((AI36/(AVERAGE($AB36,$AI36,$AP36,$AW36,$BD36)))-1), IF($L$4="MIN", IF(OR(AI36="Nur EP ",$K36="E"),((AM36/(MIN($AF36,$AM36,$AT36,$BA36,$BH36)))-1), IF($L$4="MIN",(AI36/(MIN($AB36,$AI36,$AP36,$AW36,$BD36)))-1) ))))))) ->  | AP36: =IF(P36="Hinweis","",IF(OR($K36="A",$K36="B"),"Nur EP ",IF($K36="E","E ",IF(AND($L36<>"",AO36<>""),$L36*AO36,"")))) ->  | AR36: =IF(AQ36="","",IF(AQ36="X",AP36,AP36*AQ36)) ->  | AT36: =IF(OR($K36="",$K36="H",$K36="AB",$K36="G",$J36="Position",$K36="<-- Bitte Positionsart",AO36="",$L36=""),"", IF(OR($K36="A",$K36="B",$K36="E"),$L36*AO36)) ->  | BD36: =IF(AD36="Hinweis","",IF(OR($K36="A",$K36="B"),"Nur EP ",IF($K36="E","E ",IF(AND($L36<>"",BC36<>""),$L36*BC36,"")))) ->  | BF36: =IF(BE36="","",IF(BE36="X",BD36,BD36*BE36)) ->  | BH36: =IF(OR($K36="",$K36="H",$K36="AB",$K36="G",$J36="Position",$K36="<-- Bitte Positionsart",BC36="",$L36=""),"", IF(OR($K36="A",$K36="B",$K36="E"),$L36*BC36)) -> 
G37: 2 | H37: 12 | K37: =IF(J37="Position","",IF(J37="Grundposition","G",IF(J37="Alternativposition","A",IF(J37="Bedarfsposition","B",IF(J37="Hinweis","H",IF(J37="Ausführungsbeschreibung","AB",IF(J37="Entfällt","E",IF(AND(I37<>"",L37<>""),"<-- Bitte Positionsart","")))))))) -> 
G38: 2 | H38: 13 | K38: =IF(J38="Position","",IF(J38="Grundposition","G",IF(J38="Alternativposition","A",IF(J38="Bedarfsposition","B",IF(J38="Hinweis","H",IF(J38="Ausführungsbeschreibung","AB",IF(J38="Entfällt","E",IF(AND(I38<>"",L38<>""),"<-- Bitte Positionsart","")))))))) -> 
G39: 2 | H39: 14 | W39: =IF($C39="Hinweis","",IF(OR($K39="A",$K39="B"),"Nur EP ",IF($K39="E","E ",IF(AND($L39<>"",V39<>""),$L39*V39,"")))) ->  | AI39: =IF(J39="Hinweis","",IF(OR($K39="A",$K39="B"),"Nur EP ",IF($K39="E","E ",IF(AND($L39<>"",AH39<>""),$L39*AH39,"")))) ->  | AM39: =IF(OR($K39="",$K39="H",$K39="AB",$K39="G",$J39="Position",$K39="<-- Bitte Positionsart",AH39="",$L39=""),"", IF(OR($K39="A",$K39="B",$K39="E"),$L39*AH39)) -> 
W40: =IF(OR($K40="A",$K40="B"),"Nur EP ",IF($K40="E","",IF(AND($L40<>"",V40<>""),$L40*V40,""))) ->  | Y40: =IF($K40="Ja",IF(AND($L40<>"",V40<>""),$L40*V40),"") ->  | AA40: EP / % Titel | AB40: Positions- / Titelsumme | AD40: =IF(AC40="","",IF(AC40="X",AB40,AB40*AC40)) ->  | AF40: =IF($K40="Ja",IF(AND($L40<>"",AA40<>""),$L40*AA40),"") ->  | AH40: EP / % Titel | AI40: Positions- / Titelsumme | AK40: =IF(AJ40="","",IF(AJ40="X",AI40,AI40*AJ40)) ->  | AM40: =IF($K40="Ja",IF(AND($L40<>"",AH40<>""),$L40*AH40),"") ->  | AO40: EP / % Titel | AP40: Positions- / Titelsumme | AR40: =IF(AQ40="","",IF(AQ40="X",AP40,AP40*AQ40)) ->  | AT40: =IF($K40="Ja",IF(AND($L40<>"",AO40<>""),$L40*AO40),"") ->  | AV40: EP / % Titel | AW40: Positions- / Titelsumme | AY40: =IF(AX40="","",IF(AX40="X",AW40,AW40*AX40)) ->  | BA40: =IF($K40="Ja",IF(AND($L40<>"",AV40<>""),$L40*AV40),"") ->  | BC40: EP / % Titel | BD40: Positions- / Titelsumme | BF40: =IF(BE40="","",IF(BE40="X",BD40,BD40*BE40)) ->  | BH40: =IF($K40="Ja",IF(AND($L40<>"",BC40<>""),$L40*BC40),"") -> 
G41: 3 | I41: Abriss /Rückbau /Neueinbau im Bereich des Flachdachs mit Folienabdichtung | O41: =CONCATENATE("Titelsumme",CHAR(10),"MIN",CHAR(10),TEXT(SUMPRODUCT($L42:$L63,O42:O63),"##.##0,00")," €") -> Titelsumme MIN 5.205,00 € | P41: =CONCATENATE("Titelsumme",CHAR(10),"MIT",CHAR(10),TEXT(SUMPRODUCT($L42:$L63,P42:P63),"##.##0,00")," €") -> Titelsumme MIT 9.224,19 € | Q41: =CONCATENATE("Titelsumme",CHAR(10),"MAX",CHAR(10),TEXT(SUMPRODUCT($L42:$L63,Q42:Q63),"##.##0,00")," €") -> Titelsumme MAX 11.446,60 € | R41: =SUM(R42:R63) -> 9224.193333 | T41: =SUM(T42:T63) -> 244.36 | W41: =SUM(W42:W63) -> 4975 | Y41: =SUM(Y42:Y63) -> 250 | AA41: =IF(AB41=0,"", IF($L$4="MIT",((AB41/(AVERAGE($AB41,$AI41,$AP41,$AW41,$BD41)))-1)*100,)) -> 99.13177593 | AB41: =SUM(AB42:AB63) -> 11020.98 | AF41: =SUM(AF42:AF63) -> 311.54 | AH41: =IF(AI41=0,"", IF($L$4="MIT",((AI41/(AVERAGE($AB41,$AI41,$AP41,$AW41,$BD41)))-1)*100,)) -> 106.82206 | AI41: =SUM(AI42:AI63) -> 11446.6 | AM41: =SUM(AM42:AM63) -> 311.54 | AO41: =IF(AP41=0,"", IF($L$4="MIT",((AP41/(AVERAGE($AB41,$AI41,$AP41,$AW41,$BD41)))-1)*100,)) -> -5.953835891 | AP41: =SUM(AP42:AP63) -> 5205 | AT41: =SUM(AT42:AT63) -> 110 | AV41: =IF(AW41=0,"", IF($L$4="MIT",((AW41/(AVERAGE($AB41,$AI41,$AP41,$AW41,$BD41)))-1)*100,)) ->  | AW41: =SUM(AW42:AW63) -> 0 | BA41: =SUM(BA42:BA63) -> 0 | BC41: =IF(BD41=0,"", IF($L$4="MIT",((BD41/(AVERAGE($AB41,$AI41,$AP41,$AW41,$BD41)))-1)*100,)) ->  | BD41: =SUM(BD42:BD63) -> 0 | BH41: =SUM(BH42:BH63) -> 0
G42: =G$41 -> 3 | H42: =IF($G42="","",ROW()-ROW(G$41)) -> 1 | I42: Hinweis zu vorhandener Mineralwolldämmung | J42: Hinweis | K42: =IF(J42="Position","",IF(J42="Grundposition","G",IF(J42="Alternativposition","A",IF(J42="Bedarfsposition","B",IF(J42="Hinweis","H",IF(J42="Ausführungsbeschreibung","AB",IF(J42="Entfällt","E",IF(AND(I42<>"",L42<>""),"<-- Bitte Positionsart","")))))))) -> H | O42: =IF(OR($K42="B",$K42="A",$K42="H",$K42="AB",$K42="<-- Bitte Positionsart",SUM(AA42,AH42,AO42,AV42,BC42)=0),"",MIN(AA42,AH42,AO42,AV42,BC42)) ->  | P42: =IF(OR($K42="B",$K42="A",$K42="H",$K42="AB",$K42="<-- Bitte Positionsart",SUM(AA42,AH42,AO42,AV42,BC42)=0),"",SUM(AA42,AH42,AO42,AV42,BC42)/COUNT(AA42,AH42,AO42,AV42,BC42)) ->  | Q42: =IF(OR($K42="B",$K42="A",$K42="H",$K42="AB",$K42="<-- Bitte Positionsart",SUM(AA42,AH42,AO42,AV42,BC42)=0),"",MAX(AA42,AH42,AO42,AV42,BC42)) ->  | R42: =IF(OR($K42="A",$K42="B"),"Nur EP ",IF($K42="E","E ",IF(AND($L42<>"",P42<>""),$L42*P42,""))) ->  | T42: =IF(OR($K42="",$K42="H",$K42="AB",$K42="G",$K42="<-- Bitte Positionsart"),"",IF(OR($K42="A",$K42="B"),$L42*(SUM(AA42,AH42,AO42,AV42,BC42)/COUNT(AA42,AH42,AO42,AV42,BC42)),IF($K42="E",$L42*P42))) ->  | W42: =IF(OR($K42="A",$K42="B"),"Nur EP ",IF($K42="E","E ",IF(AND($L42<>"",V42<>""),$L42*V42,""))) ->  | X42: =IF(OR($L111="",V42="",$J42="Ausführungsbeschreibung",$J42="Hinweis"),"", IF(AND($V42,$AA42,$AH42,$AO42,$AV42,$BC42)="","", IF(OR($W42="Nur EP ",$K42="E"),(Y42/(AVERAGE($Y42,$AF42,$AM42,$AT42,Y42))-1), IF(AND($W42,$AB42,$AI42,$AP42,$AW42)="","",(W42/(AVERAGE($W42,$AB42,$AI42,$AP42,$AW42)))-1)))) ->  | Y42: =IF(OR($K42="",$K42="H",$K42="AB",$K42="G",$J42="Position",$K42="<-- Bitte Positionsart",V42="",$L42=""),"", IF(OR($K42="A",$K42="B",$K42="E"),$L42*V42)) ->  | AB42: =IF(C42="Hinweis","",IF(OR($K42="A",$K42="B"),"Nur EP ",IF($K42="E","E ",IF(AND($L42<>"",AA42<>""),$L42*AA42,"")))) ->  | AD42: =IF(AC42="","",IF(AC42="X",AB42,AB42*AC42)) ->  | AE42: =IF(OR($L42="",AA42="",$J42="Ausführungsbeschreibung",$J42="Hinweis"),"", IF(AND($AA42,$AH42,$AO42,$AV42,$BC42)="","", IF($L$4="MIT", IF(OR(AB42="Nur EP ",$K42="E"),((AF42/(AVERAGE($AF42,$AM42,$AT42,$BA42,$BH42)))-1), IF($L$4="MIT",((AB42/(AVERAGE($AB42,$AI42,$AP42,$AW42,$BD42)))-1), IF($L$4="MIN", IF(OR(AB42="Nur EP ",$K42="E"),((AF42/(MIN($AF42,$AM42,$AT42,$BA42,$BH42)))-1), IF($L$4="MIN",((AB42/(MIN($AB42,$AI42,$AP42,$AW42,$BD42)))-1)) ))))))) ->  | AF42: =IF(OR($K42="",$K42="H",$K42="AB",$K42="G",$J42="Position",$K42="<-- Bitte Positionsart",AA42="",$L42=""),"", IF(OR($K42="A",$K42="B",$K42="E"),$L42*AA42)) ->  | AI42: =IF(J42="Hinweis","",IF(OR($K42="A",$K42="B"),"Nur EP ",IF($K42="E","E ",IF(AND($L42<>"",AH42<>""),$L42*AH42,"")))) ->  | AK42: =IF(AJ42="","",IF(AJ42="X",AI42,AI42*AJ42)) ->  | AL42: =IF(OR($L42="",AH42="",$J42="Ausführungsbeschreibung",$J42="Hinweis"),"", IF(AND($AA42,$AH42,$AO42,$AV42,$BC42)="","", IF($L$4="MIT", IF(OR(AI42="Nur EP ",$K42="E"),((AM42/(AVERAGE($AF42,$AM42,$AT42,$BA42,$BH42)))-1)*100, IF($L$4="MIT",((AI42/(AVERAGE($AB42,$AI42,$AP42,$AW42,$BD42)))-1)*100, IF($L$4="MIN", IF(OR(AI42="Nur EP ",$K42="E"),((AM42/(MIN($AF42,$AM42,$AT42,$BA42,$BH42)))-1)*100, IF($L$4="MIN",(AI42/(MIN($AB42,$AI42,$AP42,$AW42,$BD42)))-1)*100 ))))))) ->  | AM42: =IF(OR($K42="",$K42="H",$K42="AB",$K42="G",$J42="Position",$K42="<-- Bitte Positionsart",AH42="",$L42=""),"", IF(OR($K42="A",$K42="B",$K42="E"),$L42*AH42)) ->  | AP42: =IF(P42="Hinweis","",IF(OR($K42="A",$K42="B"),"Nur EP ",IF($K42="E","E ",IF(AND($L42<>"",AO42<>""),$L42*AO42,"")))) ->  | AR42: =IF(AQ42="","",IF(AQ42="X",AP42,AP42*AQ42)) ->  | AS42: =IF(OR($L42="",AO42="",$J42="Ausführungsbeschreibung",$J42="Hinweis"),"", IF(AND($AA42,$AH42,$AO42,$AV42,$BC42)="","", IF($L$4="MIT", IF(OR(AP42="Nur EP ",$K42="E"),((AT42/(AVERAGE($AF42,$AM42,$AT42,$BA42,$BH42)))-1), IF($L$4="MIT",((AP42/(AVERAGE($AB42,$AI42,$AP42,$AW42,$BD42)))-1), IF($L$4="MIN", IF(OR(AP42="Nur EP ",$K42="E"),((AT42/(MIN($AF42,$AM42,$AT42,$BA42,$BH42)))-1), IF($L$4="MIN",(AP42/(MIN($AB42,$AI42,$AP42,$AW42,$BD42)))-1) ))))))) ->  | AT42: =IF(OR($K42="",$K42="H",$K42="AB",$K42="G",$J42="Position",$K42="<-- Bitte Positionsart",AO42="",$L42=""),"", IF(OR($K42="A",$K42="B",$K42="E"),$L42*AO42)) ->  | AW42: =IF(W42="Hinweis","",IF(OR($K42="A",$K42="B"),"Nur EP ",IF($K42="E","E ",IF(AND($L42<>"",AV42<>""),$L42*AV42,"")))) ->  | AZ42: =IF(OR($L42="",AV42="",$J42="Ausführungsbeschreibung",$J42="Hinweis"),"", IF(AND($AA42,$AH42,$AO42,$AV42,$BC42)="","", IF($L$4="MIT", IF(OR(AW42="Nur EP ",$K42="E"),((BA42/(AVERAGE($AF42,$AM42,$AT42,$BA42,$BH42)))-1), IF($L$4="MIT",((AW42/(AVERAGE($AB42,$AI42,$AP42,$AW42,$BD42)))-1), IF($L$4="MIN", IF(OR(AW42="Nur EP ",$K42="E"),((BA42/(MIN($AF42,$AM42,$AT42,$BA42,$BH42)))-1), IF($L$4="MIN",(AW42/(MIN($AB42,$AI42,$AP42,$AW42,$BD42)))-1) ))))))) ->  | BA42: =IF(OR($K42="",$K42="H",$K42="AB",$K42="G",$J42="Position",$K42="<-- Bitte Positionsart",AV42="",$L42=""),"", IF(OR($K42="A",$K42="B",$K42="E"),$L42*AV42)) ->  | BD42: =IF(AD42="Hinweis","",IF(OR($K42="A",$K42="B"),"Nur EP ",IF($K42="E","E ",IF(AND($L42<>"",BC42<>""),$L42*BC42,"")))) ->  | BG42: =IF(OR($L42="",BC42="",$J42="Ausführungsbeschreibung",$J42="Hinweis"),"", IF(AND($AA42,$AH42,$AO42,$AV42,$BC42)="","", IF($L$4="MIT", IF(OR(BD42="Nur EP ",$K42="E"),((BH42/(AVERAGE($AF42,$AM42,$AT42,$BA42,$BH42)))-1), IF($L$4="MIT",((BD42/(AVERAGE($AB42,$AI42,$AP42,$AW42,$BD42)))-1), IF($L$4="MIN", IF(OR(BD42="Nur EP ",$K42="E"),((BH42/(MIN($AF42,$AM42,$AT42,$BA42,$BH42)))-1), IF($L$4="MIN",((BD42/(MIN($AB42,$AI42,$AP42,$AW42,$BD42)))-1)) ))))))) ->  | BH42: =IF(OR($K42="",$K42="H",$K42="AB",$K42="G",$J42="Position",$K42="<-- Bitte Positionsart",BC42="",$L42=""),"", IF(OR($K42="A",$K42="B",$K42="E"),$L42*BC42)) -> 
G43: 3 | H43: =IF($G43="","",ROW()-ROW(G$41)) -> 2 | I43: Abschnittweiser Abriss /Rückbau der PVC Folienabdichtung Flachdach samt Flies | J43: Position | L43: 150 | M43: qm | O43: 27 | P43: 41.55 | Q43: 49.1 | R43: 6232.5 | V43: 25 | W43: 3750 | X43: =IF(OR($L112="",V43="",$J43="Ausführungsbeschreibung",$J43="Hinweis"),"", IF(AND($V43,$AA43,$AH43,$AO43,$AV43,$BC43)="","", IF(OR($W43="Nur EP ",$K43="E"),(Y43/(AVERAGE($Y43,$AF43,$AM43,$AT43,Y43))-1), IF(AND($W43,$AB43,$AI43,$AP43,$AW43)="","",(W43/(AVERAGE($W43,$AB43,$AI43,$AP43,$AW43)))-1)))) -> -0.3317741397 | Y43: =IF(OR($K43="",$K43="H",$K43="AB",$K43="G",$J43="Position",$K43="<-- Bitte Positionsart",V43="",$L43=""),"", IF(OR($K43="A",$K43="B",$K43="E"),$L43*V43)) ->  | AA43: 48.55 | AB43: 7282.5 | AE43: =IF(OR($L43="",AA43="",$J43="Ausführungsbeschreibung",$J43="Hinweis"),"", IF(AND($AA43,$AH43,$AO43,$AV43,$BC43)="","", IF($L$4="MIT", IF(OR(AB43="Nur EP ",$K43="E"),(AF43/(AVERAGE($AF43,$AM43,$AT43,$BA43,$BH43)))-1, IF($L$4="MIT",(AB43/(AVERAGE($AB43,$AI43,$AP43,$AW43,$BD43)))-1, IF($L$4="MIN", IF(OR(AB43="Nur EP ",$K43="E"),(AF43/(MIN($AF43,$AM43,$AT43,$BA43,$BH43)))-1, IF($L$4="MIN",AB43/(MIN($AB43,$AI43,$AP43,$AW43,$BD43))-1) ))))))) -> 0.1684717208 | AF43: =IF(OR($K43="",$K43="H",$K43="AB",$K43="G",$J43="Position",$K43="<-- Bitte Positionsart",AA43="",$L43=""),"", IF(OR($K43="A",$K43="B",$K43="E"),$L43*AA43)) ->  | AH43: 49.1 | AI43: 7365 | AL43: =IF(OR($L43="",AH43="",$J43="Ausführungsbeschreibung",$J43="Hinweis"),"", IF(AND($AA43,$AH43,$AO43,$AV43,$BC43)="","", IF($L$4="MIT", IF(OR(AI43="Nur EP ",$K43="E"),((AM43/(AVERAGE($AF43,$AM43,$AT43,$BA43,$BH43)))-1), IF($L$4="MIT",((AI43/(AVERAGE($AB43,$AI43,$AP43,$AW43,$BD43)))-1), IF($L$4="MIN", IF(OR(AI43="Nur EP ",$K43="E"),((AM43/(MIN($AF43,$AM43,$AT43,$BA43,$BH43)))-1), IF($L$4="MIN",(AI43/(MIN($AB43,$AI43,$AP43,$AW43,$BD43)))-1) ))))))) -> 0.1817087846 | AM43: =IF(OR($K43="",$K43="H",$K43="AB",$K43="G",$J43="Position",$K43="<-- Bitte Positionsart",AH43="",$L43=""),"", IF(OR($K43="A",$K43="B",$K43="E"),$L43*AH43)) ->  | AO43: 27 | AP43: 4050 | AS43: =IF(OR($L43="",AO43="",$J43="Ausführungsbeschreibung",$J43="Hinweis"),"", IF(AND($AA43,$AH43,$AO43,$AV43,$BC43)="","", IF($L$4="MIT", IF(OR(AP43="Nur EP ",$K43="E"),((AT43/(AVERAGE($AF43,$AM43,$AT43,$BA43,$BH43)))-1), IF($L$4="MIT",((AP43/(AVERAGE($AB43,$AI43,$AP43,$AW43,$BD43)))-1), IF($L$4="MIN", IF(OR(AP43="Nur EP ",$K43="E"),((AT43/(MIN($AF43,$AM43,$AT43,$BA43,$BH43)))-1), IF($L$4="MIN",(AP43/(MIN($AB43,$AI43,$AP43,$AW43,$BD43)))-1) ))))))) -> -0.3501805054 | AT43: =IF(OR($K43="",$K43="H",$K43="AB",$K43="G",$J43="Position",$K43="<-- Bitte Positionsart",AO43="",$L43=""),"", IF(OR($K43="A",$K43="B",$K43="E"),$L43*AO43)) ->  | AZ43: =IF(OR($L43="",AV43="",$J43="Ausführungsbeschreibung",$J43="Hinweis"),"", IF(AND($AA43,$AH43,$AO43,$AV43,$BC43)="","", IF($L$4="MIT", IF(OR(AW43="Nur EP ",$K43="E"),((BA43/(AVERAGE($AF43,$AM43,$AT43,$BA43,$BH43)))-1), IF($L$4="MIT",((AW43/(AVERAGE($AB43,$AI43,$AP43,$AW43,$BD43)))-1), IF($L$4="MIN", IF(OR(AW43="Nur EP ",$K43="E"),((BA43/(MIN($AF43,$AM43,$AT43,$BA43,$BH43)))-1), IF($L$4="MIN",(AW43/(MIN($AB43,$AI43,$AP43,$AW43,$BD43)))-1) ))))))) ->  | BA43: =IF(OR($K43="",$K43="H",$K43="AB",$K43="G",$J43="Position",$K43="<-- Bitte Positionsart",AV43="",$L43=""),"", IF(OR($K43="A",$K43="B",$K43="E"),$L43*AV43)) ->  | BG43: =IF(OR($L43="",BC43="",$J43="Ausführungsbeschreibung",$J43="Hinweis"),"", IF(AND($AA43,$AH43,$AO43,$AV43,$BC43)="","", IF($L$4="MIT", IF(OR(BD43="Nur EP ",$K43="E"),((BH43/(AVERAGE($AF43,$AM43,$AT43,$BA43,$BH43)))-1), IF($L$4="MIT",((BD43/(AVERAGE($AB43,$AI43,$AP43,$AW43,$BD43)))-1), IF($L$4="MIN", IF(OR(BD43="Nur EP ",$K43="E"),((BH43/(MIN($AF43,$AM43,$AT43,$BA43,$BH43)))-1), IF($L$4="MIN",((BD43/(MIN($AB43,$AI43,$AP43,$AW43,$BD43)))-1)) ))))))) ->  | BH43: =IF(OR($K43="",$K43="H",$K43="AB",$K43="G",$J43="Position",$K43="<-- Bitte Positionsart",BC43="",$L43=""),"", IF(OR($K43="A",$K43="B",$K43="E"),$L43*BC43)) -> 
G44: 3 | H44: 3 | I44: Ausbau /Entsorgung /Neueinbau von Strangentlüftungen | J44: Position | L44: 5 | M44: Stck. | O44: 175 | P44: 277.79 | Q44: 346.83 | R44: 1388.95 | V44: 175 | W44: 875 | X44: -0.3058103672 | AA44: 311.54 | AB44: 1557.7 | AE44: 0.1214946542 | AF44: =IF(OR($K44="",$K44="H",$K44="AB",$K44="G",$J44="Position",$K44="<-- Bitte Positionsart",AA44="",$L44=""),"", IF(OR($K44="A",$K44="B",$K44="E"),$L44*AA44)) ->  | AH44: 346.83 | AI44: 1734.15 | AL44: =IF(OR($L44="",AH44="",$J44="Ausführungsbeschreibung",$J44="Hinweis"),"", IF(AND($AA44,$AH44,$AO44,$AV44,$BC44)="","", IF($L$4="MIT", IF(OR(AI44="Nur EP ",$K44="E"),((AM44/(AVERAGE($AF44,$AM44,$AT44,$BA44,$BH44)))-1), IF($L$4="MIT",((AI44/(AVERAGE($AB44,$AI44,$AP44,$AW44,$BD44)))-1), IF($L$4="MIN", IF(OR(AI44="Nur EP ",$K44="E"),((AM44/(MIN($AF44,$AM44,$AT44,$BA44,$BH44)))-1), IF($L$4="MIN",(AI44/(MIN($AB44,$AI44,$AP44,$AW44,$BD44)))-1) ))))))) -> 0.2485330645 | AM44: =IF(OR($K44="",$K44="H",$K44="AB",$K44="G",$J44="Position",$K44="<-- Bitte Positionsart",AH44="",$L44=""),"", IF(OR($K44="A",$K44="B",$K44="E"),$L44*AH44)) ->  | AO44: 175 | AP44: 875 | AS44: =IF(OR($L44="",AO44="",$J44="Ausführungsbeschreibung",$J44="Hinweis"),"", IF(AND($AA44,$AH44,$AO44,$AV44,$BC44)="","", IF($L$4="MIT", IF(OR(AP44="Nur EP ",$K44="E"),((AT44/(AVERAGE($AF44,$AM44,$AT44,$BA44,$BH44)))-1), IF($L$4="MIT",((AP44/(AVERAGE($AB44,$AI44,$AP44,$AW44,$BD44)))-1), IF($L$4="MIN", IF(OR(AP44="Nur EP ",$K44="E"),((AT44/(MIN($AF44,$AM44,$AT44,$BA44,$BH44)))-1), IF($L$4="MIN",(AP44/(MIN($AB44,$AI44,$AP44,$AW44,$BD44)))-1) ))))))) -> -0.3700277188 | AT44: =IF(OR($K44="",$K44="H",$K44="AB",$K44="G",$J44="Position",$K44="<-- Bitte Positionsart",AO44="",$L44=""),"", IF(OR($K44="A",$K44="B",$K44="E"),$L44*AO44)) ->  | BH44: =IF(OR($K44="",$K44="H",$K44="AB",$K44="G",$J44="Position",$K44="<-- Bitte Positionsart",BC44="",$L44=""),"", IF(OR($K44="A",$K44="B",$K44="E"),$L44*BC44)) -> 
G45: 3 | H45: 4 | I45: Anschluss vorhandener /verbleibender Strangentlüftunger | J45: Position | L45: 7 | M45: Stck. | O45: 40 | P45: 228.9633333 | Q45: 335.35 | R45: 1602.743333 | V45: 50 | W45: 350 | X45: -0.7285890703 | AA45: 311.54 | AB45: 2180.78 | AE45: 0.3606545444 | AH45: 335.35 | AI45: 2347.45 | AL45: 0.4646449941 | AO45: 40 | AP45: 280 | AS45: -0.8252995385
G46: 3 | H46: 5 | I46: Ausbau /Entsorgung von Oberlichtern | J46: Bedarfsposition | K46: B | L46: 1 | M46: Stck. | R46: Nur EP | T46: 244.36 | V46: 250 | W46: Nur EP | X46: 0.01372173744 | Y46: 250 | AA46: 311.54 | AB46: Nur EP | AE46: 0.2749222459 | AF46: 311.54 | AH46: 311.54 | AI46: Nur EP | AL46: 0.2749222459 | AM46: 311.54 | AO46: 110 | AP46: Nur EP | AS46: -0.5498444917 | AT46: 110 | AW46: Nur EP | BD46: Nur EP
G47: 3 | H47: 6
G48: 3 | H48: 7
G49: 3 | H49: 8 | W49: =IF($C49="Hinweis","",IF(OR($K49="A",$K49="B"),"Nur EP ",IF($K49="E","E ",IF(AND($L49<>"",V49<>""),$L49*V49,"")))) ->  | AB49: =IF($C49="Hinweis","",IF(OR($K49="A",$K49="B"),"Nur EP ",IF($K49="E","E ",IF(AND($L49<>"",AA49<>""),$L49*AA49,"")))) ->  | AI49: =IF($C49="Hinweis","",IF(OR($K49="A",$K49="B"),"Nur EP ",IF($K49="E","E ",IF(AND($L49<>"",AH49<>""),$L49*AH49,"")))) ->  | AP49: =IF($C49="Hinweis","",IF(OR($K49="A",$K49="B"),"Nur EP ",IF($K49="E","E ",IF(AND($L49<>"",AO49<>""),$L49*AO49,"")))) ->  | BD49: =IF($C49="Hinweis","",IF(OR($K49="A",$K49="B"),"Nur EP ",IF($K49="E","E ",IF(AND($L49<>"",BC49<>""),$L49*BC49,"")))) -> 
G50: 3 | H50: 9 | W50: =IF($C50="Hinweis","",IF(OR($K50="A",$K50="B"),"Nur EP ",IF($K50="E","E ",IF(AND($L50<>"",V50<>""),$L50*V50,"")))) ->  | AB50: =IF($C50="Hinweis","",IF(OR($K50="A",$K50="B"),"Nur EP ",IF($K50="E","E ",IF(AND($L50<>"",AA50<>""),$L50*AA50,"")))) ->  | AD50: =IF(AC50="","",IF(AC50="X",AB50,AB50*AC50)) ->  | AI50: =IF($C50="Hinweis","",IF(OR($K50="A",$K50="B"),"Nur EP ",IF($K50="E","E ",IF(AND($L50<>"",AH50<>""),$L50*AH50,"")))) ->  | AK50: =IF(AJ50="","",IF(AJ50="X",AI50,AI50*AJ50)) ->  | AP50: =IF($C50="Hinweis","",IF(OR($K50="A",$K50="B"),"Nur EP ",IF($K50="E","E ",IF(AND($L50<>"",AO50<>""),$L50*AO50,"")))) ->  | AR50: =IF(AQ50="","",IF(AQ50="X",AP50,AP50*AQ50)) ->  | BD50: =IF($C50="Hinweis","",IF(OR($K50="A",$K50="B"),"Nur EP ",IF($K50="E","E ",IF(AND($L50<>"",BC50<>""),$L50*BC50,"")))) ->  | BF50: =IF(BE50="","",IF(BE50="X",BD50,BD50*BE50)) -> 
G51: =G$41 -> 3 | H51: 10 | AB51: =IF(C51="Hinweis","",IF(OR($K51="A",$K51="B"),"Nur EP ",IF($K51="E","E ",IF(AND($L51<>"",AA51<>""),$L51*AA51,"")))) ->  | AI51: =IF(J51="Hinweis","",IF(OR($K51="A",$K51="B"),"Nur EP ",IF($K51="E","E ",IF(AND($L51<>"",AH51<>""),$L51*AH51,"")))) ->  | AP51: =IF(P51="Hinweis","",IF(OR($K51="A",$K51="B"),"Nur EP ",IF($K51="E","E ",IF(AND($L51<>"",AO51<>""),$L51*AO51,"")))) ->  | BD51: =IF(AD51="Hinweis","",IF(OR($K51="A",$K51="B"),"Nur EP ",IF($K51="E","E ",IF(AND($L51<>"",BC51<>""),$L51*BC51,"")))) -> 
G52: 3 | H52: =IF(G$162="","",ROW()-37) -> 15 | X52: =IF(OR($L121="",V52="",$J52="Ausführungsbeschreibung",$J52="Hinweis"),"", IF(AND($V52,$AA52,$AH52,$AO52,$AV52,$BC52)="","", IF(OR($W52="Nur EP ",$K52="E"),(Y52/(AVERAGE($Y52,$AF52,$AM52,$AT52,Y52))-1), IF(AND($W52,$AB52,$AI52,$AP52,$AW52)="","",(W52/(AVERAGE($W52,$AB52,$AI52,$AP52,$AW52)))-1)))) ->  | Y52: =IF(OR($K52="",$K52="H",$K52="AB",$K52="G",$J52="Position",$K52="<-- Bitte Positionsart",V52="",$L52=""),"", IF(OR($K52="A",$K52="B",$K52="E"),$L52*V52)) ->  | AD52: =IF(AC52="","",IF(AC52="X",AB52,AB52*AC52)) ->  | AI52: =IF(OR($K52="A",$K52="B"),"Nur EP ",IF($K52="E","E ",IF(AND($L52<>"",AH52<>""),$L52*AH52,""))) ->  | AK52: =IF(AJ52="","",IF(AJ52="X",AI52,AI52*AJ52)) ->  | AP52: =IF(OR($K52="A",$K52="B"),"Nur EP ",IF($K52="E","E ",IF(AND($L52<>"",AO52<>""),$L52*AO52,""))) ->  | BD52: =IF(OR($K52="A",$K52="B"),"Nur EP ",IF($K52="E","E ",IF(AND($L52<>"",BC52<>""),$L52*BC52,""))) -> 
G53: 3 | H53: 16 | AD53: =IF(AC53="","",IF(AC53="X",AB53,AB53*AC53)) ->  | AK53: =IF(AJ53="","",IF(AJ53="X",AI53,AI53*AJ53)) ->  | AL53: =IF(OR($L53="",AH53="",$J53="Ausführungsbeschreibung",$J53="Hinweis"),"", IF(AND($AA53,$AH53,$AO53,$AV53,$BC53)="","", IF($L$4="MIT", IF(OR(AI53="Nur EP ",$K53="E"),((AM53/(AVERAGE($AF53,$AM53,$AT53,$BA53,$BH53)))-1), IF($L$4="MIT",((AI53/(AVERAGE($AB53,$AI53,$AP53,$AW53,$BD53)))-1), IF($L$4="MIN", IF(OR(AI53="Nur EP ",$K53="E"),((AM53/(MIN($AF53,$AM53,$AT53,$BA53,$BH53)))-1), IF($L$4="MIN",(AI53/(MIN($AB53,$AI53,$AP53,$AW53,$BD53)))-1) ))))))) -> 
G54: 3 | H54: =IF($G54="","",ROW()-ROW(G$41)) -> 13 | K54: =IF(J54="Position","",IF(J54="Grundposition","G",IF(J54="Alternativposition","A",IF(J54="Bedarfsposition","B",IF(J54="Hinweis","H",IF(J54="Ausführungsbeschreibung","AB",IF(J54="Entfällt","E",IF(AND(I54<>"",L54<>""),"<-- Bitte Positionsart","")))))))) ->  | O54: =IF(OR($K54="B",$K54="A",$K54="H",$K54="AB",$K54="<-- Bitte Positionsart",SUM(AA54,AH54,AO54,AV54,BC54)=0),"",MIN(AA54,AH54,AO54,AV54,BC54)) ->  | P54: =IF(OR($K54="B",$K54="A",$K54="H",$K54="AB",$K54="<-- Bitte Positionsart",SUM(AA54,AH54,AO54,AV54,BC54)=0),"",SUM(AA54,AH54,AO54,AV54,BC54)/COUNT(AA54,AH54,AO54,AV54,BC54)) ->  | Q54: =IF(OR($K54="B",$K54="A",$K54="H",$K54="AB",$K54="<-- Bitte Positionsart",SUM(AA54,AH54,AO54,AV54,BC54)=0),"",MAX(AA54,AH54,AO54,AV54,BC54)) ->  | R54: =IF(OR($K54="A",$K54="B"),"Nur EP ",IF($K54="E","E ",IF(AND($L54<>"",P54<>""),$L54*P54,""))) ->  | T54: =IF(OR($K54="",$K54="H",$K54="AB",$K54="G",$K54="<-- Bitte Positionsart"),"",IF(OR($K54="A",$K54="B"),$L54*(SUM(AA54,AH54,AO54,AV54,BC54)/COUNT(AA54,AH54,AO54,AV54,BC54)),IF($K54="E",$L54*P54))) ->  | AB54: =IF(C54="Hinweis","",IF(OR($K54="A",$K54="B"),"Nur EP ",IF($K54="E","E ",IF(AND($L54<>"",AA54<>""),$L54*AA54,"")))) ->  | AF54: =IF(OR($K54="",$K54="H",$K54="AB",$K54="G",$J54="Position",$K54="<-- Bitte Positionsart",AA54="",$L54=""),"", IF(OR($K54="A",$K54="B",$K54="E"),$L54*AA54)) ->  | AI54: =IF(J54="Hinweis","",IF(OR($K54="A",$K54="B"),"Nur EP ",IF($K54="E","E ",IF(AND($L54<>"",AH54<>""),$L54*AH54,"")))) ->  | AM54: =IF(OR($K54="",$K54="H",$K54="AB",$K54="G",$J54="Position",$K54="<-- Bitte Positionsart",AH54="",$L54=""),"", IF(OR($K54="A",$K54="B",$K54="E"),$L54*AH54)) ->  | AP54: =IF(P54="Hinweis","",IF(OR($K54="A",$K54="B"),"Nur EP ",IF($K54="E","E ",IF(AND($L54<>"",AO54<>""),$L54*AO54,"")))) ->  | AT54: =IF(OR($K54="",$K54="H",$K54="AB",$K54="G",$J54="Position",$K54="<-- Bitte Positionsart",AO54="",$L54=""),"", IF(OR($K54="A",$K54="B",$K54="E"),$L54*AO54)) ->  | BD54: =IF(AD54="Hinweis","",IF(OR($K54="A",$K54="B"),"Nur EP ",IF($K54="E","E ",IF(AND($L54<>"",BC54<>""),$L54*BC54,"")))) ->  | BF54: =IF(BE54="","",IF(BE54="X",BD54,BD54*BE54)) ->  | BH54: =IF(OR($K54="",$K54="H",$K54="AB",$K54="G",$J54="Position",$K54="<-- Bitte Positionsart",BC54="",$L54=""),"", IF(OR($K54="A",$K54="B",$K54="E"),$L54*BC54)) -> 
G55: 3 | H55: =IF(G$162="","",ROW()-37) -> 18 | AI55: =IF(OR($K55="A",$K55="B"),"Nur EP ",IF($K55="E","E ",IF(AND($L55<>"",AH55<>""),$L55*AH55,""))) ->  | AP55: =IF(OR($K55="A",$K55="B"),"Nur EP ",IF($K55="E","E ",IF(AND($L55<>"",AO55<>""),$L55*AO55,""))) ->  | AR55: =IF(AQ55="","",IF(AQ55="X",AP55,AP55*AQ55)) ->  | BD55: =IF(OR($K55="A",$K55="B"),"Nur EP ",IF($K55="E","E ",IF(AND($L55<>"",BC55<>""),$L55*BC55,""))) -> 
G56: 3 | H56: 19 | X56: =IF(OR($L125="",V56="",$J56="Ausführungsbeschreibung",$J56="Hinweis"),"", IF(AND($V56,$AA56,$AH56,$AO56,$AV56,$BC56)="","", IF(OR($W56="Nur EP ",$K56="E"),(Y56/(AVERAGE($Y56,$AF56,$AM56,$AT56,Y56))-1), IF(AND($W56,$AB56,$AI56,$AP56,$AW56)="","",(W56/(AVERAGE($W56,$AB56,$AI56,$AP56,$AW56)))-1)))) ->  | Y56: =IF(OR($K56="",$K56="H",$K56="AB",$K56="G",$J56="Position",$K56="<-- Bitte Positionsart",V56="",$L56=""),"", IF(OR($K56="A",$K56="B",$K56="E"),$L56*V56)) ->  | AD56: =IF(AC56="","",IF(AC56="X",AB56,AB56*AC56)) ->  | AK56: =IF(AJ56="","",IF(AJ56="X",AI56,AI56*AJ56)) ->  | AS56: =IF(OR($L56="",AO56="",$J56="Ausführungsbeschreibung",$J56="Hinweis"),"", IF(AND($AA56,$AH56,$AO56,$AV56,$BC56)="","", IF($L$4="MIT", IF(OR(AP56="Nur EP ",$K56="E"),((AT56/(AVERAGE($AF56,$AM56,$AT56,$BA56,$BH56)))-1), IF($L$4="MIT",((AP56/(AVERAGE($AB56,$AI56,$AP56,$AW56,$BD56)))-1), IF($L$4="MIN", IF(OR(AP56="Nur EP ",$K56="E"),((AT56/(MIN($AF56,$AM56,$AT56,$BA56,$BH56)))-1), IF($L$4="MIN",(AP56/(MIN($AB56,$AI56,$AP56,$AW56,$BD56)))-1) ))))))) ->  | AW56: =IF(W56="Hinweis","",IF(OR($K56="A",$K56="B"),"Nur EP ",IF($K56="E","E ",IF(AND($L56<>"",AV56<>""),$L56*AV56,"")))) ->  | AY56: =IF(AX56="","",IF(AX56="X",AW56,AW56*AX56)) ->  | AZ56: =IF(OR($L56="",AV56="",$J56="Ausführungsbeschreibung",$J56="Hinweis"),"", IF(AND($AA56,$AH56,$AO56,$AV56,$BC56)="","", IF($L$4="MIT", IF(OR(AW56="Nur EP ",$K56="E"),((BA56/(AVERAGE($AF56,$AM56,$AT56,$BA56,$BH56)))-1), IF($L$4="MIT",((AW56/(AVERAGE($AB56,$AI56,$AP56,$AW56,$BD56)))-1), IF($L$4="MIN", IF(OR(AW56="Nur EP ",$K56="E"),((BA56/(MIN($AF56,$AM56,$AT56,$BA56,$BH56)))-1), IF($L$4="MIN",(AW56/(MIN($AB56,$AI56,$AP56,$AW56,$BD56)))-1) ))))))) ->  | BA56: =IF(OR($K56="",$K56="H",$K56="AB",$K56="G",$J56="Position",$K56="<-- Bitte Positionsart",AV56="",$L56=""),"", IF(OR($K56="A",$K56="B",$K56="E"),$L56*AV56)) -> 
G57: 3 | H57: 20 | AL57: =IF(OR($L57="",AH57="",$J57="Ausführungsbeschreibung",$J57="Hinweis"),"", IF(AND($AA57,$AH57,$AO57,$AV57,$BC57)="","", IF($L$4="MIT", IF(OR(AI57="Nur EP ",$K57="E"),((AM57/(AVERAGE($AF57,$AM57,$AT57,$BA57,$BH57)))-1), IF($L$4="MIT",((AI57/(AVERAGE($AB57,$AI57,$AP57,$AW57,$BD57)))-1), IF($L$4="MIN", IF(OR(AI57="Nur EP ",$K57="E"),((AM57/(MIN($AF57,$AM57,$AT57,$BA57,$BH57)))-1), IF($L$4="MIN",(AI57/(MIN($AB57,$AI57,$AP57,$AW57,$BD57)))-1) ))))))) ->  | AZ57: =IF(OR($L57="",AV57="",$J57="Ausführungsbeschreibung",$J57="Hinweis"),"", IF(AND($AA57,$AH57,$AO57,$AV57,$BC57)="","", IF($L$4="MIT", IF(OR(AW57="Nur EP ",$K57="E"),((BA57/(AVERAGE($AF57,$AM57,$AT57,$BA57,$BH57)))-1), IF($L$4="MIT",((AW57/(AVERAGE($AB57,$AI57,$AP57,$AW57,$BD57)))-1), IF($L$4="MIN", IF(OR(AW57="Nur EP ",$K57="E"),((BA57/(MIN($AF57,$AM57,$AT57,$BA57,$BH57)))-1), IF($L$4="MIN",(AW57/(MIN($AB57,$AI57,$AP57,$AW57,$BD57)))-1) ))))))) ->  | BA57: =IF(OR($K57="",$K57="H",$K57="AB",$K57="G",$J57="Position",$K57="<-- Bitte Positionsart",AV57="",$L57=""),"", IF(OR($K57="A",$K57="B",$K57="E"),$L57*AV57)) -> 
G58: 3 | H58: 21
G59: 3 | H59: 22
G60: 3 | H60: 23
G61: 3 | H61: 24 | AD61: =IF(AC61="","",IF(AC61="X",AB61,AB61*AC61)) ->  | AK61: =IF(AJ61="","",IF(AJ61="X",AI61,AI61*AJ61)) -> 
G62: 3 | H62: 25 | W62: =IF(OR($K62="A",$K62="B"),"Nur EP ",IF($K62="E","E ",IF(AND($L62<>"",V62<>""),$L62*V62,""))) ->  | AB62: =IF(OR($K62="A",$K62="B"),"Nur EP ",IF($K62="E","E ",IF(AND($L62<>"",AA62<>""),$L62*AA62,""))) ->  | AF62: =IF(OR($K62="",$K62="H",$K62="AB",$K62="G",$J62="Position",$K62="<-- Bitte Positionsart",AA62="",$L62=""),"", IF(OR($K62="A",$K62="B",$K62="E"),$L62*AA62)) ->  | AM62: =IF(OR($K62="",$K62="H",$K62="AB",$K62="G",$J62="Position",$K62="<-- Bitte Positionsart",AH62="",$L62=""),"", IF(OR($K62="A",$K62="B",$K62="E"),$L62*AH62)) ->  | AT62: =IF(OR($K62="",$K62="H",$K62="AB",$K62="G",$J62="Position",$K62="<-- Bitte Positionsart",AO62="",$L62=""),"", IF(OR($K62="A",$K62="B",$K62="E"),$L62*AO62)) ->  | BH62: =IF(OR($K62="",$K62="H",$K62="AB",$K62="G",$J62="Position",$K62="<-- Bitte Positionsart",BC62="",$L62=""),"", IF(OR($K62="A",$K62="B",$K62="E"),$L62*BC62)) -> 
W63: =IF(OR($K63="A",$K63="B"),"Nur EP ",IF($K63="E","",IF(AND($L63<>"",V63<>""),$L63*V63,""))) ->  | Y63: =IF($K63="Ja",IF(AND($L63<>"",V63<>""),$L63*V63),"") ->  | AA63: EP / % Titel | AB63: Positions- / Titelsumme | AD63: =IF(AC63="","",IF(AC63="X",AB63,AB63*AC63)) ->  | AF63: =IF($K63="Ja",IF(AND($L63<>"",AA63<>""),$L63*AA63),"") ->  | AH63: EP / % Titel | AI63: Positions- / Titelsumme | AK63: =IF(AJ63="","",IF(AJ63="X",AI63,AI63*AJ63)) ->  | AM63: =IF($K63="Ja",IF(AND($L63<>"",AH63<>""),$L63*AH63),"") ->  | AO63: EP / % Titel | AP63: Positions- / Titelsumme | AR63: =IF(AQ63="","",IF(AQ63="X",AP63,AP63*AQ63)) ->  | AT63: =IF($K63="Ja",IF(AND($L63<>"",AO63<>""),$L63*AO63),"") ->  | AV63: EP / % Titel | AW63: Positions- / Titelsumme | AY63: =IF(AX63="","",IF(AX63="X",AW63,AW63*AX63)) ->  | BA63: =IF($K63="Ja",IF(AND($L63<>"",AV63<>""),$L63*AV63),"") ->  | BC63: EP / % Titel | BD63: Positions- / Titelsumme | BF63: =IF(BE63="","",IF(BE63="X",BD63,BD63*BE63)) ->  | BH63: =IF($K63="Ja",IF(AND($L63<>"",BC63<>""),$L63*BC63),"") -> 
G64: 4 | I64: Abriss Rückbau im Bereich der Gauben mit Balkon bzw.Gauben mit Erker | O64: =CONCATENATE("Titelsumme",CHAR(10),"MIN",CHAR(10),TEXT(SUMPRODUCT($L65:$L77,O65:O77),"##.##0,00")," €") -> Titelsumme MIN 4.128,32 € | P64: =CONCATENATE("Titelsumme",CHAR(10),"MIT",CHAR(10),TEXT(SUMPRODUCT($L65:$L77,P65:P77),"##.##0,00")," €") -> Titelsumme MIT 6.760,06 € | Q64: =CONCATENATE("Titelsumme",CHAR(10),"MAX",CHAR(10),TEXT(SUMPRODUCT($L65:$L75,Q65:Q75),"##.##0,00")," €") -> Titelsumme MAX 9.156,81 € | R64: =SUM(R65:R77) -> 6760.064 | T64: =SUM(T65:T77) -> 0 | W64: =SUM(W65:W77) -> 3072 | Y64: =SUM(Y65:Y77) -> 0 | AA64: =IF(AB64=0,"", IF($L$4="MIT",((AB64/(AVERAGE($AB64,$AI64,$AP64,$AW64,$BD64)))-1)*100,)) -> 70.05593438 | AB64: =SUM(AB65:AB76) -> 6897.534 | AF64: =SUM(AF65:AF77) -> 0 | AH64: =IF(AI64=0,"", IF($L$4="MIT",((AI64/(AVERAGE($AB64,$AI64,$AP64,$AW64,$BD64)))-1)*100,)) -> 81.83895892 | AI64: =SUM(AI65:AI77) -> 7375.458 | AM64: =SUM(AM65:AM77) -> 0 | AO64: =IF(AP64=0,"", IF($L$4="MIT",((AP64/(AVERAGE($AB64,$AI64,$AP64,$AW64,$BD64)))-1)*100,)) -> 48.1051067 | AP64: =SUM(AP65:AP77) -> 6007.2 | AT64: =SUM(AT65:AT77) -> 0 | AV64: =IF(AW64=0,"", IF($L$4="MIT",((AW64/(AVERAGE($AB64,$AI64,$AP64,$AW64,$BD64)))-1)*100,)) ->  | AW64: =SUM(AW65:AW77) -> 0 | BA64: =SUM(BA65:BA77) -> 0 | BC64: =IF(BD64=0,"", IF($L$4="MIT",((BD64/(AVERAGE($AB64,$AI64,$AP64,$AW64,$BD64)))-1)*100,)) ->  | BD64: =SUM(BD65:BD77) -> 0 | BH64: =SUM(BH65:BH77) -> 0
G65: =G$64 -> 4 | H65: =IF(G$162="","",ROW()-ROW(G$64)) -> 1 | I65: Hinweis zu vorhandener Mineralwolldämmung | J65: Hinweis | K65: =IF(J65="Position","",IF(J65="Grundposition","G",IF(J65="Alternativposition","A",IF(J65="Bedarfsposition","B",IF(J65="Hinweis","H",IF(J65="Ausführungsbeschreibung","AB",IF(J65="Entfällt","E",IF(AND(I65<>"",L65<>""),"<-- Bitte Positionsart","")))))))) -> H | O65: =IF(OR($K65="B",$K65="A",$K65="H",$K65="AB",$K65="<-- Bitte Positionsart",SUM(AA65,AH65,AO65,AV65,BC65)=0),"",MIN(AA65,AH65,AO65,AV65,BC65)) ->  | P65: =IF(OR($K65="B",$K65="A",$K65="H",$K65="AB",$K65="<-- Bitte Positionsart",SUM(AA65,AH65,AO65,AV65,BC65)=0),"",SUM(AA65,AH65,AO65,AV65,BC65)/COUNT(AA65,AH65,AO65,AV65,BC65)) ->  | Q65: =IF(OR($K65="B",$K65="A",$K65="H",$K65="AB",$K65="<-- Bitte Positionsart",SUM(AA65,AH65,AO65,AV65,BC65)=0),"",MAX(AA65,AH65,AO65,AV65,BC65)) ->  | R65: =IF(OR($K65="A",$K65="B"),"Nur EP ",IF($K65="E","E ",IF(AND($L65<>"",P65<>""),$L65*P65,""))) ->  | T65: =IF(OR($K65="",$K65="H",$K65="AB",$K65="G",$K65="<-- Bitte Positionsart"),"",IF(OR($K65="A",$K65="B"),$L65*(SUM(AA65,AH65,AO65,AV65,BC65)/COUNT(AA65,AH65,AO65,AV65,BC65)),IF($K65="E",$L65*P65))) ->  | W65: =IF(OR($K65="A",$K65="B"),"Nur EP ",IF($K65="E","E ",IF(AND($L65<>"",V65<>""),$L65*V65,""))) ->  | X65: =IF(OR($L134="",V65="",$J65="Ausführungsbeschreibung",$J65="Hinweis"),"", IF(AND($V65,$AA65,$AH65,$AO65,$AV65,$BC65)="","", IF(OR($W65="Nur EP ",$K65="E"),(Y65/(AVERAGE($Y65,$AF65,$AM65,$AT65,Y65))-1), IF(AND($W65,$AB65,$AI65,$AP65,$AW65)="","",(W65/(AVERAGE($W65,$AB65,$AI65,$AP65,$AW65)))-1)))) ->  | Y65: =IF(OR($K65="",$K65="H",$K65="AB",$K65="G",$J65="Position",$K65="<-- Bitte Positionsart",V65="",$L65=""),"", IF(OR($K65="A",$K65="B",$K65="E"),$L65*V65)) ->  | AB65: =IF(C65="Hinweis","",IF(OR($K65="A",$K65="B"),"Nur EP ",IF($K65="E","E ",IF(AND($L65<>"",AA65<>""),$L65*AA65,"")))) ->  | AE65: =IF(OR($L65="",AA65="",$J65="Ausführungsbeschreibung",$J65="Hinweis"),"", IF(AND($AA65,$AH65,$AO65,$AV65,$BC65)="","", IF($L$4="MIT", IF(OR(AB65="Nur EP ",$K65="E"),((AF65/(AVERAGE($AF65,$AM65,$AT65,$BA65,$BH65)))-1), IF($L$4="MIT",((AB65/(AVERAGE($AB65,$AI65,$AP65,$AW65,$BD65)))-1), IF($L$4="MIN", IF(OR(AB65="Nur EP ",$K65="E"),((AF65/(MIN($AF65,$AM65,$AT65,$BA65,$BH65)))-1), IF($L$4="MIN",((AB65/(MIN($AB65,$AI65,$AP65,$AW65,$BD65)))-1)) ))))))) ->  | AF65: =IF(OR($K65="",$K65="H",$K65="AB",$K65="G",$J65="Position",$K65="<-- Bitte Positionsart",AA65="",$L65=""),"", IF(OR($K65="A",$K65="B",$K65="E"),$L65*AA65)) ->  | AI65: =IF(J65="Hinweis","",IF(OR($K65="A",$K65="B"),"Nur EP ",IF($K65="E","E ",IF(AND($L65<>"",AH65<>""),$L65*AH65,"")))) ->  | AL65: =IF(OR($L65="",AH65="",$J65="Ausführungsbeschreibung",$J65="Hinweis"),"", IF(AND($AA65,$AH65,$AO65,$AV65,$BC65)="","", IF($L$4="MIT", IF(OR(AI65="Nur EP ",$K65="E"),((AM65/(AVERAGE($AF65,$AM65,$AT65,$BA65,$BH65)))-1), IF($L$4="MIT",((AI65/(AVERAGE($AB65,$AI65,$AP65,$AW65,$BD65)))-1), IF($L$4="MIN", IF(OR(AI65="Nur EP ",$K65="E"),((AM65/(MIN($AF65,$AM65,$AT65,$BA65,$BH65)))-1), IF($L$4="MIN",(AI65/(MIN($AB65,$AI65,$AP65,$AW65,$BD65)))-1) ))))))) ->  | AM65: =IF(OR($K65="",$K65="H",$K65="AB",$K65="G",$J65="Position",$K65="<-- Bitte Positionsart",AH65="",$L65=""),"", IF(OR($K65="A",$K65="B",$K65="E"),$L65*AH65)) ->  | AP65: =IF(P65="Hinweis","",IF(OR($K65="A",$K65="B"),"Nur EP ",IF($K65="E","E ",IF(AND($L65<>"",AO65<>""),$L65*AO65,"")))) ->  | AS65: =IF(OR($L65="",AO65="",$J65="Ausführungsbeschreibung",$J65="Hinweis"),"", IF(AND($AA65,$AH65,$AO65,$AV65,$BC65)="","", IF($L$4="MIT", IF(OR(AP65="Nur EP ",$K65="E"),((AT65/(AVERAGE($AF65,$AM65,$AT65,$BA65,$BH65)))-1), IF($L$4="MIT",((AP65/(AVERAGE($AB65,$AI65,$AP65,$AW65,$BD65)))-1), IF($L$4="MIN", IF(OR(AP65="Nur EP ",$K65="E"),((AT65/(MIN($AF65,$AM65,$AT65,$BA65,$BH65)))-1), IF($L$4="MIN",(AP65/(MIN($AB65,$AI65,$AP65,$AW65,$BD65)))-1) ))))))) ->  | AT65: =IF(OR($K65="",$K65="H",$K65="AB",$K65="G",$J65="Position",$K65="<-- Bitte Positionsart",AO65="",$L65=""),"", IF(OR($K65="A",$K65="B",$K65="E"),$L65*AO65)) ->  | AW65: =IF(W65="Hinweis","",IF(OR($K65="A",$K65="B"),"Nur EP ",IF($K65="E","E ",IF(AND($L65<>"",AV65<>""),$L65*AV65,"")))) ->  | AY65: =IF(AX65="","",IF(AX65="X",AW65,AW65*AX65)) ->  | AZ65: =IF(OR($L65="",AV65="",$J65="Ausführungsbeschreibung",$J65="Hinweis"),"", IF(AND($AA65,$AH65,$AO65,$AV65,$BC65)="","", IF($L$4="MIT", IF(OR(AW65="Nur EP ",$K65="E"),((BA65/(AVERAGE($AF65,$AM65,$AT65,$BA65,$BH65)))-1), IF($L$4="MIT",((AW65/(AVERAGE($AB65,$AI65,$AP65,$AW65,$BD65)))-1), IF($L$4="MIN", IF(OR(AW65="Nur EP ",$K65="E"),((BA65/(MIN($AF65,$AM65,$AT65,$BA65,$BH65)))-1), IF($L$4="MIN",(AW65/(MIN($AB65,$AI65,$AP65,$AW65,$BD65)))-1) ))))))) ->  | BA65: =IF(OR($K65="",$K65="H",$K65="AB",$K65="G",$J65="Position",$K65="<-- Bitte Positionsart",AV65="",$L65=""),"", IF(OR($K65="A",$K65="B",$K65="E"),$L65*AV65)) ->  | BD65: =IF(AD65="Hinweis","",IF(OR($K65="A",$K65="B"),"Nur EP ",IF($K65="E","E ",IF(AND($L65<>"",BC65<>""),$L65*BC65,"")))) ->  | BF65: =IF(BE65="","",IF(BE65="X",BD65,BD65*BE65)) ->  | BG65: =IF(OR($L65="",BC65="",$J65="Ausführungsbeschreibung",$J65="Hinweis"),"", IF(AND($AA65,$AH65,$AO65,$AV65,$BC65)="","", IF($L$4="MIT", IF(OR(BD65="Nur EP ",$K65="E"),((BH65/(AVERAGE($AF65,$AM65,$AT65,$BA65,$BH65)))-1), IF($L$4="MIT",((BD65/(AVERAGE($AB65,$AI65,$AP65,$AW65,$BD65)))-1), IF($L$4="MIN", IF(OR(BD65="Nur EP ",$K65="E"),((BH65/(MIN($AF65,$AM65,$AT65,$BA65,$BH65)))-1), IF($L$4="MIN",((BD65/(MIN($AB65,$AI65,$AP65,$AW65,$BD65)))-1)) ))))))) ->  | BH65: =IF(OR($K65="",$K65="H",$K65="AB",$K65="G",$J65="Position",$K65="<-- Bitte Positionsart",BC65="",$L65=""),"", IF(OR($K65="A",$K65="B",$K65="E"),$L65*BC65)) -> 
G66: =G$64 -> 4 | H66: 2 | I66: Abschnittweiser Abriss /Rückbau der PVC Folienabdichtung samt Flies - Gaubendächer | J66: Position | L66: 66 | M66: qm | O66: =IF(OR($K66="B",$K66="A",$K66="H",$K66="AB",$K66="<-- Bitte Positionsart",SUM(AA66,AH66,AO66,AV66,BC66)=0),"",MIN(AA66,AH66,AO66,AV66,BC66)) -> 33 | P66: =IF(OR($K66="B",$K66="A",$K66="H",$K66="AB",$K66="<-- Bitte Positionsart",SUM(AA66,AH66,AO66,AV66,BC66)=0),"",SUM(AA66,AH66,AO66,AV66,BC66)/COUNT(AA66,AH66,AO66,AV66,BC66)) -> 47.84333333 | Q66: =IF(OR($K66="B",$K66="A",$K66="H",$K66="AB",$K66="<-- Bitte Positionsart",SUM(AA66,AH66,AO66,AV66,BC66)=0),"",MAX(AA66,AH66,AO66,AV66,BC66)) -> 56.69 | R66: =IF(OR($K66="A",$K66="B"),"Nur EP ",IF($K66="E","E ",IF(AND($L66<>"",P66<>""),$L66*P66,""))) -> 3157.66 | T66: =IF(OR($K66="",$K66="H",$K66="AB",$K66="G",$K66="<-- Bitte Positionsart"),"",IF(OR($K66="A",$K66="B"),$L66*(SUM(AA66,AH66,AO66,AV66,BC66)/COUNT(AA66,AH66,AO66,AV66,BC66)),IF($K66="E",$L66*P66))) ->  | V66: 25 | W66: 1650 | X66: =IF(OR($L135="",V66="",$J66="Ausführungsbeschreibung",$J66="Hinweis"),"", IF(AND($V66,$AA66,$AH66,$AO66,$AV66,$BC66)="","", IF(OR($W66="Nur EP ",$K66="E"),(Y66/(AVERAGE($Y66,$AF66,$AM66,$AT66,Y66))-1), IF(AND($W66,$AB66,$AI66,$AP66,$AW66)="","",(W66/(AVERAGE($W66,$AB66,$AI66,$AP66,$AW66)))-1)))) -> -0.4066338337 | Y66: =IF(OR($K66="",$K66="H",$K66="AB",$K66="G",$J66="Position",$K66="<-- Bitte Positionsart",V66="",$L66=""),"", IF(OR($K66="A",$K66="B",$K66="E"),$L66*V66)) ->  | AA66: 53.84 | AB66: 3553.44 | AE66: 0.1253396502 | AF66: =IF(OR($K66="",$K66="H",$K66="AB",$K66="G",$J66="Position",$K66="<-- Bitte Positionsart",AA66="",$L66=""),"", IF(OR($K66="A",$K66="B",$K66="E"),$L66*AA66)) ->  | AH66: 56.69 | AI66: 3741.54 | AL66: =IF(OR($L66="",AH66="",$J66="Ausführungsbeschreibung",$J66="Hinweis"),"", IF(AND($AA66,$AH66,$AO66,$AV66,$BC66)="","", IF($L$4="MIT", IF(OR(AI66="Nur EP ",$K66="E"),((AM66/(AVERAGE($AF66,$AM66,$AT66,$BA66,$BH66)))-1), IF($L$4="MIT",((AI66/(AVERAGE($AB66,$AI66,$AP66,$AW66,$BD66)))-1), IF($L$4="MIN", IF(OR(AI66="Nur EP ",$K66="E"),((AM66/(MIN($AF66,$AM66,$AT66,$BA66,$BH66)))-1), IF($L$4="MIN",(AI66/(MIN($AB66,$AI66,$AP66,$AW66,$BD66)))-1) ))))))) -> 0.1849090782 | AM66: =IF(OR($K66="",$K66="H",$K66="AB",$K66="G",$J66="Position",$K66="<-- Bitte Positionsart",AH66="",$L66=""),"", IF(OR($K66="A",$K66="B",$K66="E"),$L66*AH66)) ->  | AO66: 33 | AP66: 2178 | AS66: =IF(OR($L66="",AO66="",$J66="Ausführungsbeschreibung",$J66="Hinweis"),"", IF(AND($AA66,$AH66,$AO66,$AV66,$BC66)="","", IF($L$4="MIT", IF(OR(AP66="Nur EP ",$K66="E"),((AT66/(AVERAGE($AF66,$AM66,$AT66,$BA66,$BH66)))-1), IF($L$4="MIT",((AP66/(AVERAGE($AB66,$AI66,$AP66,$AW66,$BD66)))-1), IF($L$4="MIN", IF(OR(AP66="Nur EP ",$K66="E"),((AT66/(MIN($AF66,$AM66,$AT66,$BA66,$BH66)))-1), IF($L$4="MIN",(AP66/(MIN($AB66,$AI66,$AP66,$AW66,$BD66)))-1) ))))))) -> -0.3102487285 | AT66: =IF(OR($K66="",$K66="H",$K66="AB",$K66="G",$J66="Position",$K66="<-- Bitte Positionsart",AO66="",$L66=""),"", IF(OR($K66="A",$K66="B",$K66="E"),$L66*AO66)) ->  | AZ66: =IF(OR($L66="",AV66="",$J66="Ausführungsbeschreibung",$J66="Hinweis"),"", IF(AND($AA66,$AH66,$AO66,$AV66,$BC66)="","", IF($L$4="MIT", IF(OR(AW66="Nur EP ",$K66="E"),((BA66/(AVERAGE($AF66,$AM66,$AT66,$BA66,$BH66)))-1), IF($L$4="MIT",((AW66/(AVERAGE($AB66,$AI66,$AP66,$AW66,$BD66)))-1), IF($L$4="MIN", IF(OR(AW66="Nur EP ",$K66="E"),((BA66/(MIN($AF66,$AM66,$AT66,$BA66,$BH66)))-1), IF($L$4="MIN",(AW66/(MIN($AB66,$AI66,$AP66,$AW66,$BD66)))-1) ))))))) ->  | BA66: =IF(OR($K66="",$K66="H",$K66="AB",$K66="G",$J66="Position",$K66="<-- Bitte Positionsart",AV66="",$L66=""),"", IF(OR($K66="A",$K66="B",$K66="E"),$L66*AV66)) ->  | BG66: =IF(OR($L66="",BC66="",$J66="Ausführungsbeschreibung",$J66="Hinweis"),"", IF(AND($AA66,$AH66,$AO66,$AV66,$BC66)="","", IF($L$4="MIT", IF(OR(BD66="Nur EP ",$K66="E"),((BH66/(AVERAGE($AF66,$AM66,$AT66,$BA66,$BH66)))-1), IF($L$4="MIT",((BD66/(AVERAGE($AB66,$AI66,$AP66,$AW66,$BD66)))-1), IF($L$4="MIN", IF(OR(BD66="Nur EP ",$K66="E"),((BH66/(MIN($AF66,$AM66,$AT66,$BA66,$BH66)))-1), IF($L$4="MIN",((BD66/(MIN($AB66,$AI66,$AP66,$AW66,$BD66)))-1)) ))))))) ->  | BH66: =IF(OR($K66="",$K66="H",$K66="AB",$K66="G",$J66="Position",$K66="<-- Bitte Positionsart",BC66="",$L66=""),"", IF(OR($K66="A",$K66="B",$K66="E"),$L66*BC66)) -> 
G67: =G$64 -> 4 | H67: 3 | I67: Abriss Entsorgung Zinkblechverkleidung der Gaubenseitenwände | J67: Position | L67: 32.4 | M67: qm | O67: 37.51 | P67: 57.84333333 | Q67: 95.5 | R67: 1874.124 | V67: 30 | W67: 972 | X67: -0.4104063283 | AA67: 37.51 | AB67: 1215.324 | AE67: -0.3515242321 | AF67: =IF(OR($K67="",$K67="H",$K67="AB",$K67="G",$J67="Position",$K67="<-- Bitte Positionsart",AA67="",$L67=""),"", IF(OR($K67="A",$K67="B",$K67="E"),$L67*AA67)) ->  | AH67: 40.52 | AI67: 1312.848 | AL67: -0.2994871204 | AM67: =IF(OR($K67="",$K67="H",$K67="AB",$K67="G",$J67="Position",$K67="<-- Bitte Positionsart",AH67="",$L67=""),"", IF(OR($K67="A",$K67="B",$K67="E"),$L67*AH67)) ->  | AO67: 95.5 | AP67: 3094.2 | AS67: 0.6510113525 | AT67: =IF(OR($K67="",$K67="H",$K67="AB",$K67="G",$J67="Position",$K67="<-- Bitte Positionsart",AO67="",$L67=""),"", IF(OR($K67="A",$K67="B",$K67="E"),$L67*AO67)) ->  | AZ67: =IF(OR($L67="",AV67="",$J67="Ausführungsbeschreibung",$J67="Hinweis"),"", IF(AND($AA67,$AH67,$AO67,$AV67,$BC67)="","", IF($L$4="MIT", IF(OR(AW67="Nur EP ",$K67="E"),((BA67/(AVERAGE($AF67,$AM67,$AT67,$BA67,$BH67)))-1), IF($L$4="MIT",((AW67/(AVERAGE($AB67,$AI67,$AP67,$AW67,$BD67)))-1), IF($L$4="MIN", IF(OR(AW67="Nur EP ",$K67="E"),((BA67/(MIN($AF67,$AM67,$AT67,$BA67,$BH67)))-1), IF($L$4="MIN",(AW67/(MIN($AB67,$AI67,$AP67,$AW67,$BD67)))-1) ))))))) ->  | BA67: =IF(OR($K67="",$K67="H",$K67="AB",$K67="G",$J67="Position",$K67="<-- Bitte Positionsart",AV67="",$L67=""),"", IF(OR($K67="A",$K67="B",$K67="E"),$L67*AV67)) ->  | BH67: =IF(OR($K67="",$K67="H",$K67="AB",$K67="G",$J67="Position",$K67="<-- Bitte Positionsart",BC67="",$L67=""),"", IF(OR($K67="A",$K67="B",$K67="E"),$L67*BC67)) -> 
G68: =G$64 -> 4 | H68: 4 | I68: Temporäre Demontage der Geländer an den Erker-Gauben | J68: Position | L68: 3 | M68: Stck. | O68: 245 | P68: 576.0933333 | Q68: 773.69 | R68: 1728.28 | V68: 150 | W68: 450 | X68: -0.6805588091 | AA68: 709.59 | AB68: 2128.77 | AE68: 0.2317274979 | AH68: 773.69 | AI68: 2321.07 | AL68: 0.3429941908 | AO68: 245 | AP68: 735 | AS68: -0.5747216886 | BD68: =IF(AD68="Hinweis","",IF(OR($K68="A",$K68="B"),"Nur EP ",IF($K68="E","E ",IF(AND($L68<>"",BC68<>""),$L68*BC68,"")))) ->  | BF68: =IF(BE68="","",IF(BE68="X",BD68,BD68*BE68)) -> 
G69: =G$64 -> 4 | H69: 5
G70: 4 | H70: 6 | AI70: =IF(J70="Hinweis","",IF(OR($K70="A",$K70="B"),"Nur EP ",IF($K70="E","E ",IF(AND($L70<>"",AH70<>""),$L70*AH70,"")))) ->  | AK70: =IF(AJ70="","",IF(AJ70="X",AI70,AI70*AJ70)) ->  | BH70: =IF(OR($K70="",$K70="H",$K70="AB",$K70="G",$J70="Position",$K70="<-- Bitte Positionsart",BC70="",$L70=""),"", IF(OR($K70="A",$K70="B",$K70="E"),$L70*BC70)) -> 
G71: 4 | H71: 7
G72: 4 | H72: 8 | AB72: =IF($C72="Hinweis","",IF(OR($K72="A",$K72="B"),"Nur EP ",IF($K72="E","E ",IF(AND($L72<>"",AA72<>""),$L72*AA72,"")))) ->  | AM72: =IF(OR($K72="",$K72="H",$K72="AB",$K72="G",$J72="Position",$K72="<-- Bitte Positionsart",AH72="",$L72=""),"", IF(OR($K72="A",$K72="B",$K72="E"),$L72*AH72)) ->  | AP72: =IF($C72="Hinweis","",IF(OR($K72="A",$K72="B"),"Nur EP ",IF($K72="E","E ",IF(AND($L72<>"",AO72<>""),$L72*AO72,"")))) -> 
G73: 4 | H73: 9 | AB73: =IF($C73="Hinweis","",IF(OR($K73="A",$K73="B"),"Nur EP ",IF($K73="E","E ",IF(AND($L73<>"",AA73<>""),$L73*AA73,"")))) ->  | AP73: =IF($C73="Hinweis","",IF(OR($K73="A",$K73="B"),"Nur EP ",IF($K73="E","E ",IF(AND($L73<>"",AO73<>""),$L73*AO73,"")))) -> 
G74: 4 | H74: 10 | AB74: =IF(C74="Hinweis","",IF(OR($K74="A",$K74="B"),"Nur EP ",IF($K74="E","E ",IF(AND($L74<>"",AA74<>""),$L74*AA74,"")))) ->  | AD74: =IF(AC74="","",IF(AC74="X",AB74,AB74*AC74)) ->  | AP74: =IF(P74="Hinweis","",IF(OR($K74="A",$K74="B"),"Nur EP ",IF($K74="E","E ",IF(AND($L74<>"",AO74<>""),$L74*AO74,"")))) -> 
G75: 4 | H75: 11 | AP75: =IF(OR($K75="A",$K75="B"),"Nur EP ",IF($K75="E","E ",IF(AND($L75<>"",AO75<>""),$L75*AO75,""))) ->  | AR75: =IF(AQ75="","",IF(AQ75="X",AP75,AP75*AQ75)) -> 
G76: 4 | H76: 12 | AB76: =IF(C76="Hinweis","",IF(OR($K76="A",$K76="B"),"Nur EP ",IF($K76="E","E ",IF(AND($L76<>"",AA76<>""),$L76*AA76,"")))) ->  | AF76: =IF(OR($K76="",$K76="H",$K76="AB",$K76="G",$J76="Position",$K76="<-- Bitte Positionsart",AA76="",$L76=""),"", IF(OR($K76="A",$K76="B",$K76="E"),$L76*AA76)) ->  | AP76: =IF(P76="Hinweis","",IF(OR($K76="A",$K76="B"),"Nur EP ",IF($K76="E","E ",IF(AND($L76<>"",AO76<>""),$L76*AO76,"")))) ->  | AR76: =IF(AQ76="","",IF(AQ76="X",AP76,AP76*AQ76)) ->  | AT76: =IF(OR($K76="",$K76="H",$K76="AB",$K76="G",$J76="Position",$K76="<-- Bitte Positionsart",AO76="",$L76=""),"", IF(OR($K76="A",$K76="B",$K76="E"),$L76*AO76)) ->  | AW76: =IF(W76="Hinweis","",IF(OR($K76="A",$K76="B"),"Nur EP ",IF($K76="E","E ",IF(AND($L76<>"",AV76<>""),$L76*AV76,"")))) ->  | AY76: =IF(AX76="","",IF(AX76="X",AW76,AW76*AX76)) ->  | AZ76: =IF(OR($L76="",AV76="",$J76="Ausführungsbeschreibung",$J76="Hinweis"),"", IF(AND($AA76,$AH76,$AO76,$AV76,$BC76)="","", IF($L$4="MIT", IF(OR(AW76="Nur EP ",$K76="E"),((BA76/(AVERAGE($AF76,$AM76,$AT76,$BA76,$BH76)))-1), IF($L$4="MIT",((AW76/(AVERAGE($AB76,$AI76,$AP76,$AW76,$BD76)))-1), IF($L$4="MIN", IF(OR(AW76="Nur EP ",$K76="E"),((BA76/(MIN($AF76,$AM76,$AT76,$BA76,$BH76)))-1), IF($L$4="MIN",(AW76/(MIN($AB76,$AI76,$AP76,$AW76,$BD76)))-1) ))))))) ->  | BA76: =IF(OR($K76="",$K76="H",$K76="AB",$K76="G",$J76="Position",$K76="<-- Bitte Positionsart",AV76="",$L76=""),"", IF(OR($K76="A",$K76="B",$K76="E"),$L76*AV76)) -> 
W77: =IF(OR($K77="A",$K77="B"),"Nur EP ",IF($K77="E","",IF(AND($L77<>"",V77<>""),$L77*V77,""))) ->  | Y77: =IF($K77="Ja",IF(AND($L77<>"",V77<>""),$L77*V77),"") ->  | AA77: EP / % Titel | AB77: Positions- / Titelsumme | AF77: =IF($K77="Ja",IF(AND($L77<>"",AA77<>""),$L77*AA77),"") ->  | AH77: EP / % Titel | AI77: Positions- / Titelsumme | AM77: =IF($K77="Ja",IF(AND($L77<>"",AH77<>""),$L77*AH77),"") ->  | AO77: EP / % Titel | AP77: Positions- / Titelsumme | AT77: =IF($K77="Ja",IF(AND($L77<>"",AO77<>""),$L77*AO77),"") ->  | AV77: EP / % Titel | AW77: Positions- / Titelsumme | AY77: =IF(AX77="","",IF(AX77="X",AW77,AW77*AX77)) ->  | BA77: =IF($K77="Ja",IF(AND($L77<>"",AV77<>""),$L77*AV77),"") ->  | BC77: EP / % Titel | BD77: Positions- / Titelsumme | BH77: =IF($K77="Ja",IF(AND($L77<>"",BC77<>""),$L77*BC77),"") -> 
G78: 5 | I78: Zimmermannsarbeiten | O78: =CONCATENATE("Titelsumme",CHAR(10),"MIN",CHAR(10),TEXT(SUMPRODUCT($L79:$L104,O79:O104),"##.##0,00")," €") -> Titelsumme MIN 39.100,74 € | P78: =CONCATENATE("Titelsumme",CHAR(10),"MIT",CHAR(10),TEXT(SUMPRODUCT($L79:$L104,P79:P104),"##.##0,00")," €") -> Titelsumme MIT 73.243,13 € | Q78: =CONCATENATE("Titelsumme",CHAR(10),"MAX",CHAR(10),TEXT(SUMPRODUCT($L79:$L104,Q79:Q104),"##.##0,00")," €") -> Titelsumme MAX 92.964,70 € | R78: =SUM(R79:R104) -> 73243.12712 | T78: =SUM(T79:T104) -> 15633.45 | W78: =SUM(W79:W104) -> 0 | Y78: =SUM(Y79:Y104) -> 0 | AA78: =IF(AB78=0,"", IF($L$4="MIT",((AB78/(AVERAGE($AB78,$AI78,$AP78,$AW78,$BD78)))-1)*100,)) -> 99.54805671 | AB78: =SUM(AB79:AB103) -> 87693.1421 | AF78: =SUM(AF79:AF104) -> 15633.45 | AH78: =IF(AI78=0,"", IF($L$4="MIT",((AI78/(AVERAGE($AB78,$AI78,$AP78,$AW78,$BD78)))-1)*100,)) -> 103.6110071 | AI78: =SUM(AI79:AI104) -> 89478.64125 | AM78: =SUM(AM79:AM104) -> 15633.45 | AO78: =IF(AP78=0,"", IF($L$4="MIT",((AP78/(AVERAGE($AB78,$AI78,$AP78,$AW78,$BD78)))-1)*100,)) -> -3.159063803 | AP78: =SUM(AP79:AP104) -> 42557.598 | AR78: =IF(AQ78="","",IF(AQ78="X",AP78,AP78*AQ78)) ->  | AT78: =SUM(AT79:AT104) -> 0 | AV78: =IF(AW78=0,"", IF($L$4="MIT",((AW78/(AVERAGE($AB78,$AI78,$AP78,$AW78,$BD78)))-1)*100,)) ->  | AW78: =SUM(AW79:AW104) -> 0 | AY78: =IF(AX78="","",IF(AX78="X",AW78,AW78*AX78)) ->  | BA78: =SUM(BA79:BA104) -> 0 | BC78: =IF(BD78=0,"", IF($L$4="MIT",((BD78/(AVERAGE($AB78,$AI78,$AP78,$AW78,$BD78)))-1)*100,)) ->  | BD78: =SUM(BD79:BD104) -> 0 | BF78: =IF(BE78="","",IF(BE78="X",BD78,BD78*BE78)) ->  | BH78: =SUM(BH79:BH104) -> 0
G79: =G$78 -> 5 | H79: =IF(G$162="","",ROW()-ROW(G$78)) -> 1 | I79: Hinweis zu vorhandener Mineralwolldämmung | J79: Hinweis | K79: =IF(J79="Position","",IF(J79="Grundposition","G",IF(J79="Alternativposition","A",IF(J79="Bedarfsposition","B",IF(J79="Hinweis","H",IF(J79="Ausführungsbeschreibung","AB",IF(J79="Entfällt","E",IF(AND(I79<>"",L79<>""),"<-- Bitte Positionsart","")))))))) -> H | O79: =IF(OR($K79="B",$K79="A",$K79="H",$K79="AB",$K79="<-- Bitte Positionsart",SUM(AA79,AH79,AO79,AV79,BC79)=0),"",MIN(AA79,AH79,AO79,AV79,BC79)) ->  | P79: =IF(OR($K79="B",$K79="A",$K79="H",$K79="AB",$K79="<-- Bitte Positionsart",SUM(AA79,AH79,AO79,AV79,BC79)=0),"",SUM(AA79,AH79,AO79,AV79,BC79)/COUNT(AA79,AH79,AO79,AV79,BC79)) ->  | Q79: =IF(OR($K79="B",$K79="A",$K79="H",$K79="AB",$K79="<-- Bitte Positionsart",SUM(AA79,AH79,AO79,AV79,BC79)=0),"",MAX(AA79,AH79,AO79,AV79,BC79)) ->  | R79: =IF(OR($K79="A",$K79="B"),"Nur EP ",IF($K79="E","E ",IF(AND($L79<>"",P79<>""),$L79*P79,""))) ->  | T79: =IF(OR($K79="",$K79="H",$K79="AB",$K79="G",$K79="<-- Bitte Positionsart"),"",IF(OR($K79="A",$K79="B"),$L79*(SUM(AA79,AH79,AO79,AV79,BC79)/COUNT(AA79,AH79,AO79,AV79,BC79)),IF($K79="E",$L79*P79))) ->  | W79: =IF(OR($K79="A",$K79="B"),"Nur EP ",IF($K79="E","E ",IF(AND($L79<>"",V79<>""),$L79*V79,""))) ->  | X79: =IF(OR($L148="",V79="",$J79="Ausführungsbeschreibung",$J79="Hinweis"),"", IF(AND($V79,$AA79,$AH79,$AO79,$AV79,$BC79)="","", IF(OR($W79="Nur EP ",$K79="E"),(Y79/(AVERAGE($Y79,$AF79,$AM79,$AT79,Y79))-1), IF(AND($W79,$AB79,$AI79,$AP79,$AW79)="","",(W79/(AVERAGE($W79,$AB79,$AI79,$AP79,$AW79)))-1)))) ->  | Y79: =IF(OR($K79="",$K79="H",$K79="AB",$K79="G",$J79="Position",$K79="<-- Bitte Positionsart",V79="",$L79=""),"", IF(OR($K79="A",$K79="B",$K79="E"),$L79*V79)) ->  | AB79: =IF(C79="Hinweis","",IF(OR($K79="A",$K79="B"),"Nur EP ",IF($K79="E","E ",IF(AND($L79<>"",AA79<>""),$L79*AA79,"")))) ->  | AE79: =IF(OR($L79="",AA79="",$J79="Ausführungsbeschreibung",$J79="Hinweis"),"", IF(AND($AA79,$AH79,$AO79,$AV79,$BC79)="","", IF($L$4="MIT", IF(OR(AB79="Nur EP ",$K79="E"),((AF79/(AVERAGE($AF79,$AM79,$AT79,$BA79,$BH79)))-1), IF($L$4="MIT",((AB79/(AVERAGE($AB79,$AI79,$AP79,$AW79,$BD79)))-1), IF($L$4="MIN", IF(OR(AB79="Nur EP ",$K79="E"),((AF79/(MIN($AF79,$AM79,$AT79,$BA79,$BH79)))-1), IF($L$4="MIN",((AB79/(MIN($AB79,$AI79,$AP79,$AW79,$BD79)))-1)) ))))))) ->  | AF79: =IF(OR($K79="",$K79="H",$K79="AB",$K79="G",$J79="Position",$K79="<-- Bitte Positionsart",AA79="",$L79=""),"", IF(OR($K79="A",$K79="B",$K79="E"),$L79*AA79)) ->  | AI79: =IF(J79="Hinweis","",IF(OR($K79="A",$K79="B"),"Nur EP ",IF($K79="E","E ",IF(AND($L79<>"",AH79<>""),$L79*AH79,"")))) ->  | AL79: =IF(OR($L79="",AH79="",$J79="Ausführungsbeschreibung",$J79="Hinweis"),"", IF(AND($AA79,$AH79,$AO79,$AV79,$BC79)="","", IF($L$4="MIT", IF(OR(AI79="Nur EP ",$K79="E"),((AM79/(AVERAGE($AF79,$AM79,$AT79,$BA79,$BH79)))-1)*100, IF($L$4="MIT",((AI79/(AVERAGE($AB79,$AI79,$AP79,$AW79,$BD79)))-1)*100, IF($L$4="MIN", IF(OR(AI79="Nur EP ",$K79="E"),((AM79/(MIN($AF79,$AM79,$AT79,$BA79,$BH79)))-1)*100, IF($L$4="MIN",(AI79/(MIN($AB79,$AI79,$AP79,$AW79,$BD79)))-1)*100 ))))))) ->  | AM79: =IF(OR($K79="",$K79="H",$K79="AB",$K79="G",$J79="Position",$K79="<-- Bitte Positionsart",AH79="",$L79=""),"", IF(OR($K79="A",$K79="B",$K79="E"),$L79*AH79)) ->  | AP79: =IF(P79="Hinweis","",IF(OR($K79="A",$K79="B"),"Nur EP ",IF($K79="E","E ",IF(AND($L79<>"",AO79<>""),$L79*AO79,"")))) ->  | AS79: =IF(OR($L79="",AO79="",$J79="Ausführungsbeschreibung",$J79="Hinweis"),"", IF(AND($AA79,$AH79,$AO79,$AV79,$BC79)="","", IF($L$4="MIT", IF(OR(AP79="Nur EP ",$K79="E"),((AT79/(AVERAGE($AF79,$AM79,$AT79,$BA79,$BH79)))-1), IF($L$4="MIT",((AP79/(AVERAGE($AB79,$AI79,$AP79,$AW79,$BD79)))-1), IF($L$4="MIN", IF(OR(AP79="Nur EP ",$K79="E"),((AT79/(MIN($AF79,$AM79,$AT79,$BA79,$BH79)))-1), IF($L$4="MIN",(AP79/(MIN($AB79,$AI79,$AP79,$AW79,$BD79)))-1) ))))))) ->  | AT79: =IF(OR($K79="",$K79="H",$K79="AB",$K79="G",$J79="Position",$K79="<-- Bitte Positionsart",AO79="",$L79=""),"", IF(OR($K79="A",$K79="B",$K79="E"),$L79*AO79)) ->  | AW79: =IF(W79="Hinweis","",IF(OR($K79="A",$K79="B"),"Nur EP ",IF($K79="E","E ",IF(AND($L79<>"",AV79<>""),$L79*AV79,"")))) ->  | AZ79: =IF(OR($L79="",AV79="",$J79="Ausführungsbeschreibung",$J79="Hinweis"),"", IF(AND($AA79,$AH79,$AO79,$AV79,$BC79)="","", IF($L$4="MIT", IF(OR(AW79="Nur EP ",$K79="E"),((BA79/(AVERAGE($AF79,$AM79,$AT79,$BA79,$BH79)))-1), IF($L$4="MIT",((AW79/(AVERAGE($AB79,$AI79,$AP79,$AW79,$BD79)))-1), IF($L$4="MIN", IF(OR(AW79="Nur EP ",$K79="E"),((BA79/(MIN($AF79,$AM79,$AT79,$BA79,$BH79)))-1), IF($L$4="MIN",(AW79/(MIN($AB79,$AI79,$AP79,$AW79,$BD79)))-1) ))))))) ->  | BA79: =IF(OR($K79="",$K79="H",$K79="AB",$K79="G",$J79="Position",$K79="<-- Bitte Positionsart",AV79="",$L79=""),"", IF(OR($K79="A",$K79="B",$K79="E"),$L79*AV79)) ->  | BD79: =IF(AD79="Hinweis","",IF(OR($K79="A",$K79="B"),"Nur EP ",IF($K79="E","E ",IF(AND($L79<>"",BC79<>""),$L79*BC79,"")))) ->  | BG79: =IF(OR($L79="",BC79="",$J79="Ausführungsbeschreibung",$J79="Hinweis"),"", IF(AND($AA79,$AH79,$AO79,$AV79,$BC79)="","", IF($L$4="MIT", IF(OR(BD79="Nur EP ",$K79="E"),((BH79/(AVERAGE($AF79,$AM79,$AT79,$BA79,$BH79)))-1), IF($L$4="MIT",((BD79/(AVERAGE($AB79,$AI79,$AP79,$AW79,$BD79)))-1), IF($L$4="MIN", IF(OR(BD79="Nur EP ",$K79="E"),((BH79/(MIN($AF79,$AM79,$AT79,$BA79,$BH79)))-1), IF($L$4="MIN",((BD79/(MIN($AB79,$AI79,$AP79,$AW79,$BD79)))-1)) ))))))) ->  | BH79: =IF(OR($K79="",$K79="H",$K79="AB",$K79="G",$J79="Position",$K79="<-- Bitte Positionsart",BC79="",$L79=""),"", IF(OR($K79="A",$K79="B",$K79="E"),$L79*BC79)) -> 
G80: =G$78 -> 5 | H80: 2 | I80: Hinweis zu Holzqualitäten | J80: Hinweis | K80: =IF(J80="Position","",IF(J80="Grundposition","G",IF(J80="Alternativposition","A",IF(J80="Bedarfsposition","B",IF(J80="Hinweis","H",IF(J80="Ausführungsbeschreibung","AB",IF(J80="Entfällt","E",IF(AND(I80<>"",L80<>""),"<-- Bitte Positionsart","")))))))) -> H | X80: =IF(OR($L149="",V80="",$J80="Ausführungsbeschreibung",$J80="Hinweis"),"", IF(AND($V80,$AA80,$AH80,$AO80,$AV80,$BC80)="","", IF(OR($W80="Nur EP ",$K80="E"),(Y80/(AVERAGE($Y80,$AF80,$AM80,$AT80,Y80))-1), IF(AND($W80,$AB80,$AI80,$AP80,$AW80)="","",(W80/(AVERAGE($W80,$AB80,$AI80,$AP80,$AW80)))-1)))) ->  | Y80: =IF(OR($K80="",$K80="H",$K80="AB",$K80="G",$J80="Position",$K80="<-- Bitte Positionsart",V80="",$L80=""),"", IF(OR($K80="A",$K80="B",$K80="E"),$L80*V80)) ->  | AL80: =IF(OR($L80="",AH80="",$J80="Ausführungsbeschreibung",$J80="Hinweis"),"", IF(AND($AA80,$AH80,$AO80,$AV80,$BC80)="","", IF($L$4="MIT", IF(OR(AI80="Nur EP ",$K80="E"),((AM80/(AVERAGE($AF80,$AM80,$AT80,$BA80,$BH80)))-1)*100, IF($L$4="MIT",((AI80/(AVERAGE($AB80,$AI80,$AP80,$AW80,$BD80)))-1)*100, IF($L$4="MIN", IF(OR(AI80="Nur EP ",$K80="E"),((AM80/(MIN($AF80,$AM80,$AT80,$BA80,$BH80)))-1)*100, IF($L$4="MIN",(AI80/(MIN($AB80,$AI80,$AP80,$AW80,$BD80)))-1)*100 ))))))) ->  | AM80: =IF(OR($K80="",$K80="H",$K80="AB",$K80="G",$J80="Position",$K80="<-- Bitte Positionsart",AH80="",$L80=""),"", IF(OR($K80="A",$K80="B",$K80="E"),$L80*AH80)) ->  | AS80: =IF(OR($L80="",AO80="",$J80="Ausführungsbeschreibung",$J80="Hinweis"),"", IF(AND($AA80,$AH80,$AO80,$AV80,$BC80)="","", IF($L$4="MIT", IF(OR(AP80="Nur EP ",$K80="E"),((AT80/(AVERAGE($AF80,$AM80,$AT80,$BA80,$BH80)))-1), IF($L$4="MIT",((AP80/(AVERAGE($AB80,$AI80,$AP80,$AW80,$BD80)))-1), IF($L$4="MIN", IF(OR(AP80="Nur EP ",$K80="E"),((AT80/(MIN($AF80,$AM80,$AT80,$BA80,$BH80)))-1), IF($L$4="MIN",(AP80/(MIN($AB80,$AI80,$AP80,$AW80,$BD80)))-1) ))))))) ->  | AZ80: =IF(OR($L80="",AV80="",$J80="Ausführungsbeschreibung",$J80="Hinweis"),"", IF(AND($AA80,$AH80,$AO80,$AV80,$BC80)="","", IF($L$4="MIT", IF(OR(AW80="Nur EP ",$K80="E"),((BA80/(AVERAGE($AF80,$AM80,$AT80,$BA80,$BH80)))-1), IF($L$4="MIT",((AW80/(AVERAGE($AB80,$AI80,$AP80,$AW80,$BD80)))-1), IF($L$4="MIN", IF(OR(AW80="Nur EP ",$K80="E"),((BA80/(MIN($AF80,$AM80,$AT80,$BA80,$BH80)))-1), IF($L$4="MIN",(AW80/(MIN($AB80,$AI80,$AP80,$AW80,$BD80)))-1) ))))))) ->  | BA80: =IF(OR($K80="",$K80="H",$K80="AB",$K80="G",$J80="Position",$K80="<-- Bitte Positionsart",AV80="",$L80=""),"", IF(OR($K80="A",$K80="B",$K80="E"),$L80*AV80)) ->  | BG80: =IF(OR($L80="",BC80="",$J80="Ausführungsbeschreibung",$J80="Hinweis"),"", IF(AND($AA80,$AH80,$AO80,$AV80,$BC80)="","", IF($L$4="MIT", IF(OR(BD80="Nur EP ",$K80="E"),((BH80/(AVERAGE($AF80,$AM80,$AT80,$BA80,$BH80)))-1), IF($L$4="MIT",((BD80/(AVERAGE($AB80,$AI80,$AP80,$AW80,$BD80)))-1), IF($L$4="MIN", IF(OR(BD80="Nur EP ",$K80="E"),((BH80/(MIN($AF80,$AM80,$AT80,$BA80,$BH80)))-1), IF($L$4="MIN",((BD80/(MIN($AB80,$AI80,$AP80,$AW80,$BD80)))-1)) ))))))) -> 
G81: =G$78 -> 5 | H81: 3 | I81: Hinweis zum nachfolgenden Dämmsystem | J81: Hinweis | K81: H | AL81: =IF(OR($L81="",AH81="",$J81="Ausführungsbeschreibung",$J81="Hinweis"),"", IF(AND($AA81,$AH81,$AO81,$AV81,$BC81)="","", IF($L$4="MIT", IF(OR(AI81="Nur EP ",$K81="E"),((AM81/(AVERAGE($AF81,$AM81,$AT81,$BA81,$BH81)))-1)*100, IF($L$4="MIT",((AI81/(AVERAGE($AB81,$AI81,$AP81,$AW81,$BD81)))-1)*100, IF($L$4="MIN", IF(OR(AI81="Nur EP ",$K81="E"),((AM81/(MIN($AF81,$AM81,$AT81,$BA81,$BH81)))-1)*100, IF($L$4="MIN",(AI81/(MIN($AB81,$AI81,$AP81,$AW81,$BD81)))-1)*100 ))))))) ->  | AM81: =IF(OR($K81="",$K81="H",$K81="AB",$K81="G",$J81="Position",$K81="<-- Bitte Positionsart",AH81="",$L81=""),"", IF(OR($K81="A",$K81="B",$K81="E"),$L81*AH81)) -> 
G82: 5 | H82: 4 | I82: Probeöffnung des Dach zur Ermittlung der möglichen zusätzlichen Dämmstärke | J82: Position | L82: 1 | M82: pausch. | O82: 127.02 | P82: 145.44 | Q82: 180 | R82: 145.44 | AA82: 127.02 | AB82: 127.02 | AE82: -0.126650165 | AH82: 129.3 | AI82: 129.3 | AL82: =IF(OR($L82="",AH82="",$J82="Ausführungsbeschreibung",$J82="Hinweis"),"", IF(AND($AA82,$AH82,$AO82,$AV82,$BC82)="","", IF($L$4="MIT", IF(OR(AI82="Nur EP ",$K82="E"),((AM82/(AVERAGE($AF82,$AM82,$AT82,$BA82,$BH82)))-1), IF($L$4="MIT",((AI82/(AVERAGE($AB82,$AI82,$AP82,$AW82,$BD82)))-1), IF($L$4="MIN", IF(OR(AI82="Nur EP ",$K82="E"),((AM82/(MIN($AF82,$AM82,$AT82,$BA82,$BH82)))-1), IF($L$4="MIN",(AI82/(MIN($AB82,$AI82,$AP82,$AW82,$BD82)))-1) ))))))) -> -0.1109735974 | AO82: 180 | AP82: 180 | AS82: 0.2376237624
G83: 5 | H83: 5 | I83: Holzfaser Dämmplatten Ergänzung der Zwischensparrendämmung | J83: Grundposition | K83: G | L83: 195 | M83: qm | O83: =IF(OR($K83="B",$K83="A",$K83="H",$K83="AB",$K83="<-- Bitte Positionsart",SUM(AA83,AH83,AO83,AV83,BC83)=0),"",MIN(AA83,AH83,AO83,AV83,BC83)) -> 22.5 | P83: =IF(OR($K83="B",$K83="A",$K83="H",$K83="AB",$K83="<-- Bitte Positionsart",SUM(AA83,AH83,AO83,AV83,BC83)=0),"",SUM(AA83,AH83,AO83,AV83,BC83)/COUNT(AA83,AH83,AO83,AV83,BC83)) -> 37.18333333 | Q83: =IF(OR($K83="B",$K83="A",$K83="H",$K83="AB",$K83="<-- Bitte Positionsart",SUM(AA83,AH83,AO83,AV83,BC83)=0),"",MAX(AA83,AH83,AO83,AV83,BC83)) -> 45.34 | R83: =IF(OR($K83="A",$K83="B"),"Nur EP ",IF($K83="E","E ",IF(AND($L83<>"",P83<>""),$L83*P83,""))) -> 7250.75 | T83: =IF(OR($K83="",$K83="H",$K83="AB",$K83="G",$K83="<-- Bitte Positionsart"),"",IF(OR($K83="A",$K83="B"),$L83*(SUM(AA83,AH83,AO83,AV83,BC83)/COUNT(AA83,AH83,AO83,AV83,BC83)),IF($K83="E",$L83*P83))) ->  | AA83: 43.71 | AB83: 8523.45 | AE83: =IF(OR($L83="",AA83="",$J83="Ausführungsbeschreibung",$J83="Hinweis"),"", IF(AND($AA83,$AH83,$AO83,$AV83,$BC83)="","", IF($L$4="MIT", IF(OR(AB83="Nur EP ",$K83="E"),((AF83/(AVERAGE($AF83,$AM83,$AT83,$BA83,$BH83)))-1), IF($L$4="MIT",((AB83/(AVERAGE($AB83,$AI83,$AP83,$AW83,$BD83)))-1), IF($L$4="MIN", IF(OR(AB83="Nur EP ",$K83="E"),((AF83/(MIN($AF83,$AM83,$AT83,$BA83,$BH83)))-1), IF($L$4="MIN",((AB83/(MIN($AB83,$AI83,$AP83,$AW83,$BD83)))-1)) ))))))) -> 0.1755266697 | AH83: 45.34 | AI83: 8841.3 | AL83: =IF(OR($L83="",AH83="",$J83="Ausführungsbeschreibung",$J83="Hinweis"),"", IF(AND($AA83,$AH83,$AO83,$AV83,$BC83)="","", IF($L$4="MIT", IF(OR(AI83="Nur EP ",$K83="E"),((AM83/(AVERAGE($AF83,$AM83,$AT83,$BA83,$BH83)))-1), IF($L$4="MIT",((AI83/(AVERAGE($AB83,$AI83,$AP83,$AW83,$BD83)))-1), IF($L$4="MIN", IF(OR(AI83="Nur EP ",$K83="E"),((AM83/(MIN($AF83,$AM83,$AT83,$BA83,$BH83)))-1), IF($L$4="MIN",(AI83/(MIN($AB83,$AI83,$AP83,$AW83,$BD83)))-1) ))))))) -> 0.2193635141 | AO83: 22.5 | AP83: 4387.5 | AS83: -0.3948901838
G84: 5 | H84: 6 | I84: Holzfaser Dämmplatten Ergänzung der Zwischensparrendämmung | J84: Alternativposition | K84: A | L84: 195 | M84: qm | R84: Nur EP | T84: =IF(OR($K84="",$K84="H",$K84="AB",$K84="G",$K84="<-- Bitte Positionsart"),"",IF(OR($K84="A",$K84="B"),$L84*(SUM(AA84,AH84,AO84,AV84,BC84)/COUNT(AA84,AH84,AO84,AV84,BC84)),IF($K84="E",$L84*P84))) -> 8523.45 | W84: Nur EP | AA84: 43.71 | AB84: Nur EP | AE84: 0 | AF84: 8523.45 | AH84: 43.71 | AI84: Nur EP | AL84: 0 | AM84: 8523.45 | AP84: Nur EP | AW84: Nur EP | BD84: Nur EP
G85: 5 | H85: 7 | I85: Einbau einer Unterdeckbahn als luftdichte Ebene der Dachflächen | J85: Position | L85: 219.15 | M85: qm | O85: 8.9 | P85: 17.56333333 | Q85: 22.73 | R85: 3849.0045 | AA85: 21.06 | AB85: =IF(C85="Hinweis","",IF(OR($K85="A",$K85="B"),"Nur EP ",IF($K85="E","E ",IF(AND($L85<>"",AA85<>""),$L85*AA85,"")))) -> 4615.299 | AD85: =IF(AC85="","",IF(AC85="X",AB85,AB85*AC85)) ->  | AE85: 0.1990890112 | AH85: 22.73 | AI85: =IF(J85="Hinweis","",IF(OR($K85="A",$K85="B"),"Nur EP ",IF($K85="E","E ",IF(AND($L85<>"",AH85<>""),$L85*AH85,"")))) -> 4981.2795 | AK85: =IF(AJ85="","",IF(AJ85="X",AI85,AI85*AJ85)) ->  | AL85: 0.2941734675 | AM85: =IF(J85="Hinweis","",IF($K85="","",IF(OR($K85="A",$K85="B"),$L85*AH85,IF($K85="E",$L85*AH85)))) ->  | AO85: 8.9 | AP85: =IF(P85="Hinweis","",IF(OR($K85="A",$K85="B"),"Nur EP ",IF($K85="E","E ",IF(AND($L85<>"",AO85<>""),$L85*AO85,"")))) -> 1950.435 | AS85: -0.4932624786 | BD85: =IF(AD85="Hinweis","",IF(OR($K85="A",$K85="B"),"Nur EP ",IF($K85="E","E ",IF(AND($L85<>"",BC85<>""),$L85*BC85,"")))) -> 
G86: 5 | H86: 8 | I86: Einbau einer Unterdeckbahn als luftdichte Ebene - Gaubenwände | J86: Position | L86: 18 | M86: qm | O86: 21.06 | P86: 30.29666667 | Q86: 48.3 | R86: 545.34 | AA86: 21.06 | AB86: 379.08 | AE86: -0.3048740235 | AH86: 21.53 | AI86: 387.54 | AL86: -0.2893607658 | AO86: 48.3 | AP86: 869.4 | AS86: 0.5942347893
G87: 5 | H87: 9 | I87: Herstellung von luftdichten Anschlüssen an benachbarte Flächen und Durchdringungen | J87: Position | L87: 225 | M87: m | O87: 4.8 | P87: 10.06 | Q87: 12.88 | R87: 2263.5 | W87: =IF(OR($K87="A",$K87="B"),"Nur EP ",IF($K87="E","E ",IF(AND($L87<>"",V87<>""),$L87*V87,""))) ->  | AA87: 12.88 | AB87: 2898 | AE87: 0.2803180915 | AH87: 12.5 | AI87: 2812.5 | AL87: 0.2425447316 | AO87: 4.8 | AP87: 1080 | AS87: -0.5228628231
G88: 5 | H88: 10 | I88: Herstellen eines temporär bewitterungsfähigen Unterdachs mit Hozfaserplatten u.Konterlattung | J88: Grundposition | K88: =IF(J88="Position","",IF(J88="Grundposition","G",IF(J88="Alternativposition","A",IF(J88="Bedarfsposition","B",IF(J88="Hinweis","H",IF(J88="Ausführungsbeschreibung","AB",IF(J88="Entfällt","E",IF(AND(I88<>"",L88<>""),"<-- Bitte Positionsart","")))))))) -> G | L88: 200 | M88: qm | O88: =IF(OR($K88="B",$K88="A",$K88="H",$K88="AB",$K88="<-- Bitte Positionsart",SUM(AA88,AH88,AO88,AV88,BC88)=0),"",MIN(AA88,AH88,AO88,AV88,BC88)) -> 35.55 | P88: =IF(OR($K88="B",$K88="A",$K88="H",$K88="AB",$K88="<-- Bitte Positionsart",SUM(AA88,AH88,AO88,AV88,BC88)=0),"",SUM(AA88,AH88,AO88,AV88,BC88)/COUNT(AA88,AH88,AO88,AV88,BC88)) -> 38.56666667 | Q88: =IF(OR($K88="B",$K88="A",$K88="H",$K88="AB",$K88="<-- Bitte Positionsart",SUM(AA88,AH88,AO88,AV88,BC88)=0),"",MAX(AA88,AH88,AO88,AV88,BC88)) -> 44.5 | R88: =IF(OR($K88="A",$K88="B"),"Nur EP ",IF($K88="E","E ",IF(AND($L88<>"",P88<>""),$L88*P88,""))) -> 7713.333333 | W88: =IF(OR($K88="A",$K88="B"),"Nur EP ",IF($K88="E","E ",IF(AND($L88<>"",V88<>""),$L88*V88,""))) ->  | AA88: 35.55 | AB88: =IF(C88="Hinweis","",IF(OR($K88="A",$K88="B"),"Nur EP ",IF($K88="E","E ",IF(AND($L88<>"",AA88<>""),$L88*AA88,"")))) -> 7110 | AD88: =IF(AC88="","",IF(AC88="X",AB88,AB88*AC88)) ->  | AE88: -0.07821953328 | AF88: =IF(OR($K88="",$K88="H",$K88="AB",$K88="G",$J88="Position",$K88="<-- Bitte Positionsart",AA88="",$L88=""),"", IF(OR($K88="A",$K88="B",$K88="E"),$L88*AA88)) ->  | AH88: 35.65 | AI88: =IF(J88="Hinweis","",IF(OR($K88="A",$K88="B"),"Nur EP ",IF($K88="E","E ",IF(AND($L88<>"",AH88<>""),$L88*AH88,"")))) -> 7130 | AK88: =IF(AJ88="","",IF(AJ88="X",AI88,AI88*AJ88)) ->  | AL88: -0.07562662057 | AM88: =IF(OR($K88="",$K88="H",$K88="AB",$K88="G",$J88="Position",$K88="<-- Bitte Positionsart",AH88="",$L88=""),"", IF(OR($K88="A",$K88="B",$K88="E"),$L88*AH88)) ->  | AO88: 44.5 | AP88: =IF(P88="Hinweis","",IF(OR($K88="A",$K88="B"),"Nur EP ",IF($K88="E","E ",IF(AND($L88<>"",AO88<>""),$L88*AO88,"")))) -> 8900 | AR88: =IF(AQ88="","",IF(AQ88="X",AP88,AP88*AQ88)) ->  | AS88: 0.1538461538 | BD88: =IF(AD88="Hinweis","",IF(OR($K88="A",$K88="B"),"Nur EP ",IF($K88="E","E ",IF(AND($L88<>"",BC88<>""),$L88*BC88,"")))) ->  | BF88: =IF(BE88="","",IF(BE88="X",BD88,BD88*BE88)) -> 
G89: 5 | H89: 11 | I89: Herstellen eines temporär bewitterungsfähigen Unterdachs mit Hozfaserplatten u.Konterlattung | J89: Alternativposition | K89: A | L89: 200 | M89: qm | R89: Nur EP | T89: 7110 | W89: Nur EP | AA89: 35.55 | AB89: Nur EP | AE89: 0 | AF89: 7110 | AH89: 35.55 | AI89: Nur EP | AL89: 0 | AM89: =IF(J89="Hinweis","",IF($K89="","",IF(OR($K89="A",$K89="B"),$L89*AH89,IF($K89="E",$L89*AH89)))) -> 7110 | AP89: Nur EP | AW89: Nur EP | AZ89: =IF(OR($L89="",AV89="",$J89="Ausführungsbeschreibung",$J89="Hinweis"),"", IF(AND($AA89,$AH89,$AO89,$AV89,$BC89)="","", IF($L$4="MIT", IF(OR(AW89="Nur EP ",$K89="E"),((BA89/(AVERAGE($AF89,$AM89,$AT89,$BA89,$BH89)))-1), IF($L$4="MIT",((AW89/(AVERAGE($AB89,$AI89,$AP89,$AW89,$BD89)))-1), IF($L$4="MIN", IF(OR(AW89="Nur EP ",$K89="E"),((BA89/(MIN($AF89,$AM89,$AT89,$BA89,$BH89)))-1), IF($L$4="MIN",(AW89/(MIN($AB89,$AI89,$AP89,$AW89,$BD89)))-1) ))))))) ->  | BA89: =IF(OR($K89="",$K89="H",$K89="AB",$K89="G",$J89="Position",$K89="<-- Bitte Positionsart",AV89="",$L89=""),"", IF(OR($K89="A",$K89="B",$K89="E"),$L89*AV89)) ->  | BD89: Nur EP
G90: 5 | H90: 12 | I90: Herstellen eines Wasserdichten Anschluss der Unterdeckplatte an das Traufblech | J90: Position | L90: 61 | M90: m | O90: 9.5 | P90: 21.47666667 | Q90: 27.55 | R90: 1310.076667 | AA90: 27.38 | AB90: 1670.18 | AE90: 0.2748719541 | AH90: 27.55 | AI90: 1680.55 | AL90: 0.2827875213 | AO90: 9.5 | AP90: 579.5 | AS90: -0.5576594754 | AW90: =IF(W90="Hinweis","",IF(OR($K90="A",$K90="B"),"Nur EP ",IF($K90="E","E ",IF(AND($L90<>"",AV90<>""),$L90*AV90,"")))) ->  | AY90: =IF(AX90="","",IF(AX90="X",AW90,AW90*AX90)) ->  | AZ90: =IF(OR($L90="",AV90="",$J90="Ausführungsbeschreibung",$J90="Hinweis"),"", IF(AND($AA90,$AH90,$AO90,$AV90,$BC90)="","", IF($L$4="MIT", IF(OR(AW90="Nur EP ",$K90="E"),((BA90/(AVERAGE($AF90,$AM90,$AT90,$BA90,$BH90)))-1), IF($L$4="MIT",((AW90/(AVERAGE($AB90,$AI90,$AP90,$AW90,$BD90)))-1), IF($L$4="MIN", IF(OR(AW90="Nur EP ",$K90="E"),((BA90/(MIN($AF90,$AM90,$AT90,$BA90,$BH90)))-1), IF($L$4="MIN",(AW90/(MIN($AB90,$AI90,$AP90,$AW90,$BD90)))-1) ))))))) ->  | BA90: =IF(OR($K90="",$K90="H",$K90="AB",$K90="G",$J90="Position",$K90="<-- Bitte Positionsart",AV90="",$L90=""),"", IF(OR($K90="A",$K90="B",$K90="E"),$L90*AV90)) -> 
G91: 5 | H91: 13 | I91: Herstellen von Anschlüssen an Durchdringungen u.Flächenabschlüssen der Unterdeckplatten | J91: Position | L91: 224.5 | M91: m | O91: 4.6 | P91: 10.19666667 | Q91: 13.11 | R91: 2289.151667 | AA91: 12.88 | AB91: 2891.56 | AE91: 0.2631578947 | AH91: 13.11 | AI91: 2943.195 | AL91: 0.2857142857 | AO91: 4.6 | AP91: 1032.7 | AS91: -0.5488721805
G92: 5 | H92: 14 | I92: Lieferung und Einbau einer Traufbohle /Erweiterung des Traufgesims | J92: Position | L92: 61 | M92: m | O92: 54 | P92: 80.05666667 | Q92: 93.91 | R92: 4883.456667 | AA92: 92.26 | AB92: 5627.86 | AE92: 0.1524336928 | AH92: 93.91 | AI92: 5728.51 | AL92: 0.1730440938 | AO92: 54 | AP92: 3294 | AS92: -0.3254777866
G93: 5 | H93: 15 | I93: Lieferung und Einbau eines oberen Steildachbschluss im Übergang zum Flachdachbereich | J93: Position | L93: 63 | M93: m | O93: 65 | P93: 83.94666667 | Q93: 94.58 | R93: 5288.64 | AA93: 92.26 | AB93: 5812.38 | AE93: 0.09903113088 | AH93: 94.58 | AI93: 5958.54 | AL93: 0.1266677255 | AO93: 65 | AP93: 4095 | AS93: -0.2256988564
G94: 5 | H94: 16 | I94: Holz UK am Übergang Gaubendach - Steildach | J94: Position | L94: 25.75 | M94: qm | O94: 38.5 | P94: 89.17433333 | Q94: 115.133 | R94: 2296.239083 | AA94: 113.89 | AB94: 2932.6675 | AE94: 0.277161216 | AH94: 115.133 | AI94: 2964.67475 | AL94: =IF(OR($L94="",AH94="",$J94="Ausführungsbeschreibung",$J94="Hinweis"),"", IF(AND($AA94,$AH94,$AO94,$AV94,$BC94)="","", IF($L$4="MIT", IF(OR(AI94="Nur EP ",$K94="E"),((AM94/(AVERAGE($AF94,$AM94,$AT94,$BA94,$BH94)))-1), IF($L$4="MIT",((AI94/(AVERAGE($AB94,$AI94,$AP94,$AW94,$BD94)))-1), IF($L$4="MIN", IF(OR(AI94="Nur EP ",$K94="E"),((AM94/(MIN($AF94,$AM94,$AT94,$BA94,$BH94)))-1), IF($L$4="MIN",(AI94/(MIN($AB94,$AI94,$AP94,$AW94,$BD94)))-1) ))))))) -> 0.2911002045 | AO94: 38.5 | AP94: 991.375 | AS94: -0.5682614205
G95: 5 | H95: 17 | I95: Holz UK der Gaubenfronten und Gaubenseiten - Balkon Gauben | J95: Position | L95: 3 | M95: pausch. | O95: 1160 | P95: 3324.75 | Q95: 4443 | R95: 9974.25 | AA95: 4371.25 | AB95: 13113.75 | AE95: 0.3147605083 | AH95: 4443 | AI95: 13329 | AL95: 0.3363410783 | AO95: 1160 | AP95: 3480 | AS95: -0.6511015866
G96: 5 | H96: 18 | I96: Holz UK der Gaubenfronten und Gaubenseiten - Erker Gauben | J96: Position | L96: 3 | M96: pausch. | O96: 1320 | P96: 4085.67 | Q96: 5514.44 | R96: 12257.01 | AA96: 5422.57 | AB96: 16267.71 | AE96: 0.3272168335 | AH96: 5514.44 | AI96: 16543.32 | AL96: 0.3497027415 | AO96: 1320 | AP96: 3960 | AS96: -0.676919575
G97: 5 | H97: 19 | I97: Holz UK der Gaubenseitenwände | J97: Position | L97: 15.6 | M97: qm | O97: 183 | P97: 572.7766667 | Q97: 776.13 | R97: 8935.316 | AA97: 759.2 | AB97: 11843.52 | AE97: 0.3254729883 | AH97: 776.13 | AI97: 12107.628 | AL97: 0.3550307566 | AO97: 183 | AP97: 2854.8 | AS97: -0.6805037449
G98: 5 | H98: 20 | I98: Lieferung und Einbau einer UK für die Fensterbank vor den seitlichen Erkerfenstern | J98: Position | L98: 6 | M98: Stck. | O98: 276.78 | P98: 337.5833333 | Q98: 455 | R98: 2025.5 | AA98: 276.78 | AB98: 1660.68 | AE98: -0.1801135522 | AH98: 280.97 | AI98: 1685.82 | AL98: -0.167701802 | AO98: 455 | AP98: 2730 | AS98: 0.3478153542
G99: 5 | H99: 21 | I99: Anschlüsse an Durchdringungen von Strangentlüftungen | J99: Position | L99: 3 | M99: Stck. | O99: 26.92 | P99: 32.99333333 | Q99: 45 | R99: 98.98 | AA99: 26.92 | AB99: 80.76 | AE99: -0.1840775914 | AH99: 27.06 | AI99: 81.18 | AL99: -0.17983431 | AO99: 45 | AP99: 135 | AS99: 0.3639119014
G100: 5 | H100: 22 | I100: Dämmung des Drempelmauerwerk und Ringanker | J100: Position | L100: 55.68 | M100: m | O100: 36.6 | P100: 38.02333333 | Q100: 39.05 | R100: 2117.1392 | AA100: 38.42 | AB100: 2139.2256 | AE100: 0.01043219076 | AH100: 39.05 | AI100: 2174.304 | AL100: 0.02700096432 | AO100: 36.6 | AP100: 2037.888 | AS100: -0.03743315508
G101: 5 | H101: 23
G102: 5 | H102: 24 | AD102: =IF(AC102="","",IF(AC102="X",AB102,AB102*AC102)) ->  | AK102: =IF(AJ102="","",IF(AJ102="X",AI102,AI102*AJ102)) ->  | AR102: =IF(AQ102="","",IF(AQ102="X",AP102,AP102*AQ102)) -> 
G103: 5 | H103: 25
W104: =IF(OR($K104="A",$K104="B"),"Nur EP ",IF($K104="E","",IF(AND($L104<>"",V104<>""),$L104*V104,""))) ->  | Y104: =IF($K104="Ja",IF(AND($L104<>"",V104<>""),$L104*V104),"") ->  | AA104: EP / % Titel | AB104: Positions- / Titelsumme | AF104: =IF($K104="Ja",IF(AND($L104<>"",AA104<>""),$L104*AA104),"") ->  | AH104: EP / % Titel | AI104: Positions- / Titelsumme | AM104: =IF($K104="Ja",IF(AND($L104<>"",AH104<>""),$L104*AH104),"") ->  | AO104: EP / % Titel | AP104: Positions- / Titelsumme | AT104: =IF($K104="Ja",IF(AND($L104<>"",AO104<>""),$L104*AO104),"") ->  | AV104: EP / % Titel | AW104: Positions- / Titelsumme | AY104: =IF(AX104="","",IF(AX104="X",AW104,AW104*AX104)) ->  | BA104: =IF($K104="Ja",IF(AND($L104<>"",AV104<>""),$L104*AV104),"") ->  | BC104: EP / % Titel | BD104: Positions- / Titelsumme | BH104: =IF($K104="Ja",IF(AND($L104<>"",BC104<>""),$L104*BC104),"") -> 
G105: 6 | I105: Dachdeckerarbeiten | O105: =CONCATENATE("Titelsumme",CHAR(10),"MIN",CHAR(10),TEXT(SUMPRODUCT($L106:$L147,O106:O147),"##.##0,00")," €") -> Titelsumme MIN 47.394,18 € | P105: =CONCATENATE("Titelsumme",CHAR(10),"MIT",CHAR(10),TEXT(SUMPRODUCT($L106:$L147,P106:P147),"##.##0,00")," €") -> Titelsumme MIT 67.958,89 € | Q105: =CONCATENATE("Titelsumme",CHAR(10),"MAX",CHAR(10),TEXT(SUMPRODUCT($L106:$L147,Q106:Q147),"##.##0,00")," €") -> Titelsumme MAX 79.674,40 € | R105: =SUM(R106:R147) -> 67958.89433 | T105: =SUM(T106:T147) -> 30904.68667 | W105: =SUM(W106:W147) -> 0 | Y105: =SUM(Y106:Y147) -> 0 | AA105: =IF(AB105=0,"", IF($L$4="MIT",((AB105/(AVERAGE($AB105,$AI105,$AP105,$AW105,$BD105)))-1)*100,)) -> 87.73294198 | AB105: =SUM(AB106:AB147) -> 76548.739 | AF105: =SUM(AF106:AF147) -> 33627.38 | AH105: =IF(AI105=0,"", IF($L$4="MIT",((AI105/(AVERAGE($AB105,$AI105,$AP105,$AW105,$BD105)))-1)*100,)) -> 90.90918798 | AI105: =SUM(AI106:AI147) -> 77843.864 | AM105: =SUM(AM106:AM147) -> 33650.18 | AO105: =IF(AP105=0,"", IF($L$4="MIT",((AP105/(AVERAGE($AB105,$AI105,$AP105,$AW105,$BD105)))-1)*100,)) -> 21.35787004 | AP105: =SUM(AP106:AP147) -> 49484.08 | AT105: =SUM(AT106:AT147) -> 25436.5 | AV105: =IF(AW105=0,"", IF($L$4="MIT",((AW105/(AVERAGE($AB105,$AI105,$AP105,$AW105,$BD105)))-1)*100,)) ->  | AW105: =SUM(AW106:AW147) -> 0 | BA105: =SUM(BA106:BA147) -> 0 | BC105: =IF(BD105=0,"", IF($L$4="MIT",((BD105/(AVERAGE($AB105,$AI105,$AP105,$AW105,$BD105)))-1)*100,)) ->  | BD105: =SUM(BD106:BD147) -> 0 | BH105: =SUM(BH106:BH147) -> 0
G106: =G$105 -> 6 | H106: =IF(G$162="","",ROW()-ROW(G$105)) -> 1 | I106: Ausführungshinweise /Materialhinweise | J106: Ausführungsbeschreibung | K106: =IF(J106="Position","",IF(J106="Grundposition","G",IF(J106="Alternativposition","A",IF(J106="Bedarfsposition","B",IF(J106="Hinweis","H",IF(J106="Ausführungsbeschreibung","AB",IF(J106="Entfällt","E",IF(AND(I106<>"",L106<>""),"<-- Bitte Positionsart","")))))))) -> AB | O106: =IF(OR($K106="B",$K106="A",$K106="H",$K106="AB",$K106="<-- Bitte Positionsart",SUM(AA106,AH106,AO106,AV106,BC106)=0),"",MIN(AA106,AH106,AO106,AV106,BC106)) ->  | P106: =IF(OR($K106="B",$K106="A",$K106="H",$K106="AB",$K106="<-- Bitte Positionsart",SUM(AA106,AH106,AO106,AV106,BC106)=0),"",SUM(AA106,AH106,AO106,AV106,BC106)/COUNT(AA106,AH106,AO106,AV106,BC106)) ->  | Q106: =IF(OR($K106="B",$K106="A",$K106="H",$K106="AB",$K106="<-- Bitte Positionsart",SUM(AA106,AH106,AO106,AV106,BC106)=0),"",MAX(AA106,AH106,AO106,AV106,BC106)) ->  | R106: =IF(OR($K106="A",$K106="B"),"Nur EP ",IF($K106="E","E ",IF(AND($L106<>"",P106<>""),$L106*P106,""))) ->  | T106: =IF(OR($K106="",$K106="H",$K106="AB",$K106="G",$K106="<-- Bitte Positionsart"),"",IF(OR($K106="A",$K106="B"),$L106*(SUM(AA106,AH106,AO106,AV106,BC106)/COUNT(AA106,AH106,AO106,AV106,BC106)),IF($K106="E",$L106*P106))) ->  | W106: =IF(OR($K106="A",$K106="B"),"Nur EP ",IF($K106="E","E ",IF(AND($L106<>"",V106<>""),$L106*V106,""))) ->  | X106: =IF(OR($L106="",W106=""),"", IF(OR($W106="Nur EP ",$K106="E"),(Y106/(AVERAGE($Y106,$AF106,$AM106,$AT106,Y106))-1), IF(AND($W106,$AB106,$AI106,$AP106,$AW106)="","",(W106/(AVERAGE($W106,$AB106,$AI106,$AP106,$AW106)))-1))) ->  | Y106: =IF(OR($K106="",$K106="H",$K106="AB",$K106="G",$J106="Position",$K106="<-- Bitte Positionsart",V106="",$L106=""),"", IF(OR($K106="A",$K106="B",$K106="E"),$L106*V106)) ->  | AB106: =IF(C106="Hinweis","",IF(OR($K106="A",$K106="B"),"Nur EP ",IF($K106="E","E ",IF(AND($L106<>"",AA106<>""),$L106*AA106,"")))) ->  | AD106: =IF(AC106="","",IF(AC106="X",AB106,AB106*AC106)) ->  | AE106: =IF(OR($L106="",AA106="",$J106="Ausführungsbeschreibung",$J106="Hinweis"),"", IF(AND($AA106,$AH106,$AO106,$AV106,$BC106)="","", IF($L$4="MIT", IF(OR(AB106="Nur EP ",$K106="E"),((AF106/(AVERAGE($AF106,$AM106,$AT106,$BA106,$BH106)))-1), IF($L$4="MIT",((AB106/(AVERAGE($AB106,$AI106,$AP106,$AW106,$BD106)))-1), IF($L$4="MIN", IF(OR(AB106="Nur EP ",$K106="E"),((AF106/(MIN($AF106,$AM106,$AT106,$BA106,$BH106)))-1), IF($L$4="MIN",((AB106/(MIN($AB106,$AI106,$AP106,$AW106,$BD106)))-1)) ))))))) ->  | AF106: =IF(OR($K106="",$K106="H",$K106="AB",$K106="G",$J106="Position",$K106="<-- Bitte Positionsart",AA106="",$L106=""),"", IF(OR($K106="A",$K106="B",$K106="E"),$L106*AA106)) ->  | AI106: =IF(J106="Hinweis","",IF(OR($K106="A",$K106="B"),"Nur EP ",IF($K106="E","E ",IF(AND($L106<>"",AH106<>""),$L106*AH106,"")))) ->  | AK106: =IF(AJ106="","",IF(AJ106="X",AI106,AI106*AJ106)) ->  | AL106: =IF(OR($L106="",AH106="",$J106="Ausführungsbeschreibung",$J106="Hinweis"),"", IF(AND($AA106,$AH106,$AO106,$AV106,$BC106)="","", IF($L$4="MIT", IF(OR(AI106="Nur EP ",$K106="E"),((AM106/(AVERAGE($AF106,$AM106,$AT106,$BA106,$BH106)))-1), IF($L$4="MIT",((AI106/(AVERAGE($AB106,$AI106,$AP106,$AW106,$BD106)))-1), IF($L$4="MIN", IF(OR(AI106="Nur EP ",$K106="E"),((AM106/(MIN($AF106,$AM106,$AT106,$BA106,$BH106)))-1), IF($L$4="MIN",(AI106/(MIN($AB106,$AI106,$AP106,$AW106,$BD106)))-1) ))))))) ->  | AM106: =IF(OR($K106="",$K106="H",$K106="AB",$K106="G",$J106="Position",$K106="<-- Bitte Positionsart",AH106="",$L106=""),"", IF(OR($K106="A",$K106="B",$K106="E"),$L106*AH106)) ->  | AP106: =IF(P106="Hinweis","",IF(OR($K106="A",$K106="B"),"Nur EP ",IF($K106="E","E ",IF(AND($L106<>"",AO106<>""),$L106*AO106,"")))) ->  | AS106: =IF(OR($L106="",AO106="",$J106="Ausführungsbeschreibung",$J106="Hinweis"),"", IF(AND($AA106,$AH106,$AO106,$AV106,$BC106)="","", IF($L$4="MIT", IF(OR(AP106="Nur EP ",$K106="E"),((AT106/(AVERAGE($AF106,$AM106,$AT106,$BA106,$BH106)))-1), IF($L$4="MIT",((AP106/(AVERAGE($AB106,$AI106,$AP106,$AW106,$BD106)))-1), IF($L$4="MIN", IF(OR(AP106="Nur EP ",$K106="E"),((AT106/(MIN($AF106,$AM106,$AT106,$BA106,$BH106)))-1), IF($L$4="MIN",(AP106/(MIN($AB106,$AI106,$AP106,$AW106,$BD106)))-1) ))))))) ->  | AT106: =IF(OR($K106="",$K106="H",$K106="AB",$K106="G",$J106="Position",$K106="<-- Bitte Positionsart",AO106="",$L106=""),"", IF(OR($K106="A",$K106="B",$K106="E"),$L106*AO106)) ->  | AW106: =IF(W106="Hinweis","",IF(OR($K106="A",$K106="B"),"Nur EP ",IF($K106="E","E ",IF(AND($L106<>"",AV106<>""),$L106*AV106,"")))) ->  | AY106: =IF(AX106="","",IF(AX106="X",AW106,AW106*AX106)) ->  | AZ106: =IF(OR($L106="",AV106="",$J106="Ausführungsbeschreibung",$J106="Hinweis"),"", IF(AND($AA106,$AH106,$AO106,$AV106,$BC106)="","", IF($L$4="MIT", IF(OR(AW106="Nur EP ",$K106="E"),((BA106/(AVERAGE($AF106,$AM106,$AT106,$BA106,$BH106)))-1), IF($L$4="MIT",((AW106/(AVERAGE($AB106,$AI106,$AP106,$AW106,$BD106)))-1), IF($L$4="MIN", IF(OR(AW106="Nur EP ",$K106="E"),((BA106/(MIN($AF106,$AM106,$AT106,$BA106,$BH106)))-1), IF($L$4="MIN",(AW106/(MIN($AB106,$AI106,$AP106,$AW106,$BD106)))-1) ))))))) ->  | BA106: =IF(OR($K106="",$K106="H",$K106="AB",$K106="G",$J106="Position",$K106="<-- Bitte Positionsart",AV106="",$L106=""),"", IF(OR($K106="A",$K106="B",$K106="E"),$L106*AV106)) ->  | BD106: =IF(AD106="Hinweis","",IF(OR($K106="A",$K106="B"),"Nur EP ",IF($K106="E","E ",IF(AND($L106<>"",BC106<>""),$L106*BC106,"")))) ->  | BF106: =IF(BE106="","",IF(BE106="X",BD106,BD106*BE106)) ->  | BG106: =IF(OR($L106="",BC106="",$J106="Ausführungsbeschreibung",$J106="Hinweis"),"", IF(AND($AA106,$AH106,$AO106,$AV106,$BC106)="","", IF($L$4="MIT", IF(OR(BD106="Nur EP ",$K106="E"),((BH106/(AVERAGE($AF106,$AM106,$AT106,$BA106,$BH106)))-1), IF($L$4="MIT",((BD106/(AVERAGE($AB106,$AI106,$AP106,$AW106,$BD106)))-1), IF($L$4="MIN", IF(OR(BD106="Nur EP ",$K106="E"),((BH106/(MIN($AF106,$AM106,$AT106,$BA106,$BH106)))-1), IF($L$4="MIN",((BD106/(MIN($AB106,$AI106,$AP106,$AW106,$BD106)))-1)) ))))))) ->  | BH106: =IF(OR($K106="",$K106="H",$K106="AB",$K106="G",$J106="Position",$K106="<-- Bitte Positionsart",BC106="",$L106=""),"", IF(OR($K106="A",$K106="B",$K106="E"),$L106*BC106)) -> 
G107: =G$105 -> 6 | H107: =IF(G$162="","",ROW()-ROW(G$105)) -> 2 | I107: Pfanneneindeckung aus Dachziegeln | J107: Grundposition | K107: =IF(J107="Position","",IF(J107="Grundposition","G",IF(J107="Alternativposition","A",IF(J107="Bedarfsposition","B",IF(J107="Hinweis","H",IF(J107="Ausführungsbeschreibung","AB",IF(J107="Entfällt","E",IF(AND(I107<>"",L107<>""),"<-- Bitte Positionsart","")))))))) -> G | L107: 200 | M107: qm | O107: =IF(OR($K107="B",$K107="A",$K107="H",$K107="AB",$K107="<-- Bitte Positionsart",SUM(AA107,AH107,AO107,AV107,BC107)=0),"",MIN(AA107,AH107,AO107,AV107,BC107)) -> 32.5 | P107: =IF(OR($K107="B",$K107="A",$K107="H",$K107="AB",$K107="<-- Bitte Positionsart",SUM(AA107,AH107,AO107,AV107,BC107)=0),"",SUM(AA107,AH107,AO107,AV107,BC107)/COUNT(AA107,AH107,AO107,AV107,BC107)) -> 37.68666667 | Q107: =IF(OR($K107="B",$K107="A",$K107="H",$K107="AB",$K107="<-- Bitte Positionsart",SUM(AA107,AH107,AO107,AV107,BC107)=0),"",MAX(AA107,AH107,AO107,AV107,BC107)) -> 40.41 | R107: =IF(OR($K107="A",$K107="B"),"Nur EP ",IF($K107="E","E ",IF(AND($L107<>"",P107<>""),$L107*P107,""))) -> 7537.333333 | T107: =IF(OR($K107="",$K107="H",$K107="AB",$K107="G",$K107="<-- Bitte Positionsart"),"",IF(OR($K107="A",$K107="B"),$L107*(SUM(AA107,AH107,AO107,AV107,BC107)/COUNT(AA107,AH107,AO107,AV107,BC107)),IF($K107="E",$L107*P107))) ->  | W107: =IF(OR($K107="A",$K107="B"),"Nur EP ",IF($K107="E","E ",IF(AND($L107<>"",V107<>""),$L107*V107,""))) ->  | X107: =IF(OR($L107="",W107=""),"", IF(OR($W107="Nur EP ",$K107="E"),(Y107/(AVERAGE($Y107,$AF107,$AM107,$AT107,Y107))-1), IF(AND($W107,$AB107,$AI107,$AP107,$AW107)="","",(W107/(AVERAGE($W107,$AB107,$AI107,$AP107,$AW107)))-1))) ->  | Y107: =IF(OR($K107="",$K107="H",$K107="AB",$K107="G",$J107="Position",$K107="<-- Bitte Positionsart",V107="",$L107=""),"", IF(OR($K107="A",$K107="B",$K107="E"),$L107*V107)) ->  | AA107: 40.15 | AB107: =IF(C107="Hinweis","",IF(OR($K107="A",$K107="B"),"Nur EP ",IF($K107="E","E ",IF(AND($L107<>"",AA107<>""),$L107*AA107,"")))) -> 8030 | AD107: =IF(AC107="","",IF(AC107="X",AB107,AB107*AC107)) ->  | AE107: 0.06536352379 | AF107: =IF(OR($K107="",$K107="H",$K107="AB",$K107="G",$J107="Position",$K107="<-- Bitte Positionsart",AA107="",$L107=""),"", IF(OR($K107="A",$K107="B",$K107="E"),$L107*AA107)) ->  | AH107: 40.41 | AI107: =IF(J107="Hinweis","",IF(OR($K107="A",$K107="B"),"Nur EP ",IF($K107="E","E ",IF(AND($L107<>"",AH107<>""),$L107*AH107,"")))) -> 8082 | AK107: =IF(AJ107="","",IF(AJ107="X",AI107,AI107*AJ107)) ->  | AL107: =IF(OR($L107="",AH107="",$J107="Ausführungsbeschreibung",$J107="Hinweis"),"", IF(AND($AA107,$AH107,$AO107,$AV107,$BC107)="","", IF($L$4="MIT", IF(OR(AI107="Nur EP ",$K107="E"),((AM107/(AVERAGE($AF107,$AM107,$AT107,$BA107,$BH107)))-1), IF($L$4="MIT",((AI107/(AVERAGE($AB107,$AI107,$AP107,$AW107,$BD107)))-1), IF($L$4="MIN", IF(OR(AI107="Nur EP ",$K107="E"),((AM107/(MIN($AF107,$AM107,$AT107,$BA107,$BH107)))-1), IF($L$4="MIN",(AI107/(MIN($AB107,$AI107,$AP107,$AW107,$BD107)))-1) ))))))) -> 0.07226251548 | AM107: =IF(OR($K107="",$K107="H",$K107="AB",$K107="G",$J107="Position",$K107="<-- Bitte Positionsart",AH107="",$L107=""),"", IF(OR($K107="A",$K107="B",$K107="E"),$L107*AH107)) ->  | AO107: 32.5 | AP107: =IF(P107="Hinweis","",IF(OR($K107="A",$K107="B"),"Nur EP ",IF($K107="E","E ",IF(AND($L107<>"",AO107<>""),$L107*AO107,"")))) -> 6500 | AR107: =IF(AQ107="","",IF(AQ107="X",AP107,AP107*AQ107)) ->  | AS107: =IF(OR($L107="",AO107="",$J107="Ausführungsbeschreibung",$J107="Hinweis"),"", IF(AND($AA107,$AH107,$AO107,$AV107,$BC107)="","", IF($L$4="MIT", IF(OR(AP107="Nur EP ",$K107="E"),((AT107/(AVERAGE($AF107,$AM107,$AT107,$BA107,$BH107)))-1), IF($L$4="MIT",((AP107/(AVERAGE($AB107,$AI107,$AP107,$AW107,$BD107)))-1), IF($L$4="MIN", IF(OR(AP107="Nur EP ",$K107="E"),((AT107/(MIN($AF107,$AM107,$AT107,$BA107,$BH107)))-1), IF($L$4="MIN",(AP107/(MIN($AB107,$AI107,$AP107,$AW107,$BD107)))-1) ))))))) -> -0.1376260393 | AT107: =IF(OR($K107="",$K107="H",$K107="AB",$K107="G",$J107="Position",$K107="<-- Bitte Positionsart",AO107="",$L107=""),"", IF(OR($K107="A",$K107="B",$K107="E"),$L107*AO107)) ->  | AZ107: =IF(OR($L107="",AV107="",$J107="Ausführungsbeschreibung",$J107="Hinweis"),"", IF(AND($AA107,$AH107,$AO107,$AV107,$BC107)="","", IF($L$4="MIT", IF(OR(AW107="Nur EP ",$K107="E"),((BA107/(AVERAGE($AF107,$AM107,$AT107,$BA107,$BH107)))-1), IF($L$4="MIT",((AW107/(AVERAGE($AB107,$AI107,$AP107,$AW107,$BD107)))-1), IF($L$4="MIN", IF(OR(AW107="Nur EP ",$K107="E"),((BA107/(MIN($AF107,$AM107,$AT107,$BA107,$BH107)))-1), IF($L$4="MIN",(AW107/(MIN($AB107,$AI107,$AP107,$AW107,$BD107)))-1) ))))))) ->  | BA107: =IF(OR($K107="",$K107="H",$K107="AB",$K107="G",$J107="Position",$K107="<-- Bitte Positionsart",AV107="",$L107=""),"", IF(OR($K107="A",$K107="B",$K107="E"),$L107*AV107)) ->  | BD107: =IF(AD107="Hinweis","",IF(OR($K107="A",$K107="B"),"Nur EP ",IF($K107="E","E ",IF(AND($L107<>"",BC107<>""),$L107*BC107,"")))) ->  | BF107: =IF(BE107="","",IF(BE107="X",BD107,BD107*BE107)) ->  | BG107: =IF(OR($L107="",BC107="",$J107="Ausführungsbeschreibung",$J107="Hinweis"),"", IF(AND($AA107,$AH107,$AO107,$AV107,$BC107)="","", IF($L$4="MIT", IF(OR(BD107="Nur EP ",$K107="E"),((BH107/(AVERAGE($AF107,$AM107,$AT107,$BA107,$BH107)))-1), IF($L$4="MIT",((BD107/(AVERAGE($AB107,$AI107,$AP107,$AW107,$BD107)))-1), IF($L$4="MIN", IF(OR(BD107="Nur EP ",$K107="E"),((BH107/(MIN($AF107,$AM107,$AT107,$BA107,$BH107)))-1), IF($L$4="MIN",((BD107/(MIN($AB107,$AI107,$AP107,$AW107,$BD107)))-1)) ))))))) ->  | BH107: =IF(OR($K107="",$K107="H",$K107="AB",$K107="G",$J107="Position",$K107="<-- Bitte Positionsart",BC107="",$L107=""),"", IF(OR($K107="A",$K107="B",$K107="E"),$L107*BC107)) -> 
G108: =G$105 -> 6 | H108: 3 | I108: Pfanneneindeckung aus Dachziegeln | J108: Alternativposition | K108: A | L108: 200 | M108: qm | R108: Nur EP | T108: 7653.333333 | W108: =IF(OR($K108="A",$K108="B"),"Nur EP ",IF($K108="E","E ",IF(AND($L108<>"",V108<>""),$L108*V108,""))) -> Nur EP | X108: =IF(OR($L108="",W108=""),"", IF(OR($W108="Nur EP ",$K108="E"),(Y108/(AVERAGE($Y108,$AF108,$AM108,$AT108,Y108))-1), IF(AND($W108,$AB108,$AI108,$AP108,$AW108)="","",(W108/(AVERAGE($W108,$AB108,$AI108,$AP108,$AW108)))-1))) ->  | AA108: 40.15 | AB108: Nur EP | AE108: 0.04921602787 | AF108: =IF(OR($K108="",$K108="H",$K108="AB",$K108="G",$J108="Position",$K108="<-- Bitte Positionsart",AA108="",$L108=""),"", IF(OR($K108="A",$K108="B",$K108="E"),$L108*AA108)) -> 8030 | AH108: 40.15 | AI108: Nur EP | AL108: 0.04921602787 | AM108: =IF(OR($K108="",$K108="H",$K108="AB",$K108="G",$J108="Position",$K108="<-- Bitte Positionsart",AH108="",$L108=""),"", IF(OR($K108="A",$K108="B",$K108="E"),$L108*AH108)) -> 8030 | AO108: 34.5 | AP108: Nur EP | AS108: -0.09843205575 | AT108: 6900 | AW108: Nur EP | BD108: Nur EP | BH108: =IF(OR($K108="",$K108="H",$K108="AB",$K108="G",$J108="Position",$K108="<-- Bitte Positionsart",BC108="",$L108=""),"", IF(OR($K108="A",$K108="B",$K108="E"),$L108*BC108)) -> 
G109: 6 | H109: 4 | I109: Pfanneneindeckung aus Dachziegeln | J109: Alternativposition | K109: A | L109: 200 | M109: qm | R109: Nur EP | T109: 7520 | W109: Nur EP | AA109: 40.15 | AB109: Nur EP | AE109: 0.06781914894 | AF109: 8030 | AH109: 40.15 | AI109: Nur EP | AL109: 0.06781914894 | AM109: 8030 | AO109: 32.5 | AP109: Nur EP | AS109: -0.1356382979 | AT109: 6500 | AW109: Nur EP | BD109: Nur EP
G110: 6 | H110: 5 | I110: Dunstrohrziegel für Strangentlüftungen | J110: Position | L110: 3 | M110: Stck. | O110: 240 | P110: 309.6766667 | Q110: 349.26 | R110: 929.03 | AA110: 339.77 | AB110: 1019.31 | AE110: 0.09717662508 | AH110: 349.26 | AI110: 1047.78 | AL110: 0.1278214912 | AO110: 240 | AP110: 720 | AS110: -0.2249981163
G111: 6 | H111: 6 | I111: Schneiden von Pfannen an Gauben, Dachflächenfenstern u. sonst. aufgehenden Bauteilen und Dachflächenfenstern | J111: Position | L111: 97.2 | M111: m | O111: 12.88 | P111: 13.83 | Q111: 15.5 | R111: 1344.276 | AA111: 12.88 | AB111: 1251.936 | AE111: -0.0686912509 | AH111: 13.11 | AI111: 1274.292 | AL111: -0.05206073753 | AO111: 15.5 | AP111: 1506.6 | AS111: 0.1207519884
G112: 6 | H112: 7 | I112: Schneiden von Pfannen an Kehlen und Graten | J112: Position | L112: 68 | M112: m | O112: 24.6 | P112: 25.85666667 | Q112: 26.62 | R112: 1758.253333 | AA112: 26.35 | AB112: 1791.8 | AE112: 0.01907954106 | AH112: 26.62 | AI112: 1810.16 | AL112: 0.02952172232 | AO112: 24.6 | AP112: 1672.8 | AS112: -0.04860126338
G113: 6 | H113: 8 | I113: Herstellen von Graten auf den Holzfaser Unterdeckplatten | J113: Position | L113: 44 | M113: m | O113: 44.17 | P113: 46.94666667 | Q113: 52 | R113: 2065.653333 | AA113: 44.17 | AB113: 1943.48 | AE113: -0.05914512922 | AH113: 44.67 | AI113: 1965.48 | AL113: -0.04849474581 | AO113: 52 | AP113: 2288 | AS113: 0.107639875
G114: 6 | H114: 9 | I114: Konische Firstpfanne als Gratdachpfannen passend zur Dachpfanne | J114: Position | L114: 43.5 | M114: m | O114: 42 | P114: 47.29333333 | Q114: 50.42 | R114: 2057.26 | AA114: 49.46 | AB114: 2151.51 | AE114: 0.04581336341 | AH114: 50.42 | AI114: 2193.27 | AL114: 0.0661122075 | AO114: 42 | AP114: 1827 | AS114: -0.1119255709
G115: 6 | H115: =IF(G$162="","",ROW()-94) -> 21 | I115: Firstanfänger passend Gratdachpfannen - Aufpreis | J115: Position | L115: 9 | M115: Stck. | O115: 35 | P115: 127.8266667 | Q115: 175.72 | R115: 1150.44 | AA115: 172.76 | AB115: 1554.84 | AE115: 0.3515176802 | AH115: 175.72 | AI115: 1581.48 | AL115: 0.3746740378 | AO115: 35 | AP115: 315 | AS115: -0.726191718
G116: 6 | H116: 22 | I116: Herstellen von Kehlen aus Alublechen (rot) | J116: Grundposition | K116: G | L116: 24 | M116: m | O116: 49.46 | P116: 59.83666667 | Q116: 80 | R116: 1436.08 | AA116: 49.46 | AB116: 1187.04 | AE116: -0.1734165228 | AH116: 50.05 | AI116: 1201.2 | AL116: -0.1635563478 | AO116: 80 | AP116: 1920 | AS116: 0.3369728706 | AZ116: =IF(OR($L116="",AV116="",$J116="Ausführungsbeschreibung",$J116="Hinweis"),"", IF(AND($AA116,$AH116,$AO116,$AV116,$BC116)="","", IF($L$4="MIT", IF(OR(AW116="Nur EP ",$K116="E"),((BA116/(AVERAGE($AF116,$AM116,$AT116,$BA116,$BH116)))-1), IF($L$4="MIT",((AW116/(AVERAGE($AB116,$AI116,$AP116,$AW116,$BD116)))-1), IF($L$4="MIN", IF(OR(AW116="Nur EP ",$K116="E"),((BA116/(MIN($AF116,$AM116,$AT116,$BA116,$BH116)))-1), IF($L$4="MIN",(AW116/(MIN($AB116,$AI116,$AP116,$AW116,$BD116)))-1) ))))))) ->  | BA116: =IF(OR($K116="",$K116="H",$K116="AB",$K116="G",$J116="Position",$K116="<-- Bitte Positionsart",AV116="",$L116=""),"", IF(OR($K116="A",$K116="B",$K116="E"),$L116*AV116)) -> 
G117: 6 | H117: 23 | I117: Herstellen von Kehlen aus Zinkblech (vorbewittert) | J117: Alternativposition | K117: A | L117: 24 | M117: m | R117: Nur EP | T117: 1358.96 | W117: Nur EP | AA117: 49.46 | AB117: Nur EP | AE117: -0.1265085065 | AF117: 1187.04 | AH117: 50.41 | AI117: Nur EP | AL117: -0.1097309707 | AM117: 1209.84 | AO117: 70 | AP117: Nur EP | AS117: 0.2362394772 | AT117: 1680 | AW117: Nur EP | AZ117: =IF(OR($L117="",AV117="",$J117="Ausführungsbeschreibung",$J117="Hinweis"),"", IF(AND($AA117,$AH117,$AO117,$AV117,$BC117)="","", IF($L$4="MIT", IF(OR(AW117="Nur EP ",$K117="E"),((BA117/(AVERAGE($AF117,$AM117,$AT117,$BA117,$BH117)))-1), IF($L$4="MIT",((AW117/(AVERAGE($AB117,$AI117,$AP117,$AW117,$BD117)))-1), IF($L$4="MIN", IF(OR(AW117="Nur EP ",$K117="E"),((BA117/(MIN($AF117,$AM117,$AT117,$BA117,$BH117)))-1), IF($L$4="MIN",(AW117/(MIN($AB117,$AI117,$AP117,$AW117,$BD117)))-1) ))))))) ->  | BA117: =IF(OR($K117="",$K117="H",$K117="AB",$K117="G",$J117="Position",$K117="<-- Bitte Positionsart",AV117="",$L117=""),"", IF(OR($K117="A",$K117="B",$K117="E"),$L117*AV117)) ->  | BD117: Nur EP
G118: 6 | H118: 24 | I118: Bleianschluss an aufgehendem Gaubenseiten u vor den Seitenfenstern der Erker-Gauben | J118: Position | L118: 43.2 | M118: m | O118: 38.9 | P118: 48.68666667 | Q118: 54.12 | R118: 2103.264 | AA118: 53.04 | AB118: 2291.328 | AE118: 0.08941530878 | AH118: 54.12 | AI118: 2337.984 | AL118: 0.1115979734 | AO118: 38.9 | AP118: 1680.48 | AS118: -0.2010132822
G119: 6 | H119: 25 | I119: Insektenschutz/ Belüftung Traufe | J119: Position | L119: 61 | M119: m | O119: 15.76 | P119: 16.67666667 | Q119: 18.5 | R119: 1017.276667 | AA119: 15.76 | AB119: 961.36 | AE119: -0.05496701979 | AH119: 15.77 | AI119: 961.97 | AL119: -0.05436737957 | AO119: 18.5 | AP119: 1128.5 | AS119: 0.1093343994
G120: 6 | H120: 26 | I120: Insektenschutz/ Entüftung oberer Streildachabschluss | J120: Position | L120: 62 | M120: m | O120: 15.3 | P120: 18.69333333 | Q120: 20.42 | R120: 1158.986667 | AA120: 20.36 | AB120: 1262.32 | AE120: 0.08915834522 | AH120: 20.42 | AI120: 1266.04 | AL120: 0.09236804565 | AO120: 15.3 | AP120: 948.6 | AS120: -0.1815263909
G121: 6 | H121: 27 | I121: Höhenausgleich Schalbretter /Konterlattung oberhalb der Gaubendächer | J121: Position | L121: 30 | M121: m | O121: 0.0001 | P121: 5.833366667 | Q121: 10 | R121: 175.001 | AA121: 0.0001 | AB121: 0.003 | AE121: -0.9999828572 | AH121: 7.5 | AI121: 225 | AL121: 0.2857069388 | AO121: 10 | AP121: 300 | AS121: 0.7142759184
G122: 6 | H122: 28 | I122: Windlastberechnung für die fachgerechte Fixierung der Folienbahnen | J122: Grundposition | K122: G | L122: 1 | M122: pausch. | O122: 500 | P122: 678.71 | Q122: 776.88 | R122: 678.71 | AA122: 759.25 | AB122: 759.25 | AE122: 0.1186662934 | AH122: 776.88 | AI122: 776.88 | AL122: 0.1446420415 | AO122: 500 | AP122: 500 | AS122: -0.2633083349
G123: 6 | H123: 29 | I123: Windlastberechnung für die fachgerechte Fixierung der Folienbahnen | J123: Alternativposition | K123: A | L123: 1 | M123: pausch. | R123: Nur EP | T123: 672.8333333 | W123: Nur EP | AA123: 759.25 | AB123: Nur EP | AE123: 0.1284369581 | AF123: 759.25 | AH123: 759.25 | AI123: Nur EP | AL123: 0.1284369581 | AM123: 759.25 | AO123: 500 | AP123: Nur EP | AS123: -0.2568739163 | AT123: 500 | AW123: Nur EP | BD123: Nur EP
G124: =G$105 -> 6 | H124: 19 | I124: Vorstoßblech und Verbundblech, als umlaufendes Dachrand Abschlussprofil | J124: Position | L124: 63 | M124: m | O124: 45.5 | P124: 74.33333333 | Q124: 89.62 | R124: 4683 | AA124: 87.88 | AB124: 5536.44 | AE124: 0.1822421525 | AF124: =IF(OR($K124="",$K124="H",$K124="AB",$K124="G",$J124="Position",$K124="<-- Bitte Positionsart",AA124="",$L124=""),"", IF(OR($K124="A",$K124="B",$K124="E"),$L124*AA124)) ->  | AH124: 89.62 | AI124: 5646.06 | AL124: 0.2056502242 | AM124: =IF(OR($K124="",$K124="H",$K124="AB",$K124="G",$J124="Position",$K124="<-- Bitte Positionsart",AH124="",$L124=""),"", IF(OR($K124="A",$K124="B",$K124="E"),$L124*AH124)) ->  | AO124: 45.5 | AP124: 2866.5 | AS124: -0.3878923767 | BH124: =IF(OR($K124="",$K124="H",$K124="AB",$K124="G",$J124="Position",$K124="<-- Bitte Positionsart",BC124="",$L124=""),"", IF(OR($K124="A",$K124="B",$K124="E"),$L124*BC124)) -> 
G125: =G$105 -> 6 | H125: 20 | I125: Innen- und Außenecken als Zulage zum Verbundblech | J125: Position | L125: 14 | M125: Stck. | O125: 21.63 | P125: 26.14333333 | Q125: 35 | R125: 366.0066667 | AA125: 21.63 | AB125: 302.82 | AE125: -0.1726380212 | AF125: =IF(OR($K125="",$K125="H",$K125="AB",$K125="G",$J125="Position",$K125="<-- Bitte Positionsart",AA125="",$L125=""),"", IF(OR($K125="A",$K125="B",$K125="E"),$L125*AA125)) ->  | AH125: 21.8 | AI125: 305.2 | AL125: -0.1661354074 | AM125: =IF(OR($K125="",$K125="H",$K125="AB",$K125="G",$J125="Position",$K125="<-- Bitte Positionsart",AH125="",$L125=""),"", IF(OR($K125="A",$K125="B",$K125="E"),$L125*AH125)) ->  | AO125: 35 | AP125: 490 | AS125: 0.3387734285 | BH125: =IF(OR($K125="",$K125="H",$K125="AB",$K125="G",$J125="Position",$K125="<-- Bitte Positionsart",BC125="",$L125=""),"", IF(OR($K125="A",$K125="B",$K125="E"),$L125*BC125)) -> 
G126: 6 | H126: 21 | I126: Schutzflies Unterlage des Foliendachs - Flachdachbereich | J126: Position | L126: 150 | M126: qm | O126: 7 | P126: 11.36333333 | Q126: 13.65 | R126: 1704.5 | AA126: 13.65 | AB126: 2047.5 | AE126: 0.2012320329 | AH126: 13.44 | AI126: =IF(J126="Hinweis","",IF(OR($K126="A",$K126="B"),"Nur EP ",IF($K126="E","E ",IF(AND($L126<>"",AH126<>""),$L126*AH126,"")))) -> 2016 | AK126: =IF(AJ126="","",IF(AJ126="X",AI126,AI126*AJ126)) ->  | AL126: 0.18275154 | AO126: 7 | AP126: 1050 | AS126: -0.3839835729
G127: 6 | H127: 22 | I127: Folienabdichtung des Flachdach - PVC Folie | J127: Grundposition | K127: G | L127: 155 | M127: qm | O127: 25.5 | P127: 47.54 | Q127: 58.79 | R127: 7368.7 | AA127: 58.33 | AB127: 9041.15 | AE127: 0.2269667648 | AH127: 58.79 | AI127: 9112.45 | AL127: 0.2366428271 | AO127: 25.5 | AP127: 3952.5 | AS127: -0.4636095919 | BD127: =IF(AD127="Hinweis","",IF(OR($K127="A",$K127="B"),"Nur EP ",IF($K127="E","E ",IF(AND($L127<>"",BC127<>""),$L127*BC127,"")))) ->  | BF127: =IF(BE127="","",IF(BE127="X",BD127,BD127*BE127)) -> 
G128: 6 | H128: 23 | I128: Folienabdichtung des Flachdach - PVC Folie | J128: Alternativposition | K128: A | L128: 155 | M128: qm | R128: Nur EP | T128: 7894.666667 | W128: Nur EP | AA128: 60.05 | AB128: =IF(C128="Hinweis","",IF(OR($K128="A",$K128="B"),"Nur EP ",IF($K128="E","E ",IF(AND($L128<>"",AA128<>""),$L128*AA128,"")))) -> Nur EP | AD128: =IF(AC128="","",IF(AC128="X",AB128,AB128*AC128)) ->  | AE128: 0.1789921466 | AF128: 9307.75 | AH128: 60.05 | AI128: Nur EP | AL128: 0.1789921466 | AM128: =IF(OR($K128="",$K128="H",$K128="AB",$K128="G",$J128="Position",$K128="<-- Bitte Positionsart",AH128="",$L128=""),"", IF(OR($K128="A",$K128="B",$K128="E"),$L128*AH128)) -> 9307.75 | AO128: 32.7 | AP128: Nur EP | AS128: -0.3579842932 | AT128: 5068.5 | AW128: Nur EP | BD128: Nur EP
G129: 6 | H129: 24 | I129: Anarbeiten der Folienabdichtung an bestehende und verbleibende Durchdringungen | J129: Position | L129: 1 | M129: pausch. | O129: 1460 | P129: 2651.533333 | Q129: 3273.35 | R129: 2651.533333 | AA129: 3221.25 | AB129: 3221.25 | AE129: 0.2148630981 | AH129: 3273.35 | AI129: 3273.35 | AL129: 0.2345121062 | AO129: 1460 | AP129: 1460 | AS129: -0.4493752043 | BH129: =IF(OR($K129="",$K129="H",$K129="AB",$K129="G",$J129="Position",$K129="<-- Bitte Positionsart",BC129="",$L129=""),"", IF(OR($K129="A",$K129="B",$K129="E"),$L129*BC129)) -> 
G130: 6 | H130: 25 | I130: Innen- und Außenecken der Folienabdichtung | J130: Position | L130: 40 | M130: Stck. | O130: 50 | P130: 63.75333333 | Q130: 70.63 | R130: 2550.133333 | X130: =IF(OR($L130="",W130="",$K130="E"),"", IF(AND(V130="",W130="Nur EP "),"", IF(OR(W130="Nur EP ",$K130="A"),(Y130/(AVERAGE($AF130,$AM130,$AT130,$BA130,$BH130))-1), IF(AND($AB130,$AI130,$AP130,$AW130,$BD130)="","",(W130/(AVERAGE($AB130,$AI130,$AP130,$AW130,$BD130)))-1)))) ->  | AA130: 70.63 | AB130: 2825.2 | AE130: 0.1078636411 | AH130: 70.63 | AI130: 2825.2 | AL130: 0.1078636411 | AO130: 50 | AP130: 2000 | AS130: -0.2157272822
G131: 6 | H131: 26 | I131: Flüssigkunststoffabdichtungen an Durchdringungen von Strangentlüftungen | J131: Position | L131: 12 | M131: Stck. | O131: 76.38 | P131: 79.56333333 | Q131: 85 | R131: 954.76 | Y131: =IF(OR($K131="",$K131="H",$K131="AB",$K131="G",$J131="Position",$K131="<-- Bitte Positionsart",V131="",$L131=""),"", IF(OR($K131="A",$K131="B",$K131="E"),$L131*V131)) ->  | AA131: 76.38 | AB131: 916.56 | AE131: -0.04001005488 | AF131: =IF(OR($K131="",$K131="H",$K131="AB",$K131="G",$J131="Position",$K131="<-- Bitte Positionsart",AA131="",$L131=""),"", IF(OR($K131="A",$K131="B",$K131="E"),$L131*AA131)) ->  | AH131: 77.31 | AI131: 927.72 | AL131: -0.02832125351 | AO131: 85 | AP131: 1020 | AS131: 0.06833130839 | AW131: =IF(W131="Hinweis","",IF(OR($K131="A",$K131="B"),"Nur EP ",IF($K131="E","E ",IF(AND($L131<>"",AV131<>""),$L131*AV131,"")))) ->  | AY131: =IF(AX131="","",IF(AX131="X",AW131,AW131*AX131)) ->  | AZ131: =IF(OR($L131="",AV131="",$J131="Ausführungsbeschreibung",$J131="Hinweis"),"", IF(AND($AA131,$AH131,$AO131,$AV131,$BC131)="","", IF($L$4="MIT", IF(OR(AW131="Nur EP ",$K131="E"),((BA131/(AVERAGE($AF131,$AM131,$AT131,$BA131,$BH131)))-1), IF($L$4="MIT",((AW131/(AVERAGE($AB131,$AI131,$AP131,$AW131,$BD131)))-1), IF($L$4="MIN", IF(OR(AW131="Nur EP ",$K131="E"),((BA131/(MIN($AF131,$AM131,$AT131,$BA131,$BH131)))-1), IF($L$4="MIN",(AW131/(MIN($AB131,$AI131,$AP131,$AW131,$BD131)))-1) ))))))) ->  | BA131: =IF(OR($K131="",$K131="H",$K131="AB",$K131="G",$J131="Position",$K131="<-- Bitte Positionsart",AV131="",$L131=""),"", IF(OR($K131="A",$K131="B",$K131="E"),$L131*AV131)) -> 
G132: 6 | H132: =IF(G$162="","",ROW()-94) -> 38 | I132: Flüssigkunststoffabdichtungen an Durchdringungen von Oberlichtern | J132: Position | L132: 3 | M132: Stck. | O132: 115 | P132: 240.7633333 | Q132: 307.77 | R132: 722.29 | AA132: 299.52 | AB132: 898.56 | AE132: 0.2440432513 | AH132: 307.77 | AI132: 923.31 | AL132: 0.2783092664 | AO132: 115 | AP132: 345 | AS132: -0.5223525177 | AZ132: =IF(OR($L132="",AV132="",$J132="Ausführungsbeschreibung",$J132="Hinweis"),"", IF(AND($AA132,$AH132,$AO132,$AV132,$BC132)="","", IF($L$4="MIT", IF(OR(AW132="Nur EP ",$K132="E"),((BA132/(AVERAGE($AF132,$AM132,$AT132,$BA132,$BH132)))-1), IF($L$4="MIT",((AW132/(AVERAGE($AB132,$AI132,$AP132,$AW132,$BD132)))-1), IF($L$4="MIN", IF(OR(AW132="Nur EP ",$K132="E"),((BA132/(MIN($AF132,$AM132,$AT132,$BA132,$BH132)))-1), IF($L$4="MIN",(AW132/(MIN($AB132,$AI132,$AP132,$AW132,$BD132)))-1) ))))))) ->  | BA132: =IF(OR($K132="",$K132="H",$K132="AB",$K132="G",$J132="Position",$K132="<-- Bitte Positionsart",AV132="",$L132=""),"", IF(OR($K132="A",$K132="B",$K132="E"),$L132*AV132)) -> 
G133: 6 | H133: 39 | I133: Flüssigkunststoffabdichtungen an Durchdringungen des Flachdachausstieg | J133: Position | L133: 1 | M133: Stck. | O133: 155 | P133: 338.32 | Q133: 434.13 | R133: 338.32 | AA133: 425.83 | AB133: 425.83 | AE133: 0.2586604398 | AH133: 434.13 | AI133: 434.13 | AL133: 0.2831934263 | AO133: 155 | AP133: 155 | AS133: -0.5418538662
G134: 6 | H134: 40 | I134: Flüssigkunststoffabdichtungen an Durchdringungen von Schornstein u. Aufzugsüberfahrt | J134: Position | L134: 12.2 | M134: m | O134: 55 | P134: 80.55 | Q134: 94.39 | R134: 982.71 | AA134: 92.26 | AB134: 1125.572 | AE134: 0.1453755431 | AH134: 94.39 | AI134: 1151.558 | AL134: 0.1718187461 | AO134: 55 | AP134: 671 | AS134: -0.3171942893
G135: 6 | H135: =IF(G$162="","",ROW()-94) -> 41 | I135: Verbundblech, als vorderes Dachrand Anschlussprofil der Gaubendächer | J135: Position | K135: =IF(J135="Position","",IF(J135="Grundposition","G",IF(J135="Alternativposition","A",IF(J135="Bedarfsposition","B",IF(J135="Hinweis","H",IF(J135="Ausführungsbeschreibung","AB",IF(J135="Entfällt","E",IF(AND(I135<>"",L135<>""),"<-- Bitte Positionsart","")))))))) ->  | L135: 37 | M135: m | O135: 33.5 | P135: 58.8 | Q135: 72.27 | R135: 2175.6 | W135: =IF(OR($K135="A",$K135="B"),"Nur EP ",IF($K135="E","E ",IF(AND($L135<>"",V135<>""),$L135*V135,""))) ->  | X135: =IF(OR($L135="",W135=""),"", IF(OR($W135="Nur EP ",$K135="E"),(Y135/(AVERAGE($Y135,$AF135,$AM135,$AT135,Y135))-1), IF(AND($W135,$AB135,$AI135,$AP135,$AW135)="","",(W135/(AVERAGE($W135,$AB135,$AI135,$AP135,$AW135)))-1))) ->  | AA135: 70.63 | AB135: =IF(C135="Hinweis","",IF(OR($K135="A",$K135="B"),"Nur EP ",IF($K135="E","E ",IF(AND($L135<>"",AA135<>""),$L135*AA135,"")))) -> 2613.31 | AD135: =IF(AC135="","",IF(AC135="X",AB135,AB135*AC135)) ->  | AE135: 0.2011904762 | AF135: =IF(OR($K135="",$K135="H",$K135="AB",$K135="G",$J135="Position",$K135="<-- Bitte Positionsart",AA135="",$L135=""),"", IF(OR($K135="A",$K135="B",$K135="E"),$L135*AA135)) ->  | AH135: 72.27 | AI135: =IF(J135="Hinweis","",IF(OR($K135="A",$K135="B"),"Nur EP ",IF($K135="E","E ",IF(AND($L135<>"",AH135<>""),$L135*AH135,"")))) -> 2673.99 | AK135: =IF(AJ135="","",IF(AJ135="X",AI135,AI135*AJ135)) ->  | AL135: 0.2290816327 | AM135: =IF(OR($K135="",$K135="H",$K135="AB",$K135="G",$J135="Position",$K135="<-- Bitte Positionsart",AH135="",$L135=""),"", IF(OR($K135="A",$K135="B",$K135="E"),$L135*AH135)) ->  | AO135: 33.5 | AP135: 1239.5 | AS135: -0.4302721088 | BD135: =IF(AD135="Hinweis","",IF(OR($K135="A",$K135="B"),"Nur EP ",IF($K135="E","E ",IF(AND($L135<>"",BC135<>""),$L135*BC135,"")))) ->  | BF135: =IF(BE135="","",IF(BE135="X",BD135,BD135*BE135)) ->  | BH135: =IF(OR($K135="",$K135="H",$K135="AB",$K135="G",$J135="Position",$K135="<-- Bitte Positionsart",BC135="",$L135=""),"", IF(OR($K135="A",$K135="B",$K135="E"),$L135*BC135)) -> 
G136: 6 | H136: 42 | I136: Schutzflies Unterlage des Foliendachs - Gaubendächer | J136: Position | L136: 68 | M136: qm | O136: 7 | P136: 11.4 | Q136: 13.65 | R136: 775.2 | AA136: 13.65 | AB136: 928.2 | AE136: 0.1973684211 | AH136: 13.55 | AI136: 921.4 | AL136: 0.1885964912 | AO136: 7 | AP136: 476 | AS136: -0.3859649123
G137: 6 | H137: 43 | I137: Folienabdichtung der Gaubendächer - PVC Folie | J137: Grundposition | K137: G | L137: 68 | M137: qm | O137: 25.5 | P137: 47.75333333 | Q137: 59.43 | R137: 3247.226667 | AA137: 58.33 | AB137: 3966.44 | AE137: 0.2214854111 | AH137: 59.43 | AI137: 4041.24 | AL137: 0.2445204523 | AO137: 25.5 | AP137: 1734 | AS137: -0.4660058635
G138: 6 | H138: 44 | I138: Folienabdichtung der Gaubendächer - PVC Folie | J138: Alternativposition | K138: A | L138: 68 | M138: qm | R138: Nur EP | T138: 3368.266667 | W138: Nur EP | AA138: 60.05 | AB138: Nur EP | AE138: 0.2123149394 | AF138: 4083.4 | AH138: 60.05 | AI138: Nur EP | AL138: 0.2123149394 | AM138: 4083.4 | AO138: 28.5 | AP138: Nur EP | AS138: -0.4246298789 | AT138: 1938 | AW138: Nur EP | BD138: Nur EP
G139: 6 | H139: 45 | I139: Da die Wohnungen im derzeitigen Zustand und unter Berücksichtigung der derzeitigen Position der Dachflächenfenster bewohnt sind, ist die Position der neuen Dachflächenfenster wenn irgendmöglich deckungsgleich auszuführen. Hier besteht unbedingter Abs | J139: Hinweis | K139: H
G140: 6 | H140: 46 | I140: Neue Dachflächenfenster Treppenhaus und Wohnungen | J140: Position | L140: 4 | M140: Stck. | O140: 1400 | P140: 2025.466667 | Q140: 2358.64 | R140: 8101.866667 | AA140: 2317.76 | AB140: 9271.04 | AE140: 0.1443091304 | AH140: 2358.64 | AI140: 9434.56 | AL140: 0.1644921335 | AO140: 1400 | AP140: 5600 | AS140: -0.3088012639
G141: 6 | H141: 47 | I141: Lieferung und Einbau eines neuen Flachdachausstieg | J141: Position | L141: 1 | M141: Stck. | O141: 2890 | P141: 4304.833333 | Q141: 5078.25 | R141: 4304.833333 | AA141: 4946.25 | AB141: 4946.25 | AE141: 0.148999187 | AH141: 5078.25 | AI141: 5078.25 | AL141: 0.179662395 | AO141: 2890 | AP141: 2890 | AS141: -0.3286615819 | AZ141: =IF(OR($L141="",AV141="",$J141="Ausführungsbeschreibung",$J141="Hinweis"),"", IF(AND($AA141,$AH141,$AO141,$AV141,$BC141)="","", IF($L$4="MIT", IF(OR(AW141="Nur EP ",$K141="E"),((BA141/(AVERAGE($AF141,$AM141,$AT141,$BA141,$BH141)))-1), IF($L$4="MIT",((AW141/(AVERAGE($AB141,$AI141,$AP141,$AW141,$BD141)))-1), IF($L$4="MIN", IF(OR(AW141="Nur EP ",$K141="E"),((BA141/(MIN($AF141,$AM141,$AT141,$BA141,$BH141)))-1), IF($L$4="MIN",(AW141/(MIN($AB141,$AI141,$AP141,$AW141,$BD141)))-1) ))))))) ->  | BA141: =IF(OR($K141="",$K141="H",$K141="AB",$K141="G",$J141="Position",$K141="<-- Bitte Positionsart",AV141="",$L141=""),"", IF(OR($K141="A",$K141="B",$K141="E"),$L141*AV141)) -> 
G142: 6 | H142: 48 | I142: Herstellen von Sekuranten zur Absicherung im Rahmen von Dachbegehungen oder Wartungsarbeiten Arbeiten am Dach | J142: Position | L142: 5 | M142: Stck. | O142: 185 | P142: 269.98 | Q142: 316.92 | R142: 1349.9 | AA142: 308.02 | AB142: 1540.1 | AE142: 0.1408993259 | AH142: 316.92 | AI142: 1584.6 | AL142: 0.1738647307 | AO142: 185 | AP142: 925 | AS142: -0.3147640566 | AZ142: =IF(OR($L142="",AV142="",$J142="Ausführungsbeschreibung",$J142="Hinweis"),"", IF(AND($AA142,$AH142,$AO142,$AV142,$BC142)="","", IF($L$4="MIT", IF(OR(AW142="Nur EP ",$K142="E"),((BA142/(AVERAGE($AF142,$AM142,$AT142,$BA142,$BH142)))-1), IF($L$4="MIT",((AW142/(AVERAGE($AB142,$AI142,$AP142,$AW142,$BD142)))-1), IF($L$4="MIN", IF(OR(AW142="Nur EP ",$K142="E"),((BA142/(MIN($AF142,$AM142,$AT142,$BA142,$BH142)))-1), IF($L$4="MIN",(AW142/(MIN($AB142,$AI142,$AP142,$AW142,$BD142)))-1) ))))))) ->  | BA142: =IF(OR($K142="",$K142="H",$K142="AB",$K142="G",$J142="Position",$K142="<-- Bitte Positionsart",AV142="",$L142=""),"", IF(OR($K142="A",$K142="B",$K142="E"),$L142*AV142)) -> 
G143: 6 | H143: 49 | I143: Flachdach Oberlichter 90/90 | J143: Bedarfsposition | K143: B | L143: 1 | M143: Stck. | R143: Nur EP | T143: 2436.626667 | W143: Nur EP | AA143: 2229.94 | AB143: Nur EP | AE143: -0.08482492189 | AF143: 2229.94 | AH143: 2229.94 | AI143: Nur EP | AL143: -0.08482492189 | AM143: 2229.94 | AO143: 2850 | AP143: Nur EP | AS143: 0.1696498438 | AT143: 2850 | AW143: Nur EP | BD143: Nur EP
G144: 6 | H144: 50 | I144: Laubgitter Grau | J144: Position | L144: 62 | M144: m | O144: 12.3 | P144: 15.31 | Q144: 16.83 | R144: 949.22 | AA144: 16.8 | AB144: 1041.6 | AE144: 0.09732201176 | AH144: 16.83 | AI144: 1043.46 | AL144: 0.09928151535 | AO144: 12.3 | AP144: 762.6 | AS144: -0.1966035271
G145: 6 | H145: 51 | I145: Neumontage der temporäre demontierten Geländer an den Erker-Gauben | J145: Position | L145: 3 | M145: Stck. | O145: 180 | P145: 440.51 | Q145: 575.95 | R145: 1321.53 | AA145: 565.58 | AB145: 1696.74 | AE145: 0.2839209099 | AH145: 575.95 | AI145: 1727.85 | AL145: 0.3074618056 | AO145: 180 | AP145: 540 | AS145: -0.5913827155
G146: 6 | H146: 52
W147: =IF(OR($K147="A",$K147="B"),"Nur EP ",IF($K147="E","",IF(AND($L147<>"",V147<>""),$L147*V147,""))) ->  | Y147: =IF($K147="Ja",IF(AND($L147<>"",V147<>""),$L147*V147),"") ->  | AA147: EP / % Titel | AB147: Positions- / Titelsumme | AF147: =IF($K147="Ja",IF(AND($L147<>"",AA147<>""),$L147*AA147),"") ->  | AH147: EP / % Titel | AI147: Positions- / Titelsumme | AM147: =IF($K147="Ja",IF(AND($L147<>"",AH147<>""),$L147*AH147),"") ->  | AO147: EP / % Titel | AP147: Positions- / Titelsumme | AR147: =IF(AQ147="","",IF(AQ147="X",AP147,AP147*AQ147)) ->  | AT147: =IF($K147="Ja",IF(AND($L147<>"",AO147<>""),$L147*AO147),"") ->  | AV147: EP / % Titel | AW147: Positions- / Titelsumme | AY147: =IF(AX147="","",IF(AX147="X",AW147,AW147*AX147)) ->  | BA147: =IF($K147="Ja",IF(AND($L147<>"",AV147<>""),$L147*AV147),"") ->  | BC147: EP / % Titel | BD147: Positions- / Titelsumme | BH147: =IF($K147="Ja",IF(AND($L147<>"",BC147<>""),$L147*BC147),"") -> 
G148: 7 | I148: Photovoltaik | O148: =CONCATENATE("Titelsumme",CHAR(10),"MIN",CHAR(10),TEXT(SUMPRODUCT($L149:$L161,O149:O161),"##.##0,00")," €") -> Titelsumme MIN 6.145,00 € | P148: =CONCATENATE("Titelsumme",CHAR(10),"MIT",CHAR(10),TEXT(SUMPRODUCT($L149:$L161,P149:P161),"##.##0,00")," €") -> Titelsumme MIT 9.554,78 € | Q148: =CONCATENATE("Titelsumme",CHAR(10),"MAX",CHAR(10),TEXT(SUMPRODUCT($L149:$L161,Q149:Q161),"##.##0,00")," €") -> Titelsumme MAX 11.338,18 € | R148: =SUM(R149:R161) -> 9554.78 | T148: =SUM(T149:T161) -> 0 | W148: =SUM(W149:W161) -> 0 | Y148: =SUM(Y149:Y161) -> 0 | AA148: =IF(AB148=0,"", IF($L$4="MIT",((AB148/(AVERAGE($AB148,$AI148,$AP148,$AW148,$BD148)))-1)*100,)) -> 95.03606223 | AB148: =SUM(AB149:AB161) -> 11181.16 | AD148: =IF(AC148="","",IF(AC148="X",AB148,AB148*AC148)) ->  | AF148: =SUM(AF149:AF161) -> 0 | AH148: =IF(AI148=0,"", IF($L$4="MIT",((AI148/(AVERAGE($AB148,$AI148,$AP148,$AW148,$BD148)))-1)*100,)) -> 97.77500546 | AI148: =SUM(AI149:AI161) -> 11338.18 | AK148: =IF(AJ148="","",IF(AJ148="X",AI148,AI148*AJ148)) ->  | AM148: =SUM(AM149:AM161) -> 0 | AO148: =IF(AP148=0,"", IF($L$4="MIT",((AP148/(AVERAGE($AB148,$AI148,$AP148,$AW148,$BD148)))-1)*100,)) -> 7.188932311 | AP148: =SUM(AP149:AP161) -> 6145 | AT148: =SUM(AT149:AT161) -> 0 | AV148: =IF(AW148=0,"", IF($L$4="MIT",((AW148/(AVERAGE($AB148,$AI148,$AP148,$AW148,$BD148)))-1)*100,)) ->  | AW148: =SUM(AW149:AW161) -> 0 | BA148: =SUM(BA149:BA161) -> 0 | BC148: =IF(BD148=0,"", IF($L$4="MIT",((BD148/(AVERAGE($AB148,$AI148,$AP148,$AW148,$BD148)))-1)*100,)) ->  | BD148: =SUM(BD149:BD161) -> 0 | BH148: =SUM(BH149:BH161) -> 0
G149: =G$148 -> 7 | H149: =IF(G$162="","",ROW()-ROW(G$148)) -> 1 | I149: BauderSOLAR GF inkl. MST-Folie - Grundfuß inkl. Manschette für ein PVC Foliendach | J149: Position | K149: =IF(J149="Position","",IF(J149="Grundposition","G",IF(J149="Alternativposition","A",IF(J149="Bedarfsposition","B",IF(J149="Hinweis","H",IF(J149="Ausführungsbeschreibung","AB",IF(J149="Entfällt","E",IF(AND(I149<>"",L149<>""),"<-- Bitte Positionsart","")))))))) ->  | L149: 61 | M149: Stck. | O149: =IF(OR($K149="B",$K149="A",$K149="H",$K149="AB",$K149="<-- Bitte Positionsart",SUM(AA149,AH149,AO149,AV149,BC149)=0),"",MIN(AA149,AH149,AO149,AV149,BC149)) -> 45 | P149: =IF(OR($K149="B",$K149="A",$K149="H",$K149="AB",$K149="<-- Bitte Positionsart",SUM(AA149,AH149,AO149,AV149,BC149)=0),"",SUM(AA149,AH149,AO149,AV149,BC149)/COUNT(AA149,AH149,AO149,AV149,BC149)) -> 51.71333333 | Q149: =IF(OR($K149="B",$K149="A",$K149="H",$K149="AB",$K149="<-- Bitte Positionsart",SUM(AA149,AH149,AO149,AV149,BC149)=0),"",MAX(AA149,AH149,AO149,AV149,BC149)) -> 55.38 | R149: =IF(OR($K149="A",$K149="B"),"Nur EP ",IF($K149="E","E ",IF(AND($L149<>"",P149<>""),$L149*P149,""))) -> 3154.513333 | T149: =IF(OR($K149="",$K149="H",$K149="AB",$K149="G",$K149="<-- Bitte Positionsart"),"",IF(OR($K149="A",$K149="B"),$L149*(SUM(AA149,AH149,AO149,AV149,BC149)/COUNT(AA149,AH149,AO149,AV149,BC149)),IF($K149="E",$L149*P149))) ->  | W149: =IF(OR($K149="A",$K149="B"),"Nur EP ",IF($K149="E","E ",IF(AND($L149<>"",V149<>""),$L149*V149,""))) ->  | X149: =IF(OR($L149="",W149=""),"", IF(OR($W149="Nur EP ",$K149="E"),(Y149/(AVERAGE($Y149,$AF149,$AM149,$AT149,Y149))-1), IF(AND($W149,$AB149,$AI149,$AP149,$AW149)="","",(W149/(AVERAGE($W149,$AB149,$AI149,$AP149,$AW149)))-1))) ->  | Y149: =IF(OR($K149="",$K149="H",$K149="AB",$K149="G",$J149="Position",$K149="<-- Bitte Positionsart",V149="",$L149=""),"", IF(OR($K149="A",$K149="B",$K149="E"),$L149*V149)) ->  | AA149: 54.76 | AB149: =IF(C149="Hinweis","",IF(OR($K149="A",$K149="B"),"Nur EP ",IF($K149="E","E ",IF(AND($L149<>"",AA149<>""),$L149*AA149,"")))) -> 3340.36 | AE149: =IF(OR($L149="",AA149="",$J149="Ausführungsbeschreibung",$J149="Hinweis"),"", IF(AND($AA149,$AH149,$AO149,$AV149,$BC149)="","", IF($L$4="MIT", IF(OR(AB149="Nur EP ",$K149="E"),((AF149/(AVERAGE($AF149,$AM149,$AT149,$BA149,$BH149)))-1), IF($L$4="MIT",((AB149/(AVERAGE($AB149,$AI149,$AP149,$AW149,$BD149)))-1), IF($L$4="MIN", IF(OR(AB149="Nur EP ",$K149="E"),((AF149/(MIN($AF149,$AM149,$AT149,$BA149,$BH149)))-1), IF($L$4="MIN",((AB149/(MIN($AB149,$AI149,$AP149,$AW149,$BD149)))-1)) ))))))) -> 0.05891452881 | AF149: =IF(OR($K149="",$K149="H",$K149="AB",$K149="G",$J149="Position",$K149="<-- Bitte Positionsart",AA149="",$L149=""),"", IF(OR($K149="A",$K149="B",$K149="E"),$L149*AA149)) ->  | AH149: 55.38 | AI149: =IF(J149="Hinweis","",IF(OR($K149="A",$K149="B"),"Nur EP ",IF($K149="E","E ",IF(AND($L149<>"",AH149<>""),$L149*AH149,"")))) -> 3378.18 | AL149: =IF(OR($L149="",AH149="",$J149="Ausführungsbeschreibung",$J149="Hinweis"),"", IF(AND($AA149,$AH149,$AO149,$AV149,$BC149)="","", IF($L$4="MIT", IF(OR(AI149="Nur EP ",$K149="E"),((AM149/(AVERAGE($AF149,$AM149,$AT149,$BA149,$BH149)))-1), IF($L$4="MIT",((AI149/(AVERAGE($AB149,$AI149,$AP149,$AW149,$BD149)))-1), IF($L$4="MIN", IF(OR(AI149="Nur EP ",$K149="E"),((AM149/(MIN($AF149,$AM149,$AT149,$BA149,$BH149)))-1), IF($L$4="MIN",(AI149/(MIN($AB149,$AI149,$AP149,$AW149,$BD149)))-1) ))))))) -> 0.07090369988 | AM149: =IF(OR($K149="",$K149="H",$K149="AB",$K149="G",$J149="Position",$K149="<-- Bitte Positionsart",AH149="",$L149=""),"", IF(OR($K149="A",$K149="B",$K149="E"),$L149*AH149)) ->  | AO149: 45 | AP149: =IF(P149="Hinweis","",IF(OR($K149="A",$K149="B"),"Nur EP ",IF($K149="E","E ",IF(AND($L149<>"",AO149<>""),$L149*AO149,"")))) -> 2745 | AS149: =IF(OR($L149="",AO149="",$J149="Ausführungsbeschreibung",$J149="Hinweis"),"", IF(AND($AA149,$AH149,$AO149,$AV149,$BC149)="","", IF($L$4="MIT", IF(OR(AP149="Nur EP ",$K149="E"),((AT149/(AVERAGE($AF149,$AM149,$AT149,$BA149,$BH149)))-1), IF($L$4="MIT",((AP149/(AVERAGE($AB149,$AI149,$AP149,$AW149,$BD149)))-1), IF($L$4="MIN", IF(OR(AP149="Nur EP ",$K149="E"),((AT149/(MIN($AF149,$AM149,$AT149,$BA149,$BH149)))-1), IF($L$4="MIN",(AP149/(MIN($AB149,$AI149,$AP149,$AW149,$BD149)))-1) ))))))) -> -0.1298182287 | AT149: =IF(OR($K149="",$K149="H",$K149="AB",$K149="G",$J149="Position",$K149="<-- Bitte Positionsart",AO149="",$L149=""),"", IF(OR($K149="A",$K149="B",$K149="E"),$L149*AO149)) ->  | AW149: =IF(W149="Hinweis","",IF(OR($K149="A",$K149="B"),"Nur EP ",IF($K149="E","E ",IF(AND($L149<>"",AV149<>""),$L149*AV149,"")))) ->  | AZ149: =IF(OR($L149="",AV149="",$J149="Ausführungsbeschreibung",$J149="Hinweis"),"", IF(AND($AA149,$AH149,$AO149,$AV149,$BC149)="","", IF($L$4="MIT", IF(OR(AW149="Nur EP ",$K149="E"),((BA149/(AVERAGE($AF149,$AM149,$AT149,$BA149,$BH149)))-1), IF($L$4="MIT",((AW149/(AVERAGE($AB149,$AI149,$AP149,$AW149,$BD149)))-1), IF($L$4="MIN", IF(OR(AW149="Nur EP ",$K149="E"),((BA149/(MIN($AF149,$AM149,$AT149,$BA149,$BH149)))-1), IF($L$4="MIN",(AW149/(MIN($AB149,$AI149,$AP149,$AW149,$BD149)))-1) ))))))) ->  | BA149: =IF(OR($K149="",$K149="H",$K149="AB",$K149="G",$J149="Position",$K149="<-- Bitte Positionsart",AV149="",$L149=""),"", IF(OR($K149="A",$K149="B",$K149="E"),$L149*AV149)) ->  | BD149: =IF(AD149="Hinweis","",IF(OR($K149="A",$K149="B"),"Nur EP ",IF($K149="E","E ",IF(AND($L149<>"",BC149<>""),$L149*BC149,"")))) ->  | BG149: =IF(OR($L149="",BC149="",$J149="Ausführungsbeschreibung",$J149="Hinweis"),"", IF(AND($AA149,$AH149,$AO149,$AV149,$BC149)="","", IF($L$4="MIT", IF(OR(BD149="Nur EP ",$K149="E"),((BH149/(AVERAGE($AF149,$AM149,$AT149,$BA149,$BH149)))-1), IF($L$4="MIT",((BD149/(AVERAGE($AB149,$AI149,$AP149,$AW149,$BD149)))-1), IF($L$4="MIN", IF(OR(BD149="Nur EP ",$K149="E"),((BH149/(MIN($AF149,$AM149,$AT149,$BA149,$BH149)))-1), IF($L$4="MIN",((BD149/(MIN($AB149,$AI149,$AP149,$AW149,$BD149)))-1)) ))))))) ->  | BH149: =IF(OR($K149="",$K149="H",$K149="AB",$K149="G",$J149="Position",$K149="<-- Bitte Positionsart",BC149="",$L149=""),"", IF(OR($K149="A",$K149="B",$K149="E"),$L149*BC149)) -> 
G150: =G$148 -> 7 | H150: 2 | I150: BauderSOLAR F XL Durchdringungsfrei PV-Unterkonstruktion | J150: Position | K150: =IF(J150="Position","",IF(J150="Grundposition","G",IF(J150="Alternativposition","A",IF(J150="Bedarfsposition","B",IF(J150="Hinweis","H",IF(J150="Ausführungsbeschreibung","AB",IF(J150="Entfällt","E",IF(AND(I150<>"",L150<>""),"<-- Bitte Positionsart","")))))))) ->  | L150: 40 | M150: Stck. | O150: =IF(OR($K150="B",$K150="A",$K150="H",$K150="AB",$K150="<-- Bitte Positionsart",SUM(AA150,AH150,AO150,AV150,BC150)=0),"",MIN(AA150,AH150,AO150,AV150,BC150)) -> 85 | P150: =IF(OR($K150="B",$K150="A",$K150="H",$K150="AB",$K150="<-- Bitte Positionsart",SUM(AA150,AH150,AO150,AV150,BC150)=0),"",SUM(AA150,AH150,AO150,AV150,BC150)/COUNT(AA150,AH150,AO150,AV150,BC150)) -> 160.0066667 | Q150: =IF(OR($K150="B",$K150="A",$K150="H",$K150="AB",$K150="<-- Bitte Positionsart",SUM(AA150,AH150,AO150,AV150,BC150)=0),"",MAX(AA150,AH150,AO150,AV150,BC150)) -> 199 | R150: =IF(OR($K150="A",$K150="B"),"Nur EP ",IF($K150="E","E ",IF(AND($L150<>"",P150<>""),$L150*P150,""))) -> 6400.266667 | T150: =IF(OR($K150="",$K150="H",$K150="AB",$K150="G",$K150="<-- Bitte Positionsart"),"",IF(OR($K150="A",$K150="B"),$L150*(SUM(AA150,AH150,AO150,AV150,BC150)/COUNT(AA150,AH150,AO150,AV150,BC150)),IF($K150="E",$L150*P150))) ->  | Y150: =IF(OR($K150="",$K150="H",$K150="AB",$K150="G",$J150="Position",$K150="<-- Bitte Positionsart",V150="",$L150=""),"", IF(OR($K150="A",$K150="B",$K150="E"),$L150*V150)) ->  | AA150: 196.02 | AB150: 7840.8 | AE150: 0.2250739553 | AF150: =IF(OR($K150="",$K150="H",$K150="AB",$K150="G",$J150="Position",$K150="<-- Bitte Positionsart",AA150="",$L150=""),"", IF(OR($K150="A",$K150="B",$K150="E"),$L150*AA150)) ->  | AH150: 199 | AI150: 7960 | AL150: =IF(OR($L150="",AH150="",$J150="Ausführungsbeschreibung",$J150="Hinweis"),"", IF(AND($AA150,$AH150,$AO150,$AV150,$BC150)="","", IF($L$4="MIT", IF(OR(AI150="Nur EP ",$K150="E"),((AM150/(AVERAGE($AF150,$AM150,$AT150,$BA150,$BH150)))-1), IF($L$4="MIT",((AI150/(AVERAGE($AB150,$AI150,$AP150,$AW150,$BD150)))-1), IF($L$4="MIN", IF(OR(AI150="Nur EP ",$K150="E"),((AM150/(MIN($AF150,$AM150,$AT150,$BA150,$BH150)))-1), IF($L$4="MIN",(AI150/(MIN($AB150,$AI150,$AP150,$AW150,$BD150)))-1) ))))))) -> 0.2436981792 | AM150: =IF(OR($K150="",$K150="H",$K150="AB",$K150="G",$J150="Position",$K150="<-- Bitte Positionsart",AH150="",$L150=""),"", IF(OR($K150="A",$K150="B",$K150="E"),$L150*AH150)) ->  | AO150: 85 | AP150: 3400 | AS150: =IF(OR($L150="",AO150="",$J150="Ausführungsbeschreibung",$J150="Hinweis"),"", IF(AND($AA150,$AH150,$AO150,$AV150,$BC150)="","", IF($L$4="MIT", IF(OR(AP150="Nur EP ",$K150="E"),((AT150/(AVERAGE($AF150,$AM150,$AT150,$BA150,$BH150)))-1), IF($L$4="MIT",((AP150/(AVERAGE($AB150,$AI150,$AP150,$AW150,$BD150)))-1), IF($L$4="MIN", IF(OR(AP150="Nur EP ",$K150="E"),((AT150/(MIN($AF150,$AM150,$AT150,$BA150,$BH150)))-1), IF($L$4="MIN",(AP150/(MIN($AB150,$AI150,$AP150,$AW150,$BD150)))-1) ))))))) -> -0.4687721345 | AT150: =IF(OR($K150="",$K150="H",$K150="AB",$K150="G",$J150="Position",$K150="<-- Bitte Positionsart",AO150="",$L150=""),"", IF(OR($K150="A",$K150="B",$K150="E"),$L150*AO150)) ->  | AZ150: =IF(OR($L150="",AV150="",$J150="Ausführungsbeschreibung",$J150="Hinweis"),"", IF(AND($AA150,$AH150,$AO150,$AV150,$BC150)="","", IF($L$4="MIT", IF(OR(AW150="Nur EP ",$K150="E"),((BA150/(AVERAGE($AF150,$AM150,$AT150,$BA150,$BH150)))-1), IF($L$4="MIT",((AW150/(AVERAGE($AB150,$AI150,$AP150,$AW150,$BD150)))-1), IF($L$4="MIN", IF(OR(AW150="Nur EP ",$K150="E"),((BA150/(MIN($AF150,$AM150,$AT150,$BA150,$BH150)))-1), IF($L$4="MIN",(AW150/(MIN($AB150,$AI150,$AP150,$AW150,$BD150)))-1) ))))))) ->  | BA150: =IF(OR($K150="",$K150="H",$K150="AB",$K150="G",$J150="Position",$K150="<-- Bitte Positionsart",AV150="",$L150=""),"", IF(OR($K150="A",$K150="B",$K150="E"),$L150*AV150)) ->  | BG150: =IF(OR($L150="",BC150="",$J150="Ausführungsbeschreibung",$J150="Hinweis"),"", IF(AND($AA150,$AH150,$AO150,$AV150,$BC150)="","", IF($L$4="MIT", IF(OR(BD150="Nur EP ",$K150="E"),((BH150/(AVERAGE($AF150,$AM150,$AT150,$BA150,$BH150)))-1), IF($L$4="MIT",((BD150/(AVERAGE($AB150,$AI150,$AP150,$AW150,$BD150)))-1), IF($L$4="MIN", IF(OR(BD150="Nur EP ",$K150="E"),((BH150/(MIN($AF150,$AM150,$AT150,$BA150,$BH150)))-1), IF($L$4="MIN",((BD150/(MIN($AB150,$AI150,$AP150,$AW150,$BD150)))-1)) ))))))) ->  | BH150: =IF(OR($K150="",$K150="H",$K150="AB",$K150="G",$J150="Position",$K150="<-- Bitte Positionsart",BC150="",$L150=""),"", IF(OR($K150="A",$K150="B",$K150="E"),$L150*BC150)) -> 
G151: 7 | H151: 3 | AF151: =IF(OR($K151="",$K151="H",$K151="AB",$K151="G",$J151="Position",$K151="<-- Bitte Positionsart",AA151="",$L151=""),"", IF(OR($K151="A",$K151="B",$K151="E"),$L151*AA151)) ->  | AM151: =IF(OR($K151="",$K151="H",$K151="AB",$K151="G",$J151="Position",$K151="<-- Bitte Positionsart",AH151="",$L151=""),"", IF(OR($K151="A",$K151="B",$K151="E"),$L151*AH151)) ->  | AT151: =IF(OR($K151="",$K151="H",$K151="AB",$K151="G",$J151="Position",$K151="<-- Bitte Positionsart",AO151="",$L151=""),"", IF(OR($K151="A",$K151="B",$K151="E"),$L151*AO151)) ->  | BH151: =IF(OR($K151="",$K151="H",$K151="AB",$K151="G",$J151="Position",$K151="<-- Bitte Positionsart",BC151="",$L151=""),"", IF(OR($K151="A",$K151="B",$K151="E"),$L151*BC151)) -> 
G152: 7 | H152: 4
G153: 7 | H153: 5
G154: 7 | H154: 6
G155: 7 | H155: 7 | Y155: =IF(OR($K155="",$K155="H",$K155="AB",$K155="G",$J155="Position",$K155="<-- Bitte Positionsart",V155="",$L155=""),"", IF(OR($K155="A",$K155="B",$K155="E"),$L155*V155)) -> 
G156: 7 | H156: 8
G157: 7 | H157: 9
G158: 7 | H158: 10
G159: 7 | H159: 11 | AW159: =IF(W159="Hinweis","",IF(OR($K159="A",$K159="B"),"Nur EP ",IF($K159="E","E ",IF(AND($L159<>"",AV159<>""),$L159*AV159,"")))) ->  | AY159: =IF(AX159="","",IF(AX159="X",AW159,AW159*AX159)) ->  | AZ159: =IF(OR($L159="",AV159="",$J159="Ausführungsbeschreibung",$J159="Hinweis"),"", IF(AND($AA159,$AH159,$AO159,$AV159,$BC159)="","", IF($L$4="MIT", IF(OR(AW159="Nur EP ",$K159="E"),((BA159/(AVERAGE($AF159,$AM159,$AT159,$BA159,$BH159)))-1), IF($L$4="MIT",((AW159/(AVERAGE($AB159,$AI159,$AP159,$AW159,$BD159)))-1), IF($L$4="MIN", IF(OR(AW159="Nur EP ",$K159="E"),((BA159/(MIN($AF159,$AM159,$AT159,$BA159,$BH159)))-1), IF($L$4="MIN",(AW159/(MIN($AB159,$AI159,$AP159,$AW159,$BD159)))-1) ))))))) ->  | BA159: =IF(OR($K159="",$K159="H",$K159="AB",$K159="G",$J159="Position",$K159="<-- Bitte Positionsart",AV159="",$L159=""),"", IF(OR($K159="A",$K159="B",$K159="E"),$L159*AV159)) -> 
G160: 7 | H160: 12 | AS160: =IF(OR($L160="",AO160="",$J160="Ausführungsbeschreibung",$J160="Hinweis"),"", IF(AND($AA160,$AH160,$AO160,$AV160,$BC160)="","", IF($L$4="MIT", IF(OR(AP160="Nur EP ",$K160="E"),((AT160/(AVERAGE($AF160,$AM160,$AT160,$BA160,$BH160)))-1), IF($L$4="MIT",((AP160/(AVERAGE($AB160,$AI160,$AP160,$AW160,$BD160)))-1), IF($L$4="MIN", IF(OR(AP160="Nur EP ",$K160="E"),((AT160/(MIN($AF160,$AM160,$AT160,$BA160,$BH160)))-1), IF($L$4="MIN",(AP160/(MIN($AB160,$AI160,$AP160,$AW160,$BD160)))-1) ))))))) ->  | AZ160: =IF(OR($L160="",AV160="",$J160="Ausführungsbeschreibung",$J160="Hinweis"),"", IF(AND($AA160,$AH160,$AO160,$AV160,$BC160)="","", IF($L$4="MIT", IF(OR(AW160="Nur EP ",$K160="E"),((BA160/(AVERAGE($AF160,$AM160,$AT160,$BA160,$BH160)))-1), IF($L$4="MIT",((AW160/(AVERAGE($AB160,$AI160,$AP160,$AW160,$BD160)))-1), IF($L$4="MIN", IF(OR(AW160="Nur EP ",$K160="E"),((BA160/(MIN($AF160,$AM160,$AT160,$BA160,$BH160)))-1), IF($L$4="MIN",(AW160/(MIN($AB160,$AI160,$AP160,$AW160,$BD160)))-1) ))))))) ->  | BA160: =IF(OR($K160="",$K160="H",$K160="AB",$K160="G",$J160="Position",$K160="<-- Bitte Positionsart",AV160="",$L160=""),"", IF(OR($K160="A",$K160="B",$K160="E"),$L160*AV160)) ->  | BF160: =IF(BE160="","",IF(BE160="X",BD160,BD160*BE160)) ->  | BG160: =IF(OR($L160="",BC160="",$J160="Ausführungsbeschreibung",$J160="Hinweis"),"", IF(AND($AA160,$AH160,$AO160,$AV160,$BC160)="","", IF($L$4="MIT", IF(OR(BD160="Nur EP ",$K160="E"),((BH160/(AVERAGE($AF160,$AM160,$AT160,$BA160,$BH160)))-1), IF($L$4="MIT",((BD160/(AVERAGE($AB160,$AI160,$AP160,$AW160,$BD160)))-1), IF($L$4="MIN", IF(OR(BD160="Nur EP ",$K160="E"),((BH160/(MIN($AF160,$AM160,$AT160,$BA160,$BH160)))-1), IF($L$4="MIN",((BD160/(MIN($AB160,$AI160,$AP160,$AW160,$BD160)))-1)) ))))))) -> 
W161: =IF(OR($K161="A",$K161="B"),"Nur EP ",IF($K161="E","",IF(AND($L161<>"",V161<>""),$L161*V161,""))) ->  | Y161: =IF($K161="Ja",IF(AND($L161<>"",V161<>""),$L161*V161),"") ->  | AA161: EP / % Titel | AB161: Positions- / Titelsumme | AF161: =IF($K161="Ja",IF(AND($L161<>"",AA161<>""),$L161*AA161),"") ->  | AH161: EP / % Titel | AI161: Positions- / Titelsumme | AM161: =IF($K161="Ja",IF(AND($L161<>"",AH161<>""),$L161*AH161),"") ->  | AO161: EP / % Titel | AP161: Positions- / Titelsumme | AT161: =IF($K161="Ja",IF(AND($L161<>"",AO161<>""),$L161*AO161),"") ->  | AV161: EP / % Titel | AW161: Positions- / Titelsumme | BA161: =IF($K161="Ja",IF(AND($L161<>"",AV161<>""),$L161*AV161),"") ->  | BC161: EP / % Titel | BD161: Positions- / Titelsumme | BH161: =IF($K161="Ja",IF(AND($L161<>"",BC161<>""),$L161*BC161),"") -> 
G162: 8 | I162: Klempnerarbeiten | O162: =CONCATENATE("Titelsumme",CHAR(10),"MIN",CHAR(10),TEXT(SUMPRODUCT($L163:$L182,O163:O182),"##.##0,00")," €") -> Titelsumme MIN 20.458,97 € | P162: =CONCATENATE("Titelsumme",CHAR(10),"MIT",CHAR(10),TEXT(SUMPRODUCT($L163:$L182,P163:P182),"##.##0,00")," €") -> Titelsumme MIT 34.542,41 € | Q162: =CONCATENATE("Titelsumme",CHAR(10),"MAX",CHAR(10),TEXT(SUMPRODUCT($L163:$L182,Q163:Q182),"##.##0,00")," €") -> Titelsumme MAX 42.197,08 € | R162: =SUM(R163:R182) -> 34542.41 | T162: =SUM(T163:T182) -> 5485.22 | W162: =SUM(W163:W182) -> 0 | Y162: =SUM(Y163:Y182) -> 0 | AA162: =IF(AB162=0,"", IF($L$4="MIT",((AB162/(AVERAGE($AB162,$AI162,$AP162,$AW162,$BD162)))-1)*100,)) -> 97.68558901 | AB162: =SUM(AB163:AB182) -> 40971.22 | AD162: =IF(AC162="","",IF(AC162="X",AB162,AB162*AC162)) ->  | AF162: =SUM(AF163:AF182) -> 5774.48 | AH162: =IF(AI162=0,"", IF($L$4="MIT",((AI162/(AVERAGE($AB162,$AI162,$AP162,$AW162,$BD162)))-1)*100,)) -> 101.2883583 | AI162: =SUM(AI163:AI182) -> 41717.91 | AM162: =SUM(AM163:AM182) -> 5774.48 | AO162: =IF(AP162=0,"", IF($L$4="MIT",((AP162/(AVERAGE($AB162,$AI162,$AP162,$AW162,$BD162)))-1)*100,)) -> 1.026052708 | AP162: =SUM(AP163:AP182) -> 20938.1 | AT162: =SUM(AT163:AT182) -> 2889 | AV162: =IF(AW162=0,"", IF($L$4="MIT",((AW162/(AVERAGE($AB162,$AI162,$AP162,$AW162,$BD162)))-1)*100,)) ->  | AW162: =SUM(AW163:AW182) -> 0 | BA162: =SUM(BA163:BA182) -> 0 | BC162: =IF(BD162=0,"", IF($L$4="MIT",((BD162/(AVERAGE($AB162,$AI162,$AP162,$AW162,$BD162)))-1)*100,)) ->  | BD162: =SUM(BD163:BD182) -> 0 | BF162: =IF(BE162="","",IF(BE162="X",BD162,BD162*BE162)) ->  | BH162: =SUM(BH163:BH182) -> 0
G163: =G$162 -> 8 | H163: =IF(G$162="","",ROW()-ROW(G$162)) -> 1 | I163: Allgemeines zu Zinkblecharbeiten | J163: Hinweis | K163: =IF(J163="Position","",IF(J163="Grundposition","G",IF(J163="Alternativposition","A",IF(J163="Bedarfsposition","B",IF(J163="Hinweis","H",IF(J163="Ausführungsbeschreibung","AB",IF(J163="Entfällt","E",IF(AND(I163<>"",L163<>""),"<-- Bitte Positionsart","")))))))) -> H | O163: =IF(OR($K163="B",$K163="A",$K163="H",$K163="AB",$K163="<-- Bitte Positionsart",SUM(AA163,AH163,AO163,AV163,BC163)=0),"",MIN(AA163,AH163,AO163,AV163,BC163)) ->  | P163: =IF(OR($K163="B",$K163="A",$K163="H",$K163="AB",$K163="<-- Bitte Positionsart",SUM(AA163,AH163,AO163,AV163,BC163)=0),"",SUM(AA163,AH163,AO163,AV163,BC163)/COUNT(AA163,AH163,AO163,AV163,BC163)) ->  | Q163: =IF(OR($K163="B",$K163="A",$K163="H",$K163="AB",$K163="<-- Bitte Positionsart",SUM(AA163,AH163,AO163,AV163,BC163)=0),"",MAX(AA163,AH163,AO163,AV163,BC163)) ->  | R163: =IF(OR($K163="A",$K163="B"),"Nur EP ",IF($K163="E","E ",IF(AND($L163<>"",P163<>""),$L163*P163,""))) ->  | T163: =IF(OR($K163="",$K163="H",$K163="AB",$K163="G",$K163="<-- Bitte Positionsart"),"",IF(OR($K163="A",$K163="B"),$L163*(SUM(AA163,AH163,AO163,AV163,BC163)/COUNT(AA163,AH163,AO163,AV163,BC163)),IF($K163="E",$L163*P163))) ->  | W163: =IF(OR($K163="A",$K163="B"),"Nur EP ",IF($K163="E","E ",IF(AND($L163<>"",V163<>""),$L163*V163,""))) ->  | X163: =IF(OR($L163="",W163=""),"", IF(OR($W163="Nur EP ",$K163="E"),(Y163/(AVERAGE($Y163,$AF163,$AM163,$AT163,Y163))-1), IF(AND($W163,$AB163,$AI163,$AP163,$AW163)="","",(W163/(AVERAGE($W163,$AB163,$AI163,$AP163,$AW163)))-1))) ->  | Y163: =IF(OR($K163="",$K163="H",$K163="AB",$K163="G",$J163="Position",$K163="<-- Bitte Positionsart",V163="",$L163=""),"", IF(OR($K163="A",$K163="B",$K163="E"),$L163*V163)) ->  | AB163: =IF(C163="Hinweis","",IF(OR($K163="A",$K163="B"),"Nur EP ",IF($K163="E","E ",IF(AND($L163<>"",AA163<>""),$L163*AA163,"")))) ->  | AE163: =IF(OR($L163="",AA163="",$J163="Ausführungsbeschreibung",$J163="Hinweis"),"", IF(AND($AA163,$AH163,$AO163,$AV163,$BC163)="","", IF($L$4="MIT", IF(OR(AB163="Nur EP ",$K163="E"),((AF163/(AVERAGE($AF163,$AM163,$AT163,$BA163,$BH163)))-1), IF($L$4="MIT",((AB163/(AVERAGE($AB163,$AI163,$AP163,$AW163,$BD163)))-1), IF($L$4="MIN", IF(OR(AB163="Nur EP ",$K163="E"),((AF163/(MIN($AF163,$AM163,$AT163,$BA163,$BH163)))-1), IF($L$4="MIN",((AB163/(MIN($AB163,$AI163,$AP163,$AW163,$BD163)))-1)) ))))))) ->  | AF163: =IF(OR($K163="",$K163="H",$K163="AB",$K163="G",$J163="Position",$K163="<-- Bitte Positionsart",AA163="",$L163=""),"", IF(OR($K163="A",$K163="B",$K163="E"),$L163*AA163)) ->  | AI163: =IF(J163="Hinweis","",IF(OR($K163="A",$K163="B"),"Nur EP ",IF($K163="E","E ",IF(AND($L163<>"",AH163<>""),$L163*AH163,"")))) ->  | AK163: =IF(AJ163="","",IF(AJ163="X",AI163,AI163*AJ163)) ->  | AL163: =IF(OR($L163="",AH163="",$J163="Ausführungsbeschreibung",$J163="Hinweis"),"", IF(AND($AA163,$AH163,$AO163,$AV163,$BC163)="","", IF($L$4="MIT", IF(OR(AI163="Nur EP ",$K163="E"),((AM163/(AVERAGE($AF163,$AM163,$AT163,$BA163,$BH163)))-1)*100, IF($L$4="MIT",((AI163/(AVERAGE($AB163,$AI163,$AP163,$AW163,$BD163)))-1)*100, IF($L$4="MIN", IF(OR(AI163="Nur EP ",$K163="E"),((AM163/(MIN($AF163,$AM163,$AT163,$BA163,$BH163)))-1)*100, IF($L$4="MIN",(AI163/(MIN($AB163,$AI163,$AP163,$AW163,$BD163)))-1)*100 ))))))) ->  | AM163: =IF(OR($K163="",$K163="H",$K163="AB",$K163="G",$J163="Position",$K163="<-- Bitte Positionsart",AH163="",$L163=""),"", IF(OR($K163="A",$K163="B",$K163="E"),$L163*AH163)) ->  | AP163: =IF(P163="Hinweis","",IF(OR($K163="A",$K163="B"),"Nur EP ",IF($K163="E","E ",IF(AND($L163<>"",AO163<>""),$L163*AO163,"")))) ->  | AR163: =IF(AQ163="","",IF(AQ163="X",AP163,AP163*AQ163)) ->  | AS163: =IF(OR($L163="",AO163="",$J163="Ausführungsbeschreibung",$J163="Hinweis"),"", IF(AND($AA163,$AH163,$AO163,$AV163,$BC163)="","", IF($L$4="MIT", IF(OR(AP163="Nur EP ",$K163="E"),((AT163/(AVERAGE($AF163,$AM163,$AT163,$BA163,$BH163)))-1), IF($L$4="MIT",((AP163/(AVERAGE($AB163,$AI163,$AP163,$AW163,$BD163)))-1), IF($L$4="MIN", IF(OR(AP163="Nur EP ",$K163="E"),((AT163/(MIN($AF163,$AM163,$AT163,$BA163,$BH163)))-1), IF($L$4="MIN",(AP163/(MIN($AB163,$AI163,$AP163,$AW163,$BD163)))-1) ))))))) ->  | AT163: =IF(OR($K163="",$K163="H",$K163="AB",$K163="G",$J163="Position",$K163="<-- Bitte Positionsart",AO163="",$L163=""),"", IF(OR($K163="A",$K163="B",$K163="E"),$L163*AO163)) ->  | AW163: =IF(W163="Hinweis","",IF(OR($K163="A",$K163="B"),"Nur EP ",IF($K163="E","E ",IF(AND($L163<>"",AV163<>""),$L163*AV163,"")))) ->  | AY163: =IF(AX163="","",IF(AX163="X",AW163,AW163*AX163)) ->  | AZ163: =IF(OR($L163="",AV163="",$J163="Ausführungsbeschreibung",$J163="Hinweis"),"", IF(AND($AA163,$AH163,$AO163,$AV163,$BC163)="","", IF($L$4="MIT", IF(OR(AW163="Nur EP ",$K163="E"),((BA163/(AVERAGE($AF163,$AM163,$AT163,$BA163,$BH163)))-1), IF($L$4="MIT",((AW163/(AVERAGE($AB163,$AI163,$AP163,$AW163,$BD163)))-1), IF($L$4="MIN", IF(OR(AW163="Nur EP ",$K163="E"),((BA163/(MIN($AF163,$AM163,$AT163,$BA163,$BH163)))-1), IF($L$4="MIN",(AW163/(MIN($AB163,$AI163,$AP163,$AW163,$BD163)))-1) ))))))) ->  | BA163: =IF(OR($K163="",$K163="H",$K163="AB",$K163="G",$J163="Position",$K163="<-- Bitte Positionsart",AV163="",$L163=""),"", IF(OR($K163="A",$K163="B",$K163="E"),$L163*AV163)) ->  | BD163: =IF(AD163="Hinweis","",IF(OR($K163="A",$K163="B"),"Nur EP ",IF($K163="E","E ",IF(AND($L163<>"",BC163<>""),$L163*BC163,"")))) ->  | BG163: =IF(OR($L163="",BC163="",$J163="Ausführungsbeschreibung",$J163="Hinweis"),"", IF(AND($AA163,$AH163,$AO163,$AV163,$BC163)="","", IF($L$4="MIT", IF(OR(BD163="Nur EP ",$K163="E"),((BH163/(AVERAGE($AF163,$AM163,$AT163,$BA163,$BH163)))-1), IF($L$4="MIT",((BD163/(AVERAGE($AB163,$AI163,$AP163,$AW163,$BD163)))-1), IF($L$4="MIN", IF(OR(BD163="Nur EP ",$K163="E"),((BH163/(MIN($AF163,$AM163,$AT163,$BA163,$BH163)))-1), IF($L$4="MIN",((BD163/(MIN($AB163,$AI163,$AP163,$AW163,$BD163)))-1)) ))))))) ->  | BH163: =IF(OR($K163="",$K163="H",$K163="AB",$K163="G",$J163="Position",$K163="<-- Bitte Positionsart",BC163="",$L163=""),"", IF(OR($K163="A",$K163="B",$K163="E"),$L163*BC163)) -> 
G164: =G$162 -> 8 | H164: =IF(G$162="","",ROW()-ROW(G$162)) -> 2 | I164: Neue Dachrinne Steildach 6teilig | J164: Grundposition | K164: G | L164: 63 | M164: m | O164: 35.5 | P164: 44.79333333 | Q164: 49.87 | R164: 2821.98 | Y164: =IF(OR($K164="",$K164="H",$K164="AB",$K164="G",$J164="Position",$K164="<-- Bitte Positionsart",V164="",$L164=""),"", IF(OR($K164="A",$K164="B",$K164="E"),$L164*V164)) ->  | AA164: 49.01 | AB164: 3087.63 | AE164: 0.09413603215 | AF164: =IF(OR($K164="",$K164="H",$K164="AB",$K164="G",$J164="Position",$K164="<-- Bitte Positionsart",AA164="",$L164=""),"", IF(OR($K164="A",$K164="B",$K164="E"),$L164*AA164)) ->  | AH164: 49.87 | AI164: 3141.81 | AL164: =IF(OR($L164="",AH164="",$J164="Ausführungsbeschreibung",$J164="Hinweis"),"", IF(AND($AA164,$AH164,$AO164,$AV164,$BC164)="","", IF($L$4="MIT", IF(OR(AI164="Nur EP ",$K164="E"),((AM164/(AVERAGE($AF164,$AM164,$AT164,$BA164,$BH164)))-1), IF($L$4="MIT",((AI164/(AVERAGE($AB164,$AI164,$AP164,$AW164,$BD164)))-1), IF($L$4="MIN", IF(OR(AI164="Nur EP ",$K164="E"),((AM164/(MIN($AF164,$AM164,$AT164,$BA164,$BH164)))-1), IF($L$4="MIN",(AI164/(MIN($AB164,$AI164,$AP164,$AW164,$BD164)))-1) ))))))) -> 0.1133353178 | AM164: =IF(OR($K164="",$K164="H",$K164="AB",$K164="G",$J164="Position",$K164="<-- Bitte Positionsart",AH164="",$L164=""),"", IF(OR($K164="A",$K164="B",$K164="E"),$L164*AH164)) ->  | AO164: 35.5 | AP164: 2236.5 | AS164: =IF(OR($L164="",AO164="",$J164="Ausführungsbeschreibung",$J164="Hinweis"),"", IF(AND($AA164,$AH164,$AO164,$AV164,$BC164)="","", IF($L$4="MIT", IF(OR(AP164="Nur EP ",$K164="E"),((AT164/(AVERAGE($AF164,$AM164,$AT164,$BA164,$BH164)))-1), IF($L$4="MIT",((AP164/(AVERAGE($AB164,$AI164,$AP164,$AW164,$BD164)))-1), IF($L$4="MIN", IF(OR(AP164="Nur EP ",$K164="E"),((AT164/(MIN($AF164,$AM164,$AT164,$BA164,$BH164)))-1), IF($L$4="MIN",(AP164/(MIN($AB164,$AI164,$AP164,$AW164,$BD164)))-1) ))))))) -> -0.2074713499 | AT164: =IF(OR($K164="",$K164="H",$K164="AB",$K164="G",$J164="Position",$K164="<-- Bitte Positionsart",AO164="",$L164=""),"", IF(OR($K164="A",$K164="B",$K164="E"),$L164*AO164)) ->  | AZ164: =IF(OR($L164="",AV164="",$J164="Ausführungsbeschreibung",$J164="Hinweis"),"", IF(AND($AA164,$AH164,$AO164,$AV164,$BC164)="","", IF($L$4="MIT", IF(OR(AW164="Nur EP ",$K164="E"),((BA164/(AVERAGE($AF164,$AM164,$AT164,$BA164,$BH164)))-1), IF($L$4="MIT",((AW164/(AVERAGE($AB164,$AI164,$AP164,$AW164,$BD164)))-1), IF($L$4="MIN", IF(OR(AW164="Nur EP ",$K164="E"),((BA164/(MIN($AF164,$AM164,$AT164,$BA164,$BH164)))-1), IF($L$4="MIN",(AW164/(MIN($AB164,$AI164,$AP164,$AW164,$BD164)))-1) ))))))) ->  | BA164: =IF(OR($K164="",$K164="H",$K164="AB",$K164="G",$J164="Position",$K164="<-- Bitte Positionsart",AV164="",$L164=""),"", IF(OR($K164="A",$K164="B",$K164="E"),$L164*AV164)) ->  | BG164: =IF(OR($L164="",BC164="",$J164="Ausführungsbeschreibung",$J164="Hinweis"),"", IF(AND($AA164,$AH164,$AO164,$AV164,$BC164)="","", IF($L$4="MIT", IF(OR(BD164="Nur EP ",$K164="E"),((BH164/(AVERAGE($AF164,$AM164,$AT164,$BA164,$BH164)))-1), IF($L$4="MIT",((BD164/(AVERAGE($AB164,$AI164,$AP164,$AW164,$BD164)))-1), IF($L$4="MIN", IF(OR(BD164="Nur EP ",$K164="E"),((BH164/(MIN($AF164,$AM164,$AT164,$BA164,$BH164)))-1), IF($L$4="MIN",((BD164/(MIN($AB164,$AI164,$AP164,$AW164,$BD164)))-1)) ))))))) ->  | BH164: =IF(OR($K164="",$K164="H",$K164="AB",$K164="G",$J164="Position",$K164="<-- Bitte Positionsart",BC164="",$L164=""),"", IF(OR($K164="A",$K164="B",$K164="E"),$L164*BC164)) -> 
G165: 8 | H165: 3 | I165: Neue Dachrinne Steildach alternativ 5teilig | J165: Alternativposition | K165: A | L165: 63 | M165: m | R165: Nur EP | T165: 3120.18 | W165: Nur EP | AA165: 53.04 | AB165: Nur EP | AE165: 0.0709382151 | AF165: =IF(OR($K165="",$K165="H",$K165="AB",$K165="G",$J165="Position",$K165="<-- Bitte Positionsart",AA165="",$L165=""),"", IF(OR($K165="A",$K165="B",$K165="E"),$L165*AA165)) -> 3341.52 | AH165: 53.04 | AI165: Nur EP | AL165: =IF(OR($L165="",AH165="",$J165="Ausführungsbeschreibung",$J165="Hinweis"),"", IF(AND($AA165,$AH165,$AO165,$AV165,$BC165)="","", IF($L$4="MIT", IF(OR(AI165="Nur EP ",$K165="E"),((AM165/(AVERAGE($AF165,$AM165,$AT165,$BA165,$BH165)))-1), IF($L$4="MIT",((AI165/(AVERAGE($AB165,$AI165,$AP165,$AW165,$BD165)))-1), IF($L$4="MIN", IF(OR(AI165="Nur EP ",$K165="E"),((AM165/(MIN($AF165,$AM165,$AT165,$BA165,$BH165)))-1), IF($L$4="MIN",(AI165/(MIN($AB165,$AI165,$AP165,$AW165,$BD165)))-1) ))))))) -> 0.0709382151 | AM165: =IF(OR($K165="",$K165="H",$K165="AB",$K165="G",$J165="Position",$K165="<-- Bitte Positionsart",AH165="",$L165=""),"", IF(OR($K165="A",$K165="B",$K165="E"),$L165*AH165)) -> 3341.52 | AO165: 42.5 | AP165: Nur EP | AS165: -0.1418764302 | AT165: =IF(OR($K165="",$K165="H",$K165="AB",$K165="G",$J165="Position",$K165="<-- Bitte Positionsart",AO165="",$L165=""),"", IF(OR($K165="A",$K165="B",$K165="E"),$L165*AO165)) -> 2677.5 | AW165: Nur EP | BD165: Nur EP | BH165: =IF(OR($K165="",$K165="H",$K165="AB",$K165="G",$J165="Position",$K165="<-- Bitte Positionsart",BC165="",$L165=""),"", IF(OR($K165="A",$K165="B",$K165="E"),$L165*BC165)) -> 
G166: 8 | H166: 4 | I166: Rinnenenddeckel | J166: Position | L166: 12 | M166: Stck. | O166: 8.5 | P166: 16.08 | Q166: 19.91 | R166: 192.96 | AA166: 19.91 | AB166: 238.92 | AE166: 0.2381840796 | AH166: 19.83 | AI166: 237.96 | AL166: 0.2332089552 | AO166: 8.5 | AP166: 102 | AS166: -0.4713930348
G167: =G$162 -> 8 | H167: =IF(G$162="","",ROW()-ROW(G$162)) -> 5 | I167: Rinneneinhangstutzen für den Anschluss der Fallrohre | J167: Position | K167: =IF(J167="Position","",IF(J167="Grundposition","G",IF(J167="Alternativposition","A",IF(J167="Bedarfsposition","B",IF(J167="Hinweis","H",IF(J167="Ausführungsbeschreibung","AB",IF(J167="Entfällt","E",IF(AND(I167<>"",L167<>""),"<-- Bitte Positionsart","")))))))) ->  | L167: 8 | M167: Stck. | O167: 22 | P167: 27.51 | Q167: 30.27 | R167: 220.08 | W167: =IF(OR($K167="A",$K167="B"),"Nur EP ",IF($K167="E","E ",IF(AND($L167<>"",V167<>""),$L167*V167,""))) ->  | X167: =IF(OR($L167="",W167=""),"", IF(OR($W167="Nur EP ",$K167="E"),(Y167/(AVERAGE($Y167,$AF167,$AM167,$AT167,Y167))-1), IF(AND($W167,$AB167,$AI167,$AP167,$AW167)="","",(W167/(AVERAGE($W167,$AB167,$AI167,$AP167,$AW167)))-1))) ->  | AA167: 30.26 | AB167: =IF(C167="Hinweis","",IF(OR($K167="A",$K167="B"),"Nur EP ",IF($K167="E","E ",IF(AND($L167<>"",AA167<>""),$L167*AA167,"")))) -> 242.08 | AD167: =IF(AC167="","",IF(AC167="X",AB167,AB167*AC167)) ->  | AE167: 0.09996364958 | AF167: =IF(OR($K167="",$K167="H",$K167="AB",$K167="G",$J167="Position",$K167="<-- Bitte Positionsart",AA167="",$L167=""),"", IF(OR($K167="A",$K167="B",$K167="E"),$L167*AA167)) ->  | AH167: 30.27 | AI167: =IF(J167="Hinweis","",IF(OR($K167="A",$K167="B"),"Nur EP ",IF($K167="E","E ",IF(AND($L167<>"",AH167<>""),$L167*AH167,"")))) -> 242.16 | AK167: =IF(AJ167="","",IF(AJ167="X",AI167,AI167*AJ167)) ->  | AL167: 0.1003271538 | AM167: =IF(OR($K167="",$K167="H",$K167="AB",$K167="G",$J167="Position",$K167="<-- Bitte Positionsart",AH167="",$L167=""),"", IF(OR($K167="A",$K167="B",$K167="E"),$L167*AH167)) ->  | AO167: 22 | AP167: =IF(P167="Hinweis","",IF(OR($K167="A",$K167="B"),"Nur EP ",IF($K167="E","E ",IF(AND($L167<>"",AO167<>""),$L167*AO167,"")))) -> 176 | AR167: =IF(AQ167="","",IF(AQ167="X",AP167,AP167*AQ167)) ->  | AS167: -0.2002908033 | AT167: =IF(OR($K167="",$K167="H",$K167="AB",$K167="G",$J167="Position",$K167="<-- Bitte Positionsart",AO167="",$L167=""),"", IF(OR($K167="A",$K167="B",$K167="E"),$L167*AO167)) ->  | BD167: =IF(AD167="Hinweis","",IF(OR($K167="A",$K167="B"),"Nur EP ",IF($K167="E","E ",IF(AND($L167<>"",BC167<>""),$L167*BC167,"")))) ->  | BF167: =IF(BE167="","",IF(BE167="X",BD167,BD167*BE167)) ->  | BH167: =IF(OR($K167="",$K167="H",$K167="AB",$K167="G",$J167="Position",$K167="<-- Bitte Positionsart",BC167="",$L167=""),"", IF(OR($K167="A",$K167="B",$K167="E"),$L167*BC167)) -> 
G168: 8 | H168: 6 | I168: Bogenrohr passend zum Fallrohr - Anschluss an die verbleibenden alten Fallrohre | J168: Position | L168: 8 | M168: Stck. | O168: 14.5 | P168: 16.86666667 | Q168: 18.06 | R168: 134.9333333 | AA168: 18.06 | AB168: 144.48 | AE168: 0.07075098814 | AF168: =IF(OR($K168="",$K168="H",$K168="AB",$K168="G",$J168="Position",$K168="<-- Bitte Positionsart",AA168="",$L168=""),"", IF(OR($K168="A",$K168="B",$K168="E"),$L168*AA168)) ->  | AH168: 18.04 | AI168: 144.32 | AL168: 0.06956521739 | AM168: =IF(OR($K168="",$K168="H",$K168="AB",$K168="G",$J168="Position",$K168="<-- Bitte Positionsart",AH168="",$L168=""),"", IF(OR($K168="A",$K168="B",$K168="E"),$L168*AH168)) ->  | AO168: 14.5 | AP168: 116 | AS168: -0.1403162055 | AT168: =IF(OR($K168="",$K168="H",$K168="AB",$K168="G",$J168="Position",$K168="<-- Bitte Positionsart",AO168="",$L168=""),"", IF(OR($K168="A",$K168="B",$K168="E"),$L168*AO168)) ->  | BH168: =IF(OR($K168="",$K168="H",$K168="AB",$K168="G",$J168="Position",$K168="<-- Bitte Positionsart",BC168="",$L168=""),"", IF(OR($K168="A",$K168="B",$K168="E"),$L168*BC168)) -> 
G169: 8 | H169: 7 | I169: Rohrbogen passend zum Fallrohr - Anschluss an die verbleibenden alten Fallrohre | J169: Position | L169: 8 | M169: Stck. | O169: 16.5 | P169: 17.56 | Q169: 18.12 | R169: 140.48 | Y169: =IF(OR($K169="",$K169="H",$K169="AB",$K169="G",$J169="Position",$K169="<-- Bitte Positionsart",V169="",$L169=""),"", IF(OR($K169="A",$K169="B",$K169="E"),$L169*V169)) ->  | AA169: 18.06 | AB169: 144.48 | AE169: 0.0284738041 | AH169: 18.12 | AI169: 144.96 | AL169: 0.03189066059 | AO169: 16.5 | AP169: 132 | AS169: -0.06036446469
G170: 8 | H170: 8 | I170: Fallrohr zur Dachentwässerung - Anschluss an die verbleibenden alten Fallrohre | J170: Bedarfsposition | K170: B | L170: 9 | M170: m | R170: Nur EP | T170: 347.34 | W170: Nur EP | AA170: 46.14 | AB170: Nur EP | AE170: 0.1955432717 | AF170: 415.26 | AH170: 46.14 | AI170: Nur EP | AL170: 0.1955432717 | AM170: 415.26 | AO170: 23.5 | AP170: Nur EP | AS170: -0.3910865434 | AT170: 211.5 | AW170: Nur EP | BD170: Nur EP
G171: 8 | H171: 9 | I171: Traufstreifen als Rinneneinhangblech | J171: Position | L171: 61 | M171: m | O171: 23.31 | P171: 23.75666667 | Q171: 24.6 | R171: 1449.156667 | AA171: 23.36 | AB171: 1424.96 | AE171: -0.01669706749 | AH171: 23.31 | AI171: 1421.91 | AL171: -0.01880173986 | AO171: 24.6 | AP171: 1500.6 | AS171: 0.03549880735
G172: 8 | H172: 10 | I172: Schornsteinverkleidung aus Stehfalzblech - Zink vorbewittert | J172: Bedarfsposition | K172: B | L172: 1 | M172: Stck. | R172: Nur EP | T172: 2017.7 | W172: Nur EP | AA172: 2017.7 | AB172: Nur EP | AE172: 0 | AF172: 2017.7 | AH172: 2017.7 | AI172: Nur EP | AL172: 0 | AM172: 2017.7 | AP172: Nur EP | AW172: Nur EP | BD172: Nur EP
G173: 8 | H173: 11 | I173: Zinkblecharbeiten vor den seitlichen Erkerfenstern | J173: Position | L173: 6 | M173: Stck. | O173: 215 | P173: 515.2166667 | Q173: 673.59 | R173: 3091.3 | AA173: 657.06 | AB173: 3942.36 | AE173: 0.2753081228 | AH173: 673.59 | AI173: 4041.54 | AL173: 0.3073917122 | AO173: 215 | AP173: 1290 | AS173: -0.582699835 | AZ173: =IF(OR($L173="",AV173="",$J173="Ausführungsbeschreibung",$J173="Hinweis"),"", IF(AND($AA173,$AH173,$AO173,$AV173,$BC173)="","", IF($L$4="MIT", IF(OR(AW173="Nur EP ",$K173="E"),((BA173/(AVERAGE($AF173,$AM173,$AT173,$BA173,$BH173)))-1), IF($L$4="MIT",((AW173/(AVERAGE($AB173,$AI173,$AP173,$AW173,$BD173)))-1), IF($L$4="MIN", IF(OR(AW173="Nur EP ",$K173="E"),((BA173/(MIN($AF173,$AM173,$AT173,$BA173,$BH173)))-1), IF($L$4="MIN",(AW173/(MIN($AB173,$AI173,$AP173,$AW173,$BD173)))-1) ))))))) ->  | BA173: =IF(OR($K173="",$K173="H",$K173="AB",$K173="G",$J173="Position",$K173="<-- Bitte Positionsart",AV173="",$L173=""),"", IF(OR($K173="A",$K173="B",$K173="E"),$L173*AV173)) -> 
G174: 8 | H174: 12 | I174: Winkelstehfalz an den Seitengiebeln der Gauben | J174: Position | L174: 12 | M174: Stck. | O174: 405 | P174: 422.29 | Q174: 435.33 | R174: 5067.48 | AA174: 426.54 | AB174: 5118.48 | AE174: 0.01006417391 | AH174: 435.33 | AI174: 5223.96 | AL174: 0.03087925359 | AO174: 405 | AP174: 4860 | AS174: -0.0409434275 | AZ174: =IF(OR($L174="",AV174="",$J174="Ausführungsbeschreibung",$J174="Hinweis"),"", IF(AND($AA174,$AH174,$AO174,$AV174,$BC174)="","", IF($L$4="MIT", IF(OR(AW174="Nur EP ",$K174="E"),((BA174/(AVERAGE($AF174,$AM174,$AT174,$BA174,$BH174)))-1), IF($L$4="MIT",((AW174/(AVERAGE($AB174,$AI174,$AP174,$AW174,$BD174)))-1), IF($L$4="MIN", IF(OR(AW174="Nur EP ",$K174="E"),((BA174/(MIN($AF174,$AM174,$AT174,$BA174,$BH174)))-1), IF($L$4="MIN",(AW174/(MIN($AB174,$AI174,$AP174,$AW174,$BD174)))-1) ))))))) ->  | BA174: =IF(OR($K174="",$K174="H",$K174="AB",$K174="G",$J174="Position",$K174="<-- Bitte Positionsart",AV174="",$L174=""),"", IF(OR($K174="A",$K174="B",$K174="E"),$L174*AV174)) -> 
G175: =G$162 -> 8 | H175: =IF(G$162="","",ROW()-ROW(G$162)) -> 13 | I175: Winkelstehfalz an den Frontseiten der Gauben | J175: Position | L175: 6 | M175: Stck. | O175: =IF(OR($K175="B",$K175="A",$K175="H",$K175="AB",$K175="<-- Bitte Positionsart",SUM(AA175,AH175,AO175,AV175,BC175)=0),"",MIN(AA175,AH175,AO175,AV175,BC175)) -> 1150 | P175: =IF(OR($K175="B",$K175="A",$K175="H",$K175="AB",$K175="<-- Bitte Positionsart",SUM(AA175,AH175,AO175,AV175,BC175)=0),"",SUM(AA175,AH175,AO175,AV175,BC175)/COUNT(AA175,AH175,AO175,AV175,BC175)) -> 2608.43 | Q175: =IF(OR($K175="B",$K175="A",$K175="H",$K175="AB",$K175="<-- Bitte Positionsart",SUM(AA175,AH175,AO175,AV175,BC175)=0),"",MAX(AA175,AH175,AO175,AV175,BC175)) -> 3369.09 | R175: =IF(OR($K175="A",$K175="B"),"Nur EP ",IF($K175="E","E ",IF(AND($L175<>"",P175<>""),$L175*P175,""))) -> 15650.58 | T175: =IF(OR($K175="",$K175="H",$K175="AB",$K175="G",$K175="<-- Bitte Positionsart"),"",IF(OR($K175="A",$K175="B"),$L175*(SUM(AA175,AH175,AO175,AV175,BC175)/COUNT(AA175,AH175,AO175,AV175,BC175)),IF($K175="E",$L175*P175))) ->  | Y175: =IF(OR($K175="",$K175="H",$K175="AB",$K175="G",$J175="Position",$K175="<-- Bitte Positionsart",V175="",$L175=""),"", IF(OR($K175="A",$K175="B",$K175="E"),$L175*V175)) ->  | AA175: 3306.2 | AB175: 19837.2 | AE175: 0.267505741 | AF175: =IF(OR($K175="",$K175="H",$K175="AB",$K175="G",$J175="Position",$K175="<-- Bitte Positionsart",AA175="",$L175=""),"", IF(OR($K175="A",$K175="B",$K175="E"),$L175*AA175)) ->  | AH175: 3369.09 | AI175: 20214.54 | AL175: 0.2916160296 | AM175: =IF(OR($K175="",$K175="H",$K175="AB",$K175="G",$J175="Position",$K175="<-- Bitte Positionsart",AH175="",$L175=""),"", IF(OR($K175="A",$K175="B",$K175="E"),$L175*AH175)) ->  | AO175: 1150 | AP175: 6900 | AS175: -0.5591217706 | AT175: =IF(OR($K175="",$K175="H",$K175="AB",$K175="G",$J175="Position",$K175="<-- Bitte Positionsart",AO175="",$L175=""),"", IF(OR($K175="A",$K175="B",$K175="E"),$L175*AO175)) ->  | AW175: =IF(W175="Hinweis","",IF(OR($K175="A",$K175="B"),"Nur EP ",IF($K175="E","E ",IF(AND($L175<>"",AV175<>""),$L175*AV175,"")))) ->  | AY175: =IF(AX175="","",IF(AX175="X",AW175,AW175*AX175)) ->  | AZ175: =IF(OR($L175="",AV175="",$J175="Ausführungsbeschreibung",$J175="Hinweis"),"", IF(AND($AA175,$AH175,$AO175,$AV175,$BC175)="","", IF($L$4="MIT", IF(OR(AW175="Nur EP ",$K175="E"),((BA175/(AVERAGE($AF175,$AM175,$AT175,$BA175,$BH175)))-1), IF($L$4="MIT",((AW175/(AVERAGE($AB175,$AI175,$AP175,$AW175,$BD175)))-1), IF($L$4="MIN", IF(OR(AW175="Nur EP ",$K175="E"),((BA175/(MIN($AF175,$AM175,$AT175,$BA175,$BH175)))-1), IF($L$4="MIN",(AW175/(MIN($AB175,$AI175,$AP175,$AW175,$BD175)))-1) ))))))) ->  | BA175: =IF(OR($K175="",$K175="H",$K175="AB",$K175="G",$J175="Position",$K175="<-- Bitte Positionsart",AV175="",$L175=""),"", IF(OR($K175="A",$K175="B",$K175="E"),$L175*AV175)) ->  | BH175: =IF(OR($K175="",$K175="H",$K175="AB",$K175="G",$J175="Position",$K175="<-- Bitte Positionsart",BC175="",$L175=""),"", IF(OR($K175="A",$K175="B",$K175="E"),$L175*BC175)) -> 
G176: 8 | H176: 14 | I176: Zinkblechabdeckung des Kantholz an der vorderen Gaubendachkante | J176: Position | L176: 37 | M176: m | O176: 25 | P176: 47.46 | Q176: 59.05 | R176: 1756.02 | AA176: 58.33 | AB176: 2158.21 | AE176: 0.2290349768 | AF176: =IF(OR($K176="",$K176="H",$K176="AB",$K176="G",$J176="Position",$K176="<-- Bitte Positionsart",AA176="",$L176=""),"", IF(OR($K176="A",$K176="B",$K176="E"),$L176*AA176)) ->  | AH176: 59.05 | AI176: 2184.85 | AL176: =IF(OR($L176="",AH176="",$J176="Ausführungsbeschreibung",$J176="Hinweis"),"", IF(AND($AA176,$AH176,$AO176,$AV176,$BC176)="","", IF($L$4="MIT", IF(OR(AI176="Nur EP ",$K176="E"),((AM176/(AVERAGE($AF176,$AM176,$AT176,$BA176,$BH176)))-1), IF($L$4="MIT",((AI176/(AVERAGE($AB176,$AI176,$AP176,$AW176,$BD176)))-1), IF($L$4="MIN", IF(OR(AI176="Nur EP ",$K176="E"),((AM176/(MIN($AF176,$AM176,$AT176,$BA176,$BH176)))-1), IF($L$4="MIN",(AI176/(MIN($AB176,$AI176,$AP176,$AW176,$BD176)))-1) ))))))) -> 0.2442056469 | AM176: =IF(OR($K176="",$K176="H",$K176="AB",$K176="G",$J176="Position",$K176="<-- Bitte Positionsart",AH176="",$L176=""),"", IF(OR($K176="A",$K176="B",$K176="E"),$L176*AH176)) ->  | AO176: 25 | AP176: 925 | AS176: -0.4732406237 | AT176: =IF(OR($K176="",$K176="H",$K176="AB",$K176="G",$J176="Position",$K176="<-- Bitte Positionsart",AO176="",$L176=""),"", IF(OR($K176="A",$K176="B",$K176="E"),$L176*AO176)) ->  | AZ176: =IF(OR($L176="",AV176="",$J176="Ausführungsbeschreibung",$J176="Hinweis"),"", IF(AND($AA176,$AH176,$AO176,$AV176,$BC176)="","", IF($L$4="MIT", IF(OR(AW176="Nur EP ",$K176="E"),((BA176/(AVERAGE($AF176,$AM176,$AT176,$BA176,$BH176)))-1), IF($L$4="MIT",((AW176/(AVERAGE($AB176,$AI176,$AP176,$AW176,$BD176)))-1), IF($L$4="MIN", IF(OR(AW176="Nur EP ",$K176="E"),((BA176/(MIN($AF176,$AM176,$AT176,$BA176,$BH176)))-1), IF($L$4="MIN",(AW176/(MIN($AB176,$AI176,$AP176,$AW176,$BD176)))-1) ))))))) ->  | BA176: =IF(OR($K176="",$K176="H",$K176="AB",$K176="G",$J176="Position",$K176="<-- Bitte Positionsart",AV176="",$L176=""),"", IF(OR($K176="A",$K176="B",$K176="E"),$L176*AV176)) ->  | BH176: =IF(OR($K176="",$K176="H",$K176="AB",$K176="G",$J176="Position",$K176="<-- Bitte Positionsart",BC176="",$L176=""),"", IF(OR($K176="A",$K176="B",$K176="E"),$L176*BC176)) -> 
G177: 8 | H177: 15 | I177: Zinkblechabdeckung des Kantholz - Zulage Innen und Außenecken | J177: Position | L177: 12 | M177: Stck. | O177: 21.63 | P177: 32.78333333 | Q177: 55 | R177: 393.4 | AA177: 21.63 | AB177: 259.56 | AE177: -0.3402135231 | AH177: 21.72 | AI177: 260.64 | AL177: -0.3374682257 | AO177: 55 | AP177: 660 | AS177: 0.6776817489
G178: 8 | H178: =IF(G$162="","",ROW()-ROW(G$162)) -> 16 | I178: Zinkblech Rinne an den schräg geschnittenen Seitenfenstern der Erker-Gauben | J178: Position | L178: 6 | M178: Stck. | O178: 250 | P178: 251.9466667 | Q178: 255.84 | R178: 1511.68 | AA178: 250 | AB178: 1500 | AE178: -0.007726502964 | AH178: 255.84 | AI178: 1535.04 | AL178: 0.01545300593 | AO178: 250 | AP178: 1500 | AS178: -0.007726502964
G179: 8 | H179: 17 | I179: Zinkblechverkleidung der seitlichen Verschneidung der Dachfläche mit dem Balkonen | J179: Position | L179: 6 | M179: Stck. | O179: 90 | P179: 352.06 | Q179: 487.37 | R179: 2112.36 | AA179: 478.81 | AB179: 2872.86 | AE179: 0.3600238596 | AH179: 487.37 | AI179: 2924.22 | AL179: 0.3843378969 | AO179: 90 | AP179: 540 | AS179: -0.7443617565
G180: 8 | H180: =IF(G$162="","",ROW()-ROW(G$162)) -> 18
G181: 8 | H181: 19 | Y181: =IF(OR($K181="",$K181="H",$K181="AB",$K181="G",$J181="Position",$K181="<-- Bitte Positionsart",V181="",$L181=""),"", IF(OR($K181="A",$K181="B",$K181="E"),$L181*V181)) -> 
Y182: =IF($K182="","",IF(OR($K182="A",$K182="B"),$L182*V182,IF($K182="E",""))) ->  | AA182: EP / % Titel | AB182: Positions- / Titelsumme | AF182: =IF($K182="Ja",IF(AND($L182<>"",AA182<>""),$L182*AA182),"") ->  | AH182: EP / % Titel | AI182: Positions- / Titelsumme | AM182: =IF($K182="Ja",IF(AND($L182<>"",AH182<>""),$L182*AH182),"") ->  | AO182: EP / % Titel | AP182: Positions- / Titelsumme | AT182: =IF($K182="Ja",IF(AND($L182<>"",AO182<>""),$L182*AO182),"") ->  | AV182: EP / % Titel | AW182: Positions- / Titelsumme | AY182: =IF(AX182="","",IF(AX182="X",AW182,AW182*AX182)) ->  | BA182: =IF($K182="Ja",IF(AND($L182<>"",AV182<>""),$L182*AV182),"") ->  | BC182: EP / % Titel | BD182: Positions- / Titelsumme | BH182: =IF($K182="Ja",IF(AND($L182<>"",BC182<>""),$L182*BC182),"") -> 
G183: 9 | I183: Trockenbauarbeiten | O183: =CONCATENATE("Titelsumme",CHAR(10),"MIN",CHAR(10),TEXT(SUMPRODUCT($L184:$L194,O184:O194),"##.##0,00")," €") -> Titelsumme MIN 1.000,00 € | P183: =CONCATENATE("Titelsumme",CHAR(10),"MIT",CHAR(10),TEXT(SUMPRODUCT($L184:$L194,P184:P194),"##.##0,00")," €") -> Titelsumme MIT 1.823,16 € | Q183: =CONCATENATE("Titelsumme",CHAR(10),"MAX",CHAR(10),TEXT(SUMPRODUCT($L184:$L194,Q184:Q194),"##.##0,00")," €") -> Titelsumme MAX 2.255,24 € | R183: =SUM(R184:R194) -> 1823.16 | T183: =SUM(T184:T194) -> 0 | W183: =SUM(W184:W194) -> 0 | Y183: =SUM(Y184:Y194) -> 0 | AA183: =IF(AB183=0,"", IF($L$4="MIT",((AB183/(AVERAGE($AB183,$AI183,$AP183,$AW183,$BD183)))-1)*100,)) -> 102.4177801 | AB183: =SUM(AB184:AB194) -> 2214.24 | AF183: =SUM(AF184:AF194) -> 0 | AH183: =IF(AI183=0,"", IF($L$4="MIT",((AI183/(AVERAGE($AB183,$AI183,$AP183,$AW183,$BD183)))-1)*100,)) -> 106.1658512 | AI183: =SUM(AI184:AI194) -> 2255.24 | AK183: =IF(AJ183="","",IF(AJ183="X",AI183,AI183*AJ183)) ->  | AM183: =SUM(AM184:AM194) -> 0 | AO183: =IF(AP183=0,"", IF($L$4="MIT",((AP183/(AVERAGE($AB183,$AI183,$AP183,$AW183,$BD183)))-1)*100,)) -> -8.583631351 | AP183: =SUM(AP184:AP194) -> 1000 | AR183: =IF(AQ183="","",IF(AQ183="X",AP183,AP183*AQ183)) ->  | AT183: =SUM(AT184:AT194) -> 0 | AV183: =IF(AW183=0,"", IF($L$4="MIT",((AW183/(AVERAGE($AB183,$AI183,$AP183,$AW183,$BD183)))-1)*100,)) ->  | AW183: =SUM(AW184:AW194) -> 0 | AY183: =IF(AX183="","",IF(AX183="X",AW183,AW183*AX183)) ->  | BA183: =SUM(BA184:BA194) -> 0 | BC183: =IF(BD183=0,"", IF($L$4="MIT",((BD183/(AVERAGE($AB183,$AI183,$AP183,$AW183,$BD183)))-1)*100,)) ->  | BD183: =SUM(BD184:BD194) -> 0 | BH183: =SUM(BH184:BH194) -> 0
G184: =G$183 -> 9 | H184: =IF(G$162="","",ROW()-ROW(G$183)) -> 1 | I184: Laibung der neuen Dachflächenfenster (78/118) aus GK Trockenbauverkleidung | J184: Position | K184: =IF(J184="Position","",IF(J184="Grundposition","G",IF(J184="Alternativposition","A",IF(J184="Bedarfsposition","B",IF(J184="Hinweis","H",IF(J184="Ausführungsbeschreibung","AB",IF(J184="Entfällt","E",IF(AND(I184<>"",L184<>""),"<-- Bitte Positionsart","")))))))) ->  | L184: 4 | M184: Stck. | O184: =IF(OR($K184="B",$K184="A",$K184="H",$K184="AB",$K184="<-- Bitte Positionsart",SUM(AA184,AH184,AO184,AV184,BC184)=0),"",MIN(AA184,AH184,AO184,AV184,BC184)) -> 250 | P184: =IF(OR($K184="B",$K184="A",$K184="H",$K184="AB",$K184="<-- Bitte Positionsart",SUM(AA184,AH184,AO184,AV184,BC184)=0),"",SUM(AA184,AH184,AO184,AV184,BC184)/COUNT(AA184,AH184,AO184,AV184,BC184)) -> 455.79 | Q184: =IF(OR($K184="B",$K184="A",$K184="H",$K184="AB",$K184="<-- Bitte Positionsart",SUM(AA184,AH184,AO184,AV184,BC184)=0),"",MAX(AA184,AH184,AO184,AV184,BC184)) -> 563.81 | R184: =IF(OR($K184="A",$K184="B"),"Nur EP ",IF($K184="E","E ",IF(AND($L184<>"",P184<>""),$L184*P184,""))) -> 1823.16 | T184: =IF(OR($K184="",$K184="H",$K184="AB",$K184="G",$K184="<-- Bitte Positionsart"),"",IF(OR($K184="A",$K184="B"),$L184*(SUM(AA184,AH184,AO184,AV184,BC184)/COUNT(AA184,AH184,AO184,AV184,BC184)),IF($K184="E",$L184*P184))) ->  | W184: =IF(OR($K184="A",$K184="B"),"Nur EP ",IF($K184="E","E ",IF(AND($L184<>"",V184<>""),$L184*V184,""))) ->  | X184: =IF(OR($L184="",W184=""),"", IF(OR($W184="Nur EP ",$K184="E"),(Y184/(AVERAGE($Y184,$AF184,$AM184,$AT184,Y184))-1), IF(AND($W184,$AB184,$AI184,$AP184,$AW184)="","",(W184/(AVERAGE($W184,$AB184,$AI184,$AP184,$AW184)))-1))) ->  | Y184: =IF(OR($K184="",$K184="H",$K184="AB",$K184="G",$J184="Position",$K184="<-- Bitte Positionsart",V184="",$L184=""),"", IF(OR($K184="A",$K184="B",$K184="E"),$L184*V184)) ->  | AA184: 553.56 | AB184: =IF(C184="Hinweis","",IF(OR($K184="A",$K184="B"),"Nur EP ",IF($K184="E","E ",IF(AND($L184<>"",AA184<>""),$L184*AA184,"")))) -> 2214.24 | AD184: =IF(AC184="","",IF(AC184="X",AB184,AB184*AC184)) ->  | AE184: =IF(OR($L184="",AA184="",$J184="Ausführungsbeschreibung",$J184="Hinweis"),"", IF(AND($AA184,$AH184,$AO184,$AV184,$BC184)="","", IF($L$4="MIT", IF(OR(AB184="Nur EP ",$K184="E"),((AF184/(AVERAGE($AF184,$AM184,$AT184,$BA184,$BH184)))-1), IF($L$4="MIT",((AB184/(AVERAGE($AB184,$AI184,$AP184,$AW184,$BD184)))-1), IF($L$4="MIN", IF(OR(AB184="Nur EP ",$K184="E"),((AF184/(MIN($AF184,$AM184,$AT184,$BA184,$BH184)))-1), IF($L$4="MIN",((AB184/(MIN($AB184,$AI184,$AP184,$AW184,$BD184)))-1)) ))))))) -> 0.2145066807 | AF184: =IF(OR($K184="",$K184="H",$K184="AB",$K184="G",$J184="Position",$K184="<-- Bitte Positionsart",AA184="",$L184=""),"", IF(OR($K184="A",$K184="B",$K184="E"),$L184*AA184)) ->  | AH184: 563.81 | AI184: =IF(J184="Hinweis","",IF(OR($K184="A",$K184="B"),"Nur EP ",IF($K184="E","E ",IF(AND($L184<>"",AH184<>""),$L184*AH184,"")))) -> 2255.24 | AL184: =IF(OR($L184="",AH184="",$J184="Ausführungsbeschreibung",$J184="Hinweis"),"", IF(AND($AA184,$AH184,$AO184,$AV184,$BC184)="","", IF($L$4="MIT", IF(OR(AI184="Nur EP ",$K184="E"),((AM184/(AVERAGE($AF184,$AM184,$AT184,$BA184,$BH184)))-1), IF($L$4="MIT",((AI184/(AVERAGE($AB184,$AI184,$AP184,$AW184,$BD184)))-1), IF($L$4="MIN", IF(OR(AI184="Nur EP ",$K184="E"),((AM184/(MIN($AF184,$AM184,$AT184,$BA184,$BH184)))-1), IF($L$4="MIN",(AI184/(MIN($AB184,$AI184,$AP184,$AW184,$BD184)))-1) ))))))) -> 0.2369951074 | AM184: =IF(OR($K184="",$K184="H",$K184="AB",$K184="G",$J184="Position",$K184="<-- Bitte Positionsart",AH184="",$L184=""),"", IF(OR($K184="A",$K184="B",$K184="E"),$L184*AH184)) ->  | AO184: 250 | AP184: =IF(P184="Hinweis","",IF(OR($K184="A",$K184="B"),"Nur EP ",IF($K184="E","E ",IF(AND($L184<>"",AO184<>""),$L184*AO184,"")))) -> 1000 | AS184: =IF(OR($L184="",AO184="",$J184="Ausführungsbeschreibung",$J184="Hinweis"),"", IF(AND($AA184,$AH184,$AO184,$AV184,$BC184)="","", IF($L$4="MIT", IF(OR(AP184="Nur EP ",$K184="E"),((AT184/(AVERAGE($AF184,$AM184,$AT184,$BA184,$BH184)))-1), IF($L$4="MIT",((AP184/(AVERAGE($AB184,$AI184,$AP184,$AW184,$BD184)))-1), IF($L$4="MIN", IF(OR(AP184="Nur EP ",$K184="E"),((AT184/(MIN($AF184,$AM184,$AT184,$BA184,$BH184)))-1), IF($L$4="MIN",(AP184/(MIN($AB184,$AI184,$AP184,$AW184,$BD184)))-1) ))))))) -> -0.4515017881 | AT184: =IF(OR($K184="",$K184="H",$K184="AB",$K184="G",$J184="Position",$K184="<-- Bitte Positionsart",AO184="",$L184=""),"", IF(OR($K184="A",$K184="B",$K184="E"),$L184*AO184)) ->  | AW184: =IF(W184="Hinweis","",IF(OR($K184="A",$K184="B"),"Nur EP ",IF($K184="E","E ",IF(AND($L184<>"",AV184<>""),$L184*AV184,"")))) ->  | AZ184: =IF(OR($L184="",AV184="",$J184="Ausführungsbeschreibung",$J184="Hinweis"),"", IF(AND($AA184,$AH184,$AO184,$AV184,$BC184)="","", IF($L$4="MIT", IF(OR(AW184="Nur EP ",$K184="E"),((BA184/(AVERAGE($AF184,$AM184,$AT184,$BA184,$BH184)))-1), IF($L$4="MIT",((AW184/(AVERAGE($AB184,$AI184,$AP184,$AW184,$BD184)))-1), IF($L$4="MIN", IF(OR(AW184="Nur EP ",$K184="E"),((BA184/(MIN($AF184,$AM184,$AT184,$BA184,$BH184)))-1), IF($L$4="MIN",(AW184/(MIN($AB184,$AI184,$AP184,$AW184,$BD184)))-1) ))))))) ->  | BA184: =IF(OR($K184="",$K184="H",$K184="AB",$K184="G",$J184="Position",$K184="<-- Bitte Positionsart",AV184="",$L184=""),"", IF(OR($K184="A",$K184="B",$K184="E"),$L184*AV184)) ->  | BD184: =IF(AD184="Hinweis","",IF(OR($K184="A",$K184="B"),"Nur EP ",IF($K184="E","E ",IF(AND($L184<>"",BC184<>""),$L184*BC184,"")))) ->  | BF184: =IF(BE184="","",IF(BE184="X",BD184,BD184*BE184)) ->  | BG184: =IF(OR($L184="",BC184="",$J184="Ausführungsbeschreibung",$J184="Hinweis"),"", IF(AND($AA184,$AH184,$AO184,$AV184,$BC184)="","", IF($L$4="MIT", IF(OR(BD184="Nur EP ",$K184="E"),((BH184/(AVERAGE($AF184,$AM184,$AT184,$BA184,$BH184)))-1), IF($L$4="MIT",((BD184/(AVERAGE($AB184,$AI184,$AP184,$AW184,$BD184)))-1), IF($L$4="MIN", IF(OR(BD184="Nur EP ",$K184="E"),((BH184/(MIN($AF184,$AM184,$AT184,$BA184,$BH184)))-1), IF($L$4="MIN",((BD184/(MIN($AB184,$AI184,$AP184,$AW184,$BD184)))-1)) ))))))) ->  | BH184: =IF(OR($K184="",$K184="H",$K184="AB",$K184="G",$J184="Position",$K184="<-- Bitte Positionsart",BC184="",$L184=""),"", IF(OR($K184="A",$K184="B",$K184="E"),$L184*BC184)) -> 
G185: =G$183 -> 9 | H185: 2 | O185: =IF(OR($K185="B",$K185="A",$K185="H",$K185="AB",$K185="<-- Bitte Positionsart",SUM(AA185,AH185,AO185,AV185,BC185)=0),"",MIN(AA185,AH185,AO185,AV185,BC185)) ->  | P185: =IF(OR($K185="B",$K185="A",$K185="H",$K185="AB",$K185="<-- Bitte Positionsart",SUM(AA185,AH185,AO185,AV185,BC185)=0),"",SUM(AA185,AH185,AO185,AV185,BC185)/COUNT(AA185,AH185,AO185,AV185,BC185)) ->  | Q185: =IF(OR($K185="B",$K185="A",$K185="H",$K185="AB",$K185="<-- Bitte Positionsart",SUM(AA185,AH185,AO185,AV185,BC185)=0),"",MAX(AA185,AH185,AO185,AV185,BC185)) ->  | R185: =IF(OR($K185="A",$K185="B"),"Nur EP ",IF($K185="E","E ",IF(AND($L185<>"",P185<>""),$L185*P185,""))) ->  | T185: =IF(OR($K185="",$K185="H",$K185="AB",$K185="G",$K185="<-- Bitte Positionsart"),"",IF(OR($K185="A",$K185="B"),$L185*(SUM(AA185,AH185,AO185,AV185,BC185)/COUNT(AA185,AH185,AO185,AV185,BC185)),IF($K185="E",$L185*P185))) ->  | Y185: =IF(OR($K185="",$K185="H",$K185="AB",$K185="G",$J185="Position",$K185="<-- Bitte Positionsart",V185="",$L185=""),"", IF(OR($K185="A",$K185="B",$K185="E"),$L185*V185)) ->  | AF185: =IF(OR($K185="",$K185="H",$K185="AB",$K185="G",$J185="Position",$K185="<-- Bitte Positionsart",AA185="",$L185=""),"", IF(OR($K185="A",$K185="B",$K185="E"),$L185*AA185)) ->  | AL185: =IF(OR($L185="",AH185="",$J185="Ausführungsbeschreibung",$J185="Hinweis"),"", IF(AND($AA185,$AH185,$AO185,$AV185,$BC185)="","", IF($L$4="MIT", IF(OR(AI185="Nur EP ",$K185="E"),((AM185/(AVERAGE($AF185,$AM185,$AT185,$BA185,$BH185)))-1), IF($L$4="MIT",((AI185/(AVERAGE($AB185,$AI185,$AP185,$AW185,$BD185)))-1), IF($L$4="MIN", IF(OR(AI185="Nur EP ",$K185="E"),((AM185/(MIN($AF185,$AM185,$AT185,$BA185,$BH185)))-1), IF($L$4="MIN",(AI185/(MIN($AB185,$AI185,$AP185,$AW185,$BD185)))-1) ))))))) ->  | AM185: =IF(OR($K185="",$K185="H",$K185="AB",$K185="G",$J185="Position",$K185="<-- Bitte Positionsart",AH185="",$L185=""),"", IF(OR($K185="A",$K185="B",$K185="E"),$L185*AH185)) ->  | AS185: =IF(OR($L185="",AO185="",$J185="Ausführungsbeschreibung",$J185="Hinweis"),"", IF(AND($AA185,$AH185,$AO185,$AV185,$BC185)="","", IF($L$4="MIT", IF(OR(AP185="Nur EP ",$K185="E"),((AT185/(AVERAGE($AF185,$AM185,$AT185,$BA185,$BH185)))-1), IF($L$4="MIT",((AP185/(AVERAGE($AB185,$AI185,$AP185,$AW185,$BD185)))-1), IF($L$4="MIN", IF(OR(AP185="Nur EP ",$K185="E"),((AT185/(MIN($AF185,$AM185,$AT185,$BA185,$BH185)))-1), IF($L$4="MIN",(AP185/(MIN($AB185,$AI185,$AP185,$AW185,$BD185)))-1) ))))))) ->  | AT185: =IF(OR($K185="",$K185="H",$K185="AB",$K185="G",$J185="Position",$K185="<-- Bitte Positionsart",AO185="",$L185=""),"", IF(OR($K185="A",$K185="B",$K185="E"),$L185*AO185)) ->  | AZ185: =IF(OR($L185="",AV185="",$J185="Ausführungsbeschreibung",$J185="Hinweis"),"", IF(AND($AA185,$AH185,$AO185,$AV185,$BC185)="","", IF($L$4="MIT", IF(OR(AW185="Nur EP ",$K185="E"),((BA185/(AVERAGE($AF185,$AM185,$AT185,$BA185,$BH185)))-1), IF($L$4="MIT",((AW185/(AVERAGE($AB185,$AI185,$AP185,$AW185,$BD185)))-1), IF($L$4="MIN", IF(OR(AW185="Nur EP ",$K185="E"),((BA185/(MIN($AF185,$AM185,$AT185,$BA185,$BH185)))-1), IF($L$4="MIN",(AW185/(MIN($AB185,$AI185,$AP185,$AW185,$BD185)))-1) ))))))) ->  | BA185: =IF(OR($K185="",$K185="H",$K185="AB",$K185="G",$J185="Position",$K185="<-- Bitte Positionsart",AV185="",$L185=""),"", IF(OR($K185="A",$K185="B",$K185="E"),$L185*AV185)) ->  | BG185: =IF(OR($L185="",BC185="",$J185="Ausführungsbeschreibung",$J185="Hinweis"),"", IF(AND($AA185,$AH185,$AO185,$AV185,$BC185)="","", IF($L$4="MIT", IF(OR(BD185="Nur EP ",$K185="E"),((BH185/(AVERAGE($AF185,$AM185,$AT185,$BA185,$BH185)))-1), IF($L$4="MIT",((BD185/(AVERAGE($AB185,$AI185,$AP185,$AW185,$BD185)))-1), IF($L$4="MIN", IF(OR(BD185="Nur EP ",$K185="E"),((BH185/(MIN($AF185,$AM185,$AT185,$BA185,$BH185)))-1), IF($L$4="MIN",((BD185/(MIN($AB185,$AI185,$AP185,$AW185,$BD185)))-1)) ))))))) ->  | BH185: =IF(OR($K185="",$K185="H",$K185="AB",$K185="G",$J185="Position",$K185="<-- Bitte Positionsart",BC185="",$L185=""),"", IF(OR($K185="A",$K185="B",$K185="E"),$L185*BC185)) -> 
G186: =G$183 -> 9 | H186: 3 | AF186: =IF(OR($K186="",$K186="H",$K186="AB",$K186="G",$J186="Position",$K186="<-- Bitte Positionsart",AA186="",$L186=""),"", IF(OR($K186="A",$K186="B",$K186="E"),$L186*AA186)) ->  | AM186: =IF(OR($K186="",$K186="H",$K186="AB",$K186="G",$J186="Position",$K186="<-- Bitte Positionsart",AH186="",$L186=""),"", IF(OR($K186="A",$K186="B",$K186="E"),$L186*AH186)) ->  | AT186: =IF(OR($K186="",$K186="H",$K186="AB",$K186="G",$J186="Position",$K186="<-- Bitte Positionsart",AO186="",$L186=""),"", IF(OR($K186="A",$K186="B",$K186="E"),$L186*AO186)) ->  | BH186: =IF(OR($K186="",$K186="H",$K186="AB",$K186="G",$J186="Position",$K186="<-- Bitte Positionsart",BC186="",$L186=""),"", IF(OR($K186="A",$K186="B",$K186="E"),$L186*BC186)) -> 
G187: =G$183 -> 9 | H187: 4
G188: 9 | H188: 5
G189: =G$183 -> 9 | H189: 6
G190: =G$183 -> 9 | H190: 7
G191: 9 | H191: 8
G192: =G$183 -> 9 | H192: 9
G193: 9 | H193: 10
Y194: =IF($K194="","",IF(OR($K194="A",$K194="B"),$L194*V194,IF($K194="E",""))) ->  | AA194: EP / % Titel | AB194: Positions- / Titelsumme | AF194: =IF($K194="Ja",IF(AND($L194<>"",AA194<>""),$L194*AA194),"") ->  | AH194: EP / % Titel | AI194: Positions- / Titelsumme | AM194: =IF($K194="Ja",IF(AND($L194<>"",AH194<>""),$L194*AH194),"") ->  | AO194: EP / % Titel | AP194: Positions- / Titelsumme | AT194: =IF($K194="Ja",IF(AND($L194<>"",AO194<>""),$L194*AO194),"") ->  | AV194: EP / % Titel | AW194: Positions- / Titelsumme | BA194: =IF($K194="Ja",IF(AND($L194<>"",AV194<>""),$L194*AV194),"") ->  | BC194: EP / % Titel | BD194: Positions- / Titelsumme | BH194: =IF($K194="Ja",IF(AND($L194<>"",BC194<>""),$L194*BC194),"") -> 
G195: 10 | I195: Material und Stundenlohnleistungen | O195: =CONCATENATE("Titelsumme",CHAR(10),"MIN",CHAR(10),TEXT(SUMPRODUCT($L196:$L206,O196:O206),"##.##0,00")," €") -> Titelsumme MIN 9.040,40 € | P195: =CONCATENATE("Titelsumme",CHAR(10),"MIT",CHAR(10),TEXT(SUMPRODUCT($L196:$L206,P196:P206),"##.##0,00")," €") -> Titelsumme MIT 9.386,53 € | Q195: =CONCATENATE("Titelsumme",CHAR(10),"MAX",CHAR(10),TEXT(SUMPRODUCT($L196:$L206,Q196:Q206),"##.##0,00")," €") -> Titelsumme MAX 9.613,60 € | R195: =SUM(R196:R206) -> 9386.533333 | T195: =SUM(T196:T206) -> 0 | W195: =SUM(W196:W206) -> 0 | Y195: =SUM(Y196:Y206) -> 0 | AA195: =IF(AB195=0,"", IF($L$4="MIT",((AB195/(AVERAGE($AB195,$AI195,$AP195,$AW195,$BD195)))-1)*100,)) -> 68.43279024 | AB195: =SUM(AB196:AB206) -> 9486 | AF195: =SUM(AF196:AF206) -> 0 | AH195: =IF(AI195=0,"", IF($L$4="MIT",((AI195/(AVERAGE($AB195,$AI195,$AP195,$AW195,$BD195)))-1)*100,)) -> 70.69844742 | AI195: =SUM(AI196:AI206) -> 9613.6 | AM195: =SUM(AM196:AM206) -> 0 | AO195: =IF(AP195=0,"", IF($L$4="MIT",((AP195/(AVERAGE($AB195,$AI195,$AP195,$AW195,$BD195)))-1)*100,)) -> 60.86876234 | AP195: =SUM(AP196:AP206) -> 9060 | AT195: =SUM(AT196:AT206) -> 0 | AV195: =IF(AW195=0,"", IF($L$4="MIT",((AW195/(AVERAGE($AB195,$AI195,$AP195,$AW195,$BD195)))-1)*100,)) ->  | AW195: =SUM(AW196:AW206) -> 0 | BA195: =SUM(BA196:BA206) -> 0 | BC195: =IF(BD195=0,"", IF($L$4="MIT",((BD195/(AVERAGE($AB195,$AI195,$AP195,$AW195,$BD195)))-1)*100,)) ->  | BD195: =SUM(BD196:BD206) -> 0 | BH195: =SUM(BH196:BH206) -> 0
G196: =G$195 -> 10 | H196: =IF(G$162="","",ROW()-ROW(G$195)) -> 1 | I196: Materialpauschale für unvorhergesehenes | J196: Position | K196: =IF(J196="Position","",IF(J196="Grundposition","G",IF(J196="Alternativposition","A",IF(J196="Bedarfsposition","B",IF(J196="Hinweis","H",IF(J196="Ausführungsbeschreibung","AB",IF(J196="Entfällt","E",IF(AND(I196<>"",L196<>""),"<-- Bitte Positionsart","")))))))) ->  | L196: 1 | M196: pausch. | O196: =IF(OR($K196="B",$K196="A",$K196="H",$K196="AB",$K196="<-- Bitte Positionsart",SUM(AA196,AH196,AO196,AV196,BC196)=0),"",MIN(AA196,AH196,AO196,AV196,BC196)) -> 2500 | P196: =IF(OR($K196="B",$K196="A",$K196="H",$K196="AB",$K196="<-- Bitte Positionsart",SUM(AA196,AH196,AO196,AV196,BC196)=0),"",SUM(AA196,AH196,AO196,AV196,BC196)/COUNT(AA196,AH196,AO196,AV196,BC196)) -> 2500 | Q196: =IF(OR($K196="B",$K196="A",$K196="H",$K196="AB",$K196="<-- Bitte Positionsart",SUM(AA196,AH196,AO196,AV196,BC196)=0),"",MAX(AA196,AH196,AO196,AV196,BC196)) -> 2500 | R196: =IF(OR($K196="A",$K196="B"),"Nur EP ",IF($K196="E","E ",IF(AND($L196<>"",P196<>""),$L196*P196,""))) -> 2500 | T196: =IF(OR($K196="",$K196="H",$K196="AB",$K196="G",$K196="<-- Bitte Positionsart"),"",IF(OR($K196="A",$K196="B"),$L196*(SUM(AA196,AH196,AO196,AV196,BC196)/COUNT(AA196,AH196,AO196,AV196,BC196)),IF($K196="E",$L196*P196))) ->  | W196: =IF(OR($K196="A",$K196="B"),"Nur EP ",IF($K196="E","E ",IF(AND($L196<>"",V196<>""),$L196*V196,""))) ->  | X196: =IF(OR($L196="",W196=""),"", IF(OR($W196="Nur EP ",$K196="E"),(Y196/(AVERAGE($Y196,$AF196,$AM196,$AT196,Y196))-1), IF(AND($W196,$AB196,$AI196,$AP196,$AW196)="","",(W196/(AVERAGE($W196,$AB196,$AI196,$AP196,$AW196)))-1))) ->  | Y196: =IF(OR($K196="",$K196="H",$K196="AB",$K196="G",$J196="Position",$K196="<-- Bitte Positionsart",V196="",$L196=""),"", IF(OR($K196="A",$K196="B",$K196="E"),$L196*V196)) ->  | AA196: 2500 | AB196: =IF(C196="Hinweis","",IF(OR($K196="A",$K196="B"),"Nur EP ",IF($K196="E","E ",IF(AND($L196<>"",AA196<>""),$L196*AA196,"")))) -> 2500 | AE196: =IF(OR($L196="",AA196="",$J196="Ausführungsbeschreibung",$J196="Hinweis"),"", IF(AND($AA196,$AH196,$AO196,$AV196,$BC196)="","", IF($L$4="MIT", IF(OR(AB196="Nur EP ",$K196="E"),((AF196/(AVERAGE($AF196,$AM196,$AT196,$BA196,$BH196)))-1), IF($L$4="MIT",((AB196/(AVERAGE($AB196,$AI196,$AP196,$AW196,$BD196)))-1), IF($L$4="MIN", IF(OR(AB196="Nur EP ",$K196="E"),((AF196/(MIN($AF196,$AM196,$AT196,$BA196,$BH196)))-1), IF($L$4="MIN",((AB196/(MIN($AB196,$AI196,$AP196,$AW196,$BD196)))-1)) ))))))) -> 0 | AF196: =IF(OR($K196="",$K196="H",$K196="AB",$K196="G",$J196="Position",$K196="<-- Bitte Positionsart",AA196="",$L196=""),"", IF(OR($K196="A",$K196="B",$K196="E"),$L196*AA196)) ->  | AH196: 2500 | AI196: =IF(J196="Hinweis","",IF(OR($K196="A",$K196="B"),"Nur EP ",IF($K196="E","E ",IF(AND($L196<>"",AH196<>""),$L196*AH196,"")))) -> 2500 | AK196: =IF(AJ196="","",IF(AJ196="X",AI196,AI196*AJ196)) ->  | AL196: =IF(OR($L196="",AH196="",$J196="Ausführungsbeschreibung",$J196="Hinweis"),"", IF(AND($AA196,$AH196,$AO196,$AV196,$BC196)="","", IF($L$4="MIT", IF(OR(AI196="Nur EP ",$K196="E"),((AM196/(AVERAGE($AF196,$AM196,$AT196,$BA196,$BH196)))-1), IF($L$4="MIT",((AI196/(AVERAGE($AB196,$AI196,$AP196,$AW196,$BD196)))-1), IF($L$4="MIN", IF(OR(AI196="Nur EP ",$K196="E"),((AM196/(MIN($AF196,$AM196,$AT196,$BA196,$BH196)))-1), IF($L$4="MIN",(AI196/(MIN($AB196,$AI196,$AP196,$AW196,$BD196)))-1) ))))))) -> 0 | AM196: =IF(OR($K196="",$K196="H",$K196="AB",$K196="G",$J196="Position",$K196="<-- Bitte Positionsart",AH196="",$L196=""),"", IF(OR($K196="A",$K196="B",$K196="E"),$L196*AH196)) ->  | AO196: 2500 | AP196: =IF(P196="Hinweis","",IF(OR($K196="A",$K196="B"),"Nur EP ",IF($K196="E","E ",IF(AND($L196<>"",AO196<>""),$L196*AO196,"")))) -> 2500 | AR196: =IF(AQ196="","",IF(AQ196="X",AP196,AP196*AQ196)) ->  | AS196: =IF(OR($L196="",AO196="",$J196="Ausführungsbeschreibung",$J196="Hinweis"),"", IF(AND($AA196,$AH196,$AO196,$AV196,$BC196)="","", IF($L$4="MIT", IF(OR(AP196="Nur EP ",$K196="E"),((AT196/(AVERAGE($AF196,$AM196,$AT196,$BA196,$BH196)))-1), IF($L$4="MIT",((AP196/(AVERAGE($AB196,$AI196,$AP196,$AW196,$BD196)))-1), IF($L$4="MIN", IF(OR(AP196="Nur EP ",$K196="E"),((AT196/(MIN($AF196,$AM196,$AT196,$BA196,$BH196)))-1), IF($L$4="MIN",(AP196/(MIN($AB196,$AI196,$AP196,$AW196,$BD196)))-1) ))))))) -> 0 | AT196: =IF(OR($K196="",$K196="H",$K196="AB",$K196="G",$J196="Position",$K196="<-- Bitte Positionsart",AO196="",$L196=""),"", IF(OR($K196="A",$K196="B",$K196="E"),$L196*AO196)) ->  | AW196: =IF(W196="Hinweis","",IF(OR($K196="A",$K196="B"),"Nur EP ",IF($K196="E","E ",IF(AND($L196<>"",AV196<>""),$L196*AV196,"")))) ->  | AY196: =IF(AX196="","",IF(AX196="X",AW196,AW196*AX196)) ->  | AZ196: =IF(OR($L196="",AV196="",$J196="Ausführungsbeschreibung",$J196="Hinweis"),"", IF(AND($AA196,$AH196,$AO196,$AV196,$BC196)="","", IF($L$4="MIT", IF(OR(AW196="Nur EP ",$K196="E"),((BA196/(AVERAGE($AF196,$AM196,$AT196,$BA196,$BH196)))-1), IF($L$4="MIT",((AW196/(AVERAGE($AB196,$AI196,$AP196,$AW196,$BD196)))-1), IF($L$4="MIN", IF(OR(AW196="Nur EP ",$K196="E"),((BA196/(MIN($AF196,$AM196,$AT196,$BA196,$BH196)))-1), IF($L$4="MIN",(AW196/(MIN($AB196,$AI196,$AP196,$AW196,$BD196)))-1) ))))))) ->  | BA196: =IF(OR($K196="",$K196="H",$K196="AB",$K196="G",$J196="Position",$K196="<-- Bitte Positionsart",AV196="",$L196=""),"", IF(OR($K196="A",$K196="B",$K196="E"),$L196*AV196)) ->  | BD196: =IF(AD196="Hinweis","",IF(OR($K196="A",$K196="B"),"Nur EP ",IF($K196="E","E ",IF(AND($L196<>"",BC196<>""),$L196*BC196,"")))) ->  | BG196: =IF(OR($L196="",BC196="",$J196="Ausführungsbeschreibung",$J196="Hinweis"),"", IF(AND($AA196,$AH196,$AO196,$AV196,$BC196)="","", IF($L$4="MIT", IF(OR(BD196="Nur EP ",$K196="E"),((BH196/(AVERAGE($AF196,$AM196,$AT196,$BA196,$BH196)))-1), IF($L$4="MIT",((BD196/(AVERAGE($AB196,$AI196,$AP196,$AW196,$BD196)))-1), IF($L$4="MIN", IF(OR(BD196="Nur EP ",$K196="E"),((BH196/(MIN($AF196,$AM196,$AT196,$BA196,$BH196)))-1), IF($L$4="MIN",((BD196/(MIN($AB196,$AI196,$AP196,$AW196,$BD196)))-1)) ))))))) ->  | BH196: =IF(OR($K196="",$K196="H",$K196="AB",$K196="G",$J196="Position",$K196="<-- Bitte Positionsart",BC196="",$L196=""),"", IF(OR($K196="A",$K196="B",$K196="E"),$L196*BC196)) -> 
G197: =G$195 -> 10 | H197: 2 | I197: Stunden Facharbeiter /Geselle mit gesondertem Nachweis | J197: Position | L197: 40 | M197: Std. | O197: 63.51 | P197: 64.08333333 | Q197: 64.74 | R197: 2563.333333 | Y197: =IF(OR($K197="",$K197="H",$K197="AB",$K197="G",$J197="Position",$K197="<-- Bitte Positionsart",V197="",$L197=""),"", IF(OR($K197="A",$K197="B",$K197="E"),$L197*V197)) ->  | AA197: 63.51 | AB197: 2540.4 | AE197: -0.008946684005 | AF197: =IF(OR($K197="",$K197="H",$K197="AB",$K197="G",$J197="Position",$K197="<-- Bitte Positionsart",AA197="",$L197=""),"", IF(OR($K197="A",$K197="B",$K197="E"),$L197*AA197)) ->  | AH197: 64.74 | AI197: 2589.6 | AL197: =IF(OR($L197="",AH197="",$J197="Ausführungsbeschreibung",$J197="Hinweis"),"", IF(AND($AA197,$AH197,$AO197,$AV197,$BC197)="","", IF($L$4="MIT", IF(OR(AI197="Nur EP ",$K197="E"),((AM197/(AVERAGE($AF197,$AM197,$AT197,$BA197,$BH197)))-1), IF($L$4="MIT",((AI197/(AVERAGE($AB197,$AI197,$AP197,$AW197,$BD197)))-1), IF($L$4="MIN", IF(OR(AI197="Nur EP ",$K197="E"),((AM197/(MIN($AF197,$AM197,$AT197,$BA197,$BH197)))-1), IF($L$4="MIN",(AI197/(MIN($AB197,$AI197,$AP197,$AW197,$BD197)))-1) ))))))) -> 0.01024707412 | AM197: =IF(OR($K197="",$K197="H",$K197="AB",$K197="G",$J197="Position",$K197="<-- Bitte Positionsart",AH197="",$L197=""),"", IF(OR($K197="A",$K197="B",$K197="E"),$L197*AH197)) ->  | AO197: 64 | AP197: 2560 | AS197: =IF(OR($L197="",AO197="",$J197="Ausführungsbeschreibung",$J197="Hinweis"),"", IF(AND($AA197,$AH197,$AO197,$AV197,$BC197)="","", IF($L$4="MIT", IF(OR(AP197="Nur EP ",$K197="E"),((AT197/(AVERAGE($AF197,$AM197,$AT197,$BA197,$BH197)))-1), IF($L$4="MIT",((AP197/(AVERAGE($AB197,$AI197,$AP197,$AW197,$BD197)))-1), IF($L$4="MIN", IF(OR(AP197="Nur EP ",$K197="E"),((AT197/(MIN($AF197,$AM197,$AT197,$BA197,$BH197)))-1), IF($L$4="MIN",(AP197/(MIN($AB197,$AI197,$AP197,$AW197,$BD197)))-1) ))))))) -> -0.001300390117 | AT197: =IF(OR($K197="",$K197="H",$K197="AB",$K197="G",$J197="Position",$K197="<-- Bitte Positionsart",AO197="",$L197=""),"", IF(OR($K197="A",$K197="B",$K197="E"),$L197*AO197)) ->  | AZ197: =IF(OR($L197="",AV197="",$J197="Ausführungsbeschreibung",$J197="Hinweis"),"", IF(AND($AA197,$AH197,$AO197,$AV197,$BC197)="","", IF($L$4="MIT", IF(OR(AW197="Nur EP ",$K197="E"),((BA197/(AVERAGE($AF197,$AM197,$AT197,$BA197,$BH197)))-1), IF($L$4="MIT",((AW197/(AVERAGE($AB197,$AI197,$AP197,$AW197,$BD197)))-1), IF($L$4="MIN", IF(OR(AW197="Nur EP ",$K197="E"),((BA197/(MIN($AF197,$AM197,$AT197,$BA197,$BH197)))-1), IF($L$4="MIN",(AW197/(MIN($AB197,$AI197,$AP197,$AW197,$BD197)))-1) ))))))) ->  | BA197: =IF(OR($K197="",$K197="H",$K197="AB",$K197="G",$J197="Position",$K197="<-- Bitte Positionsart",AV197="",$L197=""),"", IF(OR($K197="A",$K197="B",$K197="E"),$L197*AV197)) ->  | BG197: =IF(OR($L197="",BC197="",$J197="Ausführungsbeschreibung",$J197="Hinweis"),"", IF(AND($AA197,$AH197,$AO197,$AV197,$BC197)="","", IF($L$4="MIT", IF(OR(BD197="Nur EP ",$K197="E"),((BH197/(AVERAGE($AF197,$AM197,$AT197,$BA197,$BH197)))-1), IF($L$4="MIT",((BD197/(AVERAGE($AB197,$AI197,$AP197,$AW197,$BD197)))-1), IF($L$4="MIN", IF(OR(BD197="Nur EP ",$K197="E"),((BH197/(MIN($AF197,$AM197,$AT197,$BA197,$BH197)))-1), IF($L$4="MIN",((BD197/(MIN($AB197,$AI197,$AP197,$AW197,$BD197)))-1)) ))))))) ->  | BH197: =IF(OR($K197="",$K197="H",$K197="AB",$K197="G",$J197="Position",$K197="<-- Bitte Positionsart",BC197="",$L197=""),"", IF(OR($K197="A",$K197="B",$K197="E"),$L197*BC197)) -> 
G198: =G$195 -> 10 | H198: 3 | I198: Stunden Lehrlling mit gesondertem Nachweis | J198: Position | L198: 40 | M198: Std. | O198: 50 | P198: 52.18333333 | Q198: 53.62 | R198: 2087.333333 | AA198: 52.93 | AB198: 2117.2 | AE198: 0.01430852763 | AF198: =IF(OR($K198="",$K198="H",$K198="AB",$K198="G",$J198="Position",$K198="<-- Bitte Positionsart",AA198="",$L198=""),"", IF(OR($K198="A",$K198="B",$K198="E"),$L198*AA198)) ->  | AH198: 53.62 | AI198: 2144.8 | AL198: 0.02753114021 | AM198: =IF(OR($K198="",$K198="H",$K198="AB",$K198="G",$J198="Position",$K198="<-- Bitte Positionsart",AH198="",$L198=""),"", IF(OR($K198="A",$K198="B",$K198="E"),$L198*AH198)) ->  | AO198: 50 | AP198: 2000 | AS198: -0.04183966784 | AT198: =IF(OR($K198="",$K198="H",$K198="AB",$K198="G",$J198="Position",$K198="<-- Bitte Positionsart",AO198="",$L198=""),"", IF(OR($K198="A",$K198="B",$K198="E"),$L198*AO198)) ->  | BH198: =IF(OR($K198="",$K198="H",$K198="AB",$K198="G",$J198="Position",$K198="<-- Bitte Positionsart",BC198="",$L198=""),"", IF(OR($K198="A",$K198="B",$K198="E"),$L198*BC198)) -> 
G199: 10 | H199: 4 | I199: Stunden Helfer mit gesondertem Nachweis | J199: Position | L199: 40 | M199: Std. | O199: 50 | P199: 55.89666667 | Q199: 59.48 | R199: 2235.866667 | AA199: 58.21 | AB199: 2328.4 | AE199: 0.04138589063 | AH199: 59.48 | AI199: 2379.2 | AL199: 0.06410638679 | AO199: 50 | AP199: 2000 | AS199: -0.1054922774
G200: =G$195 -> 10 | H200: 5
... 7 more rows

Sheet ALLGEMEINE ANGABEN
A1: Allgemeine Angaben zur Kostenermittlung auf den nachfolgenden Seiten
A3: Berücksichtigte Mehrwertsteuer | B3: 0.19
A5: Projektnummer | B5: 196
A7: Projektbezeichnung | B7: Dachsanierung Auf der Raade 49/51

Sheet -- Auswahllisten --
A2: Positionsarten | B2: Einheiten | C2: Positionstypen
A3: Position | B3: m | C3: [B] edarf
A4: Grundposition | B4: lfdm | C4: [G] rundposition
A5: Alternativposition | B5: qm | C5: [A] lternativposition
A6: Bedarfsposition | B6: cbm | C6: [E] Entfällt
A7: Entfällt | B7: Stck. | C7: [H] inweis
A8: Hinweis | B8: pausch. | C8: [AB] usführungsbeschreibung
A9: Ausführungsbeschreibung | B9: Std.
